Workbook

Sheet Deckblatt
C7: Template für Gemeinden zur Datenerfassung der Kommunalen Wärmeplanung
C9: Basierend auf den Vorlagen des LANUK (NRW) und des Kompetenzzentrums Kommunale Wärmewende
C13: Version | D13: V1 | Juni 2026
C16: Support
C18: Bei Problemen der Anwendung kontaktieren Sie: | G18: support-waermeplattform@disy.net

Sheet A-Allgemeine Angaben
B3: Template für die Datenerfassung durch Kommunen zur KWP
B6: Datenerfassung KWP
B7: Legende Eingabefelder:
C8: Dropdown-Menü
C9: Numerische Angaben
C10: Kurze textliche Angaben
C11: Optionale Angaben
B13: # | C13: Inhalte
C14: A - Allgemeine Angaben zur KWP
C16: Allgemeine Daten
D17: Eingabefeld(er)
E18: Gemeindeschlüssel | F18: Einwohner 2024
B19: A.1 | C19: Kommune | E19: =IFERROR(_xlfn.XLOOKUP(D19,Bevölkerung!$B$2:$B$1102,Bevölkerung!$A$2:$A$1102),"") ->  | F19: =IFERROR(_xlfn.XLOOKUP(D19,Bevölkerung!$B$2:$B$1102,Bevölkerung!$F$2:$F$1102),"") ->  | H19: =IF(D19="","Kommune auswählen!","") -> Kommune auswählen! | X19: Einwohner
B20: A.2 | C20: In welchem Jahr wurde der Wärmeplan erstellt? | E20: =IF(D20="","Jahr auswählen!","") -> Jahr auswählen! | X20: WP Erstellungsjahr
B21: A.3 | C21: Wurde eine gemeinsame Wärmeplanung (Konvoiplanung) durchgeführt? | X21: Konvoiplanung
B22: A.4 | C22: Basisjahr der Datenerfassung | E22: =IF(D22="","Jahr auswählen!","") -> Jahr auswählen! | X22: Basisjahr
B23: A.5 | C23: Zugrundeliegendes Zieljahr der Wärmeplanung der Kommune | X23: Zieljahr
B24: A.6 | C24: Wurde ein vereinfachtes Verfahren durchgeführt? | X24: vereinfachtes Verfahren
B25: A.7 | C25: Wurde eine verkürzte Wärmeplanung durchgeführt? | X25: verkürzte WP
B26: A.8 | C26: Wurden Teilgebiete mit erhöhtem Energieeinsparpotenzial entsprechend § 18 Absatz 5 WPG ausgewiesen? | X26: Erhöhtes Einsparpotenzial
B27: A.9 | C27: Wurden (Teil-)Gebiete gemäß § 14 Absatz 6 WPG ausgewiesen, in denen die Wärmeversorgung vollständig oder nahezu vollständig auf erneuerbaren Energien, unvermeidbarer Abwärme oder einer Kombination hieraus beruht? | X27: EE Gebiet
B28: A.10 | C28: Handelt es sich um die Fortschreibung eines Wärmeplans? | X28: Fortschreibung WP
C30: Kontaktperson in der Kommune
D31: Eingabefeld(er)
B32: A.11 | C32: Anrede
B33: A.12 | C33: Vorname | X33: Kontaktperson
B34: A.13 | C34: Nachname
B35: A.14 | C35: Abteilung
B36: A.15 | C36: E-Mail
B37: A.16 | C37: Telefon
B38: A.17 | C38: Umsetzende Stelle (z.B. Planungsbüro) | X38: umsetzende Stelle
C40: Stand der KWP
D41: Eingabefeld(er)
B42: A.18 | C42: Auf welcher gesetzlichen Grundlage wurde der Wärmeplan angefertigt? | X42: WP gesetzliche Grundlage
B43: A.19 | C43: Der Endbericht zur KWP ist veröffentlicht unter | E43: geben Sie bitte eine gültige URL an, wo ihr erstellter Wärmeplan veröffentlicht wurde und abrufbar ist | X43: URL Endbericht
B44: A.20 | C44: Beschlussdatum | E44: Datum (TT.MM.JJJJ) | X44: Beschlussdatum

Sheet B-Bestandsanalyse
B3: Template für die Datenerfassung durch Kommunen zur KWP
B6: Datenerfassung KWP
B7: Legende Eingabefelder:
C8: Dropdown-Menü
C9: Numerische Angaben
C10: Kurze textliche Angaben
C11: Optionale Angaben
C12: Rechenergebnisse (keine Eingabefelder)
B14: # | C14: Inhalte
C15: B - Angaben zu den Ergebnissen der KWP - Bestandsanalyse
C17: Gebäudestruktur
E19: Eingabefeld(er) | F19: Einheit
B20: B.1 | C20: Anzahl der Gebäude | F20: Anzahl | X20: Anzahl Wohngebäude
B21: B.2 | C21: Anzahl der beheizten Wohngebäude | F21: Anzahl | X21: Anzahl beheizter Wohngebäude
B22: B.3 | C22: Anzahl der beheizten Nichtwohngebäude | F22: Anzahl | X22: Anzahl beheizter Nichtwohngebäude
C25: Wärmenetze | D25: Verweis WPG
E27: Eingabefeld(er) | F27: Einheit | G27: Hinweise
B28: B.4 | C28: Anzahl der bereits bestehenden Wärmenetze | D28: Anlage 2 Abschnitt I Nr. 2.8.a) | F28: Anzahl | X28: Anzahl bestehender W-Netze
B29: B.5 | C29: Anzahl der konkret geplanten oder bereits genehmigten Wärmenetze | D29: Anlage 2 Absschnitt I Nr. 2.8.a) | F29: Anzahl | X29: Anzahl geplanter-genehmigter W-Netze
B30: B.6 | C30: Gesamte Trassenlänge der bereits bestehenden Wärmenetze | D30: Anlage 2 Abschnitt I Nr. 2.8.a)ee) | F30: km | X30: Trassenlänge bestehender W-Netze
B31: B.7 | C31: Gesamte Trassenlänge der konkret geplanten oder bereits genehmigten Wärmenetze | D31: Anlage 2 Abschnitt I Nr. 2.8.a)ee) | F31: km | X31: Trassenlänge geplanter-genehmigter W-Netze
C34: Wärmeerzeugung nach Energieträgern
C36: Hinweis zu Wärmepumpen und Umweltwärme
C37: Wärmepumpen haben die Besonderheit, dass sie zwei der im Template gelisteten Energieträger nutzen, um Wärme zu erzeugen. Daher müssen die jeweiligen Energiemengen beiden Energieträgern zugeordnet werden. Eine Luft-Wärmepumpe wird folglich im Energieträger Umweltwärme Luft und dem Energieträger Strom Wärmepumpe berücksichtigt.
B40: B.8 | C40: Jährlicher Endenergieverbrauch gesamte Wärmeversorgung nach Energieträgern und Sektoren nach Anlage 2 Abschnitt I Nr. 1.1
C42: Hinweis zu leitungsgebundener Wärme (Wärmenetze)
C43: Der Endenergieverbrauch für die Wärmenetze muss in dieser Tabelle berücksichtigt werden, inkl. Umwandlungs- und Leitungsverlusten
C45: Endenergieverbrauch Wärme | D45: Sektoren optional | I45: Sektoren insgesamt
C46: Basisjahr
C47: MWh/a | D47: Haushalte | E47: GHD | F47: öffentliche Liegenschaften | G47: Industrie | H47: Gesamtsumme ohne Differenzierung nach Sektoren | I47: Summe (der Spalten D bis G oder H) | J47: Hinweise
C48: Braunkohle | I48: =_xlfn.IFS(Q48="-","-",H48>SUM(D48:G48),H48,O48="OK",SUM(D48:G48),P48="OK",H48) -> - | L48: =IF(SUM(D48:G48)>0,IF(H48>0,"Fehler: entweder Aufteilug nach Sektoren ODER Gesammtsumme",""),"") ->  | O48: =IFERROR(_xlfn.IFS(D48="","-",E48="","-",F48="","-",G48="","-"),"OK") -> - | P48: =IFERROR(_xlfn.IFS(H48="","-"),"OK") -> - | Q48: =IFERROR(_xlfn.IFS(O48&P48="--","-"),"OK") -> - | X48: Braunkohle
C49: Steinkohle | I49: =_xlfn.IFS(Q49="-","-",O49="OK",SUM(D49:G49),P49="OK",H49) -> - | L49: =IF(SUM(D49:G49)>0,IF(H49>0,"Fehler: entweder Aufteilug nach Sektoren ODER Gesammtsumme",""),"") ->  | O49: =IFERROR(_xlfn.IFS(D49="","-",E49="","-",F49="","-",G49="","-"),"OK") -> - | P49: =IFERROR(_xlfn.IFS(H49="","-"),"OK") -> - | Q49: =IFERROR(_xlfn.IFS(O49&P49="--","-"),"OK") -> - | X49: Steinkohle
C50: Erdgas | I50: =_xlfn.IFS(Q50="-","-",O50="OK",SUM(D50:G50),P50="OK",H50) -> - | L50: =IF(SUM(D50:G50)>0,IF(H50>0,"Fehler: entweder Aufteilug nach Sektoren ODER Gesammtsumme",""),"") ->  | O50: =IFERROR(_xlfn.IFS(D50="","-",E50="","-",F50="","-",G50="","-"),"OK") -> - | P50: =IFERROR(_xlfn.IFS(H50="","-"),"OK") -> - | Q50: =IFERROR(_xlfn.IFS(O50&P50="--","-"),"OK") -> - | X50: Erdgas
C51: Flüssiggas | I51: =_xlfn.IFS(Q51="-","-",O51="OK",SUM(D51:G51),P51="OK",H51) -> - | O51: =IFERROR(_xlfn.IFS(D51="","-",E51="","-",F51="","-",G51="","-"),"OK") -> - | P51: =IFERROR(_xlfn.IFS(H51="","-"),"OK") -> - | Q51: =IFERROR(_xlfn.IFS(O51&P51="--","-"),"OK") -> - | X51: Flüssiggas
C52: Heizöl | I52: =_xlfn.IFS(Q52="-","-",O52="OK",SUM(D52:G52),P52="OK",H52) -> - | O52: =IFERROR(_xlfn.IFS(D52="","-",E52="","-",F52="","-",G52="","-"),"OK") -> - | P52: =IFERROR(_xlfn.IFS(H52="","-"),"OK") -> - | Q52: =IFERROR(_xlfn.IFS(O52&P52="--","-"),"OK") -> - | X52: Heizöl
C53: Wasserstoff | I53: =_xlfn.IFS(Q53="-","-",O53="OK",SUM(D53:G53),P53="OK",H53) -> - | O53: =IFERROR(_xlfn.IFS(D53="","-",E53="","-",F53="","-",G53="","-"),"OK") -> - | P53: =IFERROR(_xlfn.IFS(H53="","-"),"OK") -> - | Q53: =IFERROR(_xlfn.IFS(O53&P53="--","-"),"OK") -> - | X53: Wasserstoff
C54: Wasserstoffderivate | I54: =_xlfn.IFS(Q54="-","-",O54="OK",SUM(D54:G54),P54="OK",H54) -> - | O54: =IFERROR(_xlfn.IFS(D54="","-",E54="","-",F54="","-",G54="","-"),"OK") -> - | P54: =IFERROR(_xlfn.IFS(H54="","-"),"OK") -> - | Q54: =IFERROR(_xlfn.IFS(O54&P54="--","-"),"OK") -> - | X54: Wasserstoffderivate
C55: Grubengas | I55: =_xlfn.IFS(Q55="-","-",O55="OK",SUM(D55:G55),P55="OK",H55) -> - | O55: =IFERROR(_xlfn.IFS(D55="","-",E55="","-",F55="","-",G55="","-"),"OK") -> - | P55: =IFERROR(_xlfn.IFS(H55="","-"),"OK") -> - | Q55: =IFERROR(_xlfn.IFS(O55&P55="--","-"),"OK") -> - | X55: Grubengas
C56: nichtbiogener Abfall | I56: =_xlfn.IFS(Q56="-","-",O56="OK",SUM(D56:G56),P56="OK",H56) -> - | O56: =IFERROR(_xlfn.IFS(D56="","-",E56="","-",F56="","-",G56="","-"),"OK") -> - | P56: =IFERROR(_xlfn.IFS(H56="","-"),"OK") -> - | Q56: =IFERROR(_xlfn.IFS(O56&P56="--","-"),"OK") -> - | X56: Nicht biogener Abfall
C57: biogener Abfall | I57: =_xlfn.IFS(Q57="-","-",O57="OK",SUM(D57:G57),P57="OK",H57) -> - | O57: =IFERROR(_xlfn.IFS(D57="","-",E57="","-",F57="","-",G57="","-"),"OK") -> - | P57: =IFERROR(_xlfn.IFS(H57="","-"),"OK") -> - | Q57: =IFERROR(_xlfn.IFS(O57&P57="--","-"),"OK") -> - | X57: Biogener Abfall
C58: Abwärme < 60 °C | I58: =_xlfn.IFS(Q58="-","-",O58="OK",SUM(D58:G58),P58="OK",H58) -> - | J58: Aufteilung nach Temperatur ggf. schätzen | O58: =IFERROR(_xlfn.IFS(D58="","-",E58="","-",F58="","-",G58="","-"),"OK") -> - | P58: =IFERROR(_xlfn.IFS(H58="","-"),"OK") -> - | Q58: =IFERROR(_xlfn.IFS(O58&P58="--","-"),"OK") -> - | X58: Abwärme < 60 °C | Y58: nicht in Objektkatalog (unvermeidbare Abwärme)
C59: Abwärme 60 bis 110 °C | I59: =_xlfn.IFS(Q59="-","-",O59="OK",SUM(D59:G59),P59="OK",H59) -> - | J59: Aufteilung nach Temperatur ggf. schätzen | O59: =IFERROR(_xlfn.IFS(D59="","-",E59="","-",F59="","-",G59="","-"),"OK") -> - | P59: =IFERROR(_xlfn.IFS(H59="","-"),"OK") -> - | Q59: =IFERROR(_xlfn.IFS(O59&P59="--","-"),"OK") -> - | X59: Abwärme 60 bis 110 °C | Y59: nicht in Objektkatalog (unvermeidbare Abwärme)
C60: Abwärme >= 110 °C | I60: =_xlfn.IFS(Q60="-","-",O60="OK",SUM(D60:G60),P60="OK",H60) -> - | J60: Aufteilung nach Temperatur ggf. schätzen | O60: =IFERROR(_xlfn.IFS(D60="","-",E60="","-",F60="","-",G60="","-"),"OK") -> - | P60: =IFERROR(_xlfn.IFS(H60="","-"),"OK") -> - | Q60: =IFERROR(_xlfn.IFS(O60&P60="--","-"),"OK") -> - | X60: Abwärme >= 110 °C
C61: feste Biomasse (ohne Altholz) | I61: =_xlfn.IFS(Q61="-","-",O61="OK",SUM(D61:G61),P61="OK",H61) -> - | O61: =IFERROR(_xlfn.IFS(D61="","-",E61="","-",F61="","-",G61="","-"),"OK") -> - | P61: =IFERROR(_xlfn.IFS(H61="","-"),"OK") -> - | Q61: =IFERROR(_xlfn.IFS(O61&P61="--","-"),"OK") -> - | X61: feste Biomasse (ohne Altholz) | Y61: nicht in Objektkatalog (feste Biomasse)
C62: Altholz | I62: =_xlfn.IFS(Q62="-","-",O62="OK",SUM(D62:G62),P62="OK",H62) -> - | O62: =IFERROR(_xlfn.IFS(D62="","-",E62="","-",F62="","-",G62="","-"),"OK") -> - | P62: =IFERROR(_xlfn.IFS(H62="","-"),"OK") -> - | Q62: =IFERROR(_xlfn.IFS(O62&P62="--","-"),"OK") -> - | X62: Altholz | Y62: nicht in Objektkatalog
C63: Biogas | I63: =_xlfn.IFS(Q63="-","-",O63="OK",SUM(D63:G63),P63="OK",H63) -> - | O63: =IFERROR(_xlfn.IFS(D63="","-",E63="","-",F63="","-",G63="","-"),"OK") -> - | P63: =IFERROR(_xlfn.IFS(H63="","-"),"OK") -> - | Q63: =IFERROR(_xlfn.IFS(O63&P63="--","-"),"OK") -> - | X63: Biogas
C64: Biomethan | I64: =_xlfn.IFS(Q64="-","-",O64="OK",SUM(D64:G64),P64="OK",H64) -> - | O64: =IFERROR(_xlfn.IFS(D64="","-",E64="","-",F64="","-",G64="","-"),"OK") -> - | P64: =IFERROR(_xlfn.IFS(H64="","-"),"OK") -> - | Q64: =IFERROR(_xlfn.IFS(O64&P64="--","-"),"OK") -> - | X64: Biomethan
C65: Deponiegas | I65: =_xlfn.IFS(Q65="-","-",O65="OK",SUM(D65:G65),P65="OK",H65) -> - | O65: =IFERROR(_xlfn.IFS(D65="","-",E65="","-",F65="","-",G65="","-"),"OK") -> - | P65: =IFERROR(_xlfn.IFS(H65="","-"),"OK") -> - | Q65: =IFERROR(_xlfn.IFS(O65&P65="--","-"),"OK") -> - | X65: Deponiegas
C66: Klärgas | I66: =_xlfn.IFS(Q66="-","-",O66="OK",SUM(D66:G66),P66="OK",H66) -> - | O66: =IFERROR(_xlfn.IFS(D66="","-",E66="","-",F66="","-",G66="","-"),"OK") -> - | P66: =IFERROR(_xlfn.IFS(H66="","-"),"OK") -> - | Q66: =IFERROR(_xlfn.IFS(O66&P66="--","-"),"OK") -> - | X66: Klärgas
C67: flüssige Biomasse | I67: =_xlfn.IFS(Q67="-","-",O67="OK",SUM(D67:G67),P67="OK",H67) -> - | O67: =IFERROR(_xlfn.IFS(D67="","-",E67="","-",F67="","-",G67="","-"),"OK") -> - | P67: =IFERROR(_xlfn.IFS(H67="","-"),"OK") -> - | Q67: =IFERROR(_xlfn.IFS(O67&P67="--","-"),"OK") -> - | X67: Flüssige Biomasse
C68: Strom Wärmepumpe | I68: =_xlfn.IFS(Q68="-","-",O68="OK",SUM(D68:G68),P68="OK",H68) -> - | O68: =IFERROR(_xlfn.IFS(D68="","-",E68="","-",F68="","-",G68="","-"),"OK") -> - | P68: =IFERROR(_xlfn.IFS(H68="","-"),"OK") -> - | Q68: =IFERROR(_xlfn.IFS(O68&P68="--","-"),"OK") -> - | X68: Strom Wärmepumpe | Y68: nicht in Objektkatalog (Strom)
C69: Strom Direktheizung | I69: =_xlfn.IFS(Q69="-","-",O69="OK",SUM(D69:G69),P69="OK",H69) -> - | O69: =IFERROR(_xlfn.IFS(D69="","-",E69="","-",F69="","-",G69="","-"),"OK") -> - | P69: =IFERROR(_xlfn.IFS(H69="","-"),"OK") -> - | Q69: =IFERROR(_xlfn.IFS(O69&P69="--","-"),"OK") -> - | X69: Strom Direktheizung | Y69: nicht in Objektkatalog (Strom)
C70: Solarthermie Dach-Anlagen | I70: =_xlfn.IFS(Q70="-","-",O70="OK",SUM(D70:G70),P70="OK",H70) -> - | O70: =IFERROR(_xlfn.IFS(D70="","-",E70="","-",F70="","-",G70="","-"),"OK") -> - | P70: =IFERROR(_xlfn.IFS(H70="","-"),"OK") -> - | Q70: =IFERROR(_xlfn.IFS(O70&P70="--","-"),"OK") -> - | X70: Solarthermie Dach-Anlagen | Y70: nicht in Objektkatalog (Solarthrmie)
C71: Solarthermie Freiflächenanlagen | I71: =_xlfn.IFS(Q71="-","-",O71="OK",SUM(D71:G71),P71="OK",H71) -> - | O71: =IFERROR(_xlfn.IFS(D71="","-",E71="","-",F71="","-",G71="","-"),"OK") -> - | P71: =IFERROR(_xlfn.IFS(H71="","-"),"OK") -> - | Q71: =IFERROR(_xlfn.IFS(O71&P71="--","-"),"OK") -> - | X71: Solarthermie Freiflächenanlagen | Y71: nicht in Objektkatalog (Solarthrmie)
C72: oberflächennahe Geothermie | I72: =_xlfn.IFS(Q72="-","-",O72="OK",SUM(D72:G72),P72="OK",H72) -> - | O72: =IFERROR(_xlfn.IFS(D72="","-",E72="","-",F72="","-",G72="","-"),"OK") -> - | P72: =IFERROR(_xlfn.IFS(H72="","-"),"OK") -> - | Q72: =IFERROR(_xlfn.IFS(O72&P72="--","-"),"OK") -> - | X72: Oberflächennahe Geothermie
C73: tiefe Geothermie | I73: =_xlfn.IFS(Q73="-","-",O73="OK",SUM(D73:G73),P73="OK",H73) -> - | O73: =IFERROR(_xlfn.IFS(D73="","-",E73="","-",F73="","-",G73="","-"),"OK") -> - | P73: =IFERROR(_xlfn.IFS(H73="","-"),"OK") -> - | Q73: =IFERROR(_xlfn.IFS(O73&P73="--","-"),"OK") -> - | X73: Tiefe Geothermie
C74: Umweltwärme aus Oberflächengewässern | I74: =_xlfn.IFS(Q74="-","-",O74="OK",SUM(D74:G74),P74="OK",H74) -> - | O74: =IFERROR(_xlfn.IFS(D74="","-",E74="","-",F74="","-",G74="","-"),"OK") -> - | P74: =IFERROR(_xlfn.IFS(H74="","-"),"OK") -> - | Q74: =IFERROR(_xlfn.IFS(O74&P74="--","-"),"OK") -> - | X74: Oberflächengewässern
C75: Umweltwärme aus Grubenwasser | I75: =_xlfn.IFS(Q75="-","-",O75="OK",SUM(D75:G75),P75="OK",H75) -> - | O75: =IFERROR(_xlfn.IFS(D75="","-",E75="","-",F75="","-",G75="","-"),"OK") -> - | P75: =IFERROR(_xlfn.IFS(H75="","-"),"OK") -> - | Q75: =IFERROR(_xlfn.IFS(O75&P75="--","-"),"OK") -> - | X75: Grubenwasser
C76: Umweltwärme aus Luft | I76: =_xlfn.IFS(Q76="-","-",O76="OK",SUM(D76:G76),P76="OK",H76) -> - | O76: =IFERROR(_xlfn.IFS(D76="","-",E76="","-",F76="","-",G76="","-"),"OK") -> - | P76: =IFERROR(_xlfn.IFS(H76="","-"),"OK") -> - | Q76: =IFERROR(_xlfn.IFS(O76&P76="--","-"),"OK") -> - | X76: Luft
C77: Umweltwärme aus Abwasser | I77: =_xlfn.IFS(Q77="-","-",O77="OK",SUM(D77:G77),P77="OK",H77) -> - | O77: =IFERROR(_xlfn.IFS(D77="","-",E77="","-",F77="","-",G77="","-"),"OK") -> - | P77: =IFERROR(_xlfn.IFS(H77="","-"),"OK") -> - | Q77: =IFERROR(_xlfn.IFS(O77&P77="--","-"),"OK") -> - | X77: Abwasser
C78: Sonstige fossile Brennstoffe | I78: =_xlfn.IFS(Q78="-","-",O78="OK",SUM(D78:G78),P78="OK",H78) -> - | O78: =IFERROR(_xlfn.IFS(D78="","-",E78="","-",F78="","-",G78="","-"),"OK") -> - | P78: =IFERROR(_xlfn.IFS(H78="","-"),"OK") -> - | Q78: =IFERROR(_xlfn.IFS(O78&P78="--","-"),"OK") -> - | X78: Sonstige fossile Brennstoffe | Y78: nicht in Objektkatalog (Sonstiges)
C79: Sonstige erneuerbare Energien | I79: =_xlfn.IFS(Q79="-","-",O79="OK",SUM(D79:G79),P79="OK",H79) -> - | O79: =IFERROR(_xlfn.IFS(D79="","-",E79="","-",F79="","-",G79="","-"),"OK") -> - | P79: =IFERROR(_xlfn.IFS(H79="","-"),"OK") -> - | Q79: =IFERROR(_xlfn.IFS(O79&P79="--","-"),"OK") -> - | X79: Sonstige erneuerbare Energien | Y79: nicht in Objektkatalog (Sonstiges)
C80: Summe | D80: =SUM(D48:D79) -> 0 | E80: 0 | F80: 0 | G80: 0 | H80: =SUM(H48:H79) -> 0 | I80: 0 | Y80: nicht in Objektkatalog
I81: =IF(SUM(D80:G80)>0,IF(H80>0,"Fehler: entweder Aufteilug nach Sektoren ODER Gesammtsumme",""),"") -> 
B83: B.9 | C83: Gesamtendenergieverbrauch nach Gebäuden und Prozessen
C85: Endenergieverbrauch Gebäudewärme | E85: MWh/a | X85: Endenergieverbrauch Gebäudewärme | Y85: Ist hier nur Gebäudewärme gemeint?
C86: Endenergieverbrauch Prozesswärme | E86: MWh/a | X86: Endenergieverbrauch Prozesswärme | Y86: Ist hier nur Prozesswärme gemeint?
B89: B.10 | C89: Jährlicher Endenergieverbrauch leitungsgebundener Wärme nach Energieträgern nach Anlage 2 Abschnitt I Nr. 1.3
K91: =+'A-Allgemeine Angaben'!D22 -> 0
C92: Endenergieverbrauch leitungsgebundene Wärme | D92: Umwandlungseinsatz | E92: Hinweise | K92: Emissionsfaktor zum Basisjahr (Feld A3) | L92: Zeile | M92: Energieträger | N92: THG-Emissionen
C93: Basisjahr
C94: in MWh/a | N94: kt
C95: Braunkohle | K95: =OFFSET('EM-Faktoren'!$C$1,L95-1,$K$173-2020+1) ->  | L95: 10 | M95: =OFFSET('EM-Faktoren'!$B$4,'B-Bestandsanalyse'!L95-4,) -> Braunkohle | N95: =+D95*K95/1000 -> 
C96: Steinkohle | K96: =OFFSET('EM-Faktoren'!$C$1,L96-1,$K$173-2020+1) ->  | L96: 9 | M96: =OFFSET('EM-Faktoren'!$B$4,'B-Bestandsanalyse'!L96-4,) -> Kohlen (Steinkohle) | N96: =+D96*K96/1000 -> 
C97: Erdgas | K97: =OFFSET('EM-Faktoren'!$C$1,L97-1,$K$173-2020+1) ->  | L97: 5 | M97: =OFFSET('EM-Faktoren'!$B$4,'B-Bestandsanalyse'!L97-4,) -> Erdgas
C98: Flüssiggas | K98: =OFFSET('EM-Faktoren'!$C$1,L98-1,$K$173-2020+1) ->  | L98: 7 | M98: =OFFSET('EM-Faktoren'!$B$4,'B-Bestandsanalyse'!L98-4,) -> Flüssiggas
C99: Heizöl | K99: =OFFSET('EM-Faktoren'!$C$1,L99-1,$K$173-2020+1) ->  | L99: 6 | M99: =OFFSET('EM-Faktoren'!$B$4,'B-Bestandsanalyse'!L99-4,) -> Heizöl
C100: Wasserstoff | K100: =OFFSET('EM-Faktoren'!$C$1,L100-1,$K$173-2020+1) ->  | L100: 12 | M100: =OFFSET('EM-Faktoren'!$B$4,'B-Bestandsanalyse'!L100-4,) -> Wasserstoff
C101: Wasserstoffderivate | K101: =OFFSET('EM-Faktoren'!$C$1,L101-1,$K$173-2020+1) ->  | L101: 13 | M101: =OFFSET('EM-Faktoren'!$B$4,'B-Bestandsanalyse'!L101-4,) -> PtX
C102: Grubengas | K102: =OFFSET('EM-Faktoren'!$C$1,L102-1,$K$173-2020+1) ->  | L102: 22 | M102: =OFFSET('EM-Faktoren'!$B$4,'B-Bestandsanalyse'!L102-4,) -> Deponiegas/Grubengas
C103: nichtbiogener Abfall | K103: =OFFSET('EM-Faktoren'!$C$1,L103-1,$K$173-2020+1) ->  | L103: 23 | M103: =OFFSET('EM-Faktoren'!$B$4,'B-Bestandsanalyse'!L103-4,) -> Abfall
C104: biogener Abfall | K104: =OFFSET('EM-Faktoren'!$C$1,L104-1,$K$173-2020+1) ->  | L104: 23 | M104: =OFFSET('EM-Faktoren'!$B$4,'B-Bestandsanalyse'!L104-4,) -> Abfall
C105: Abwärme < 60 °C | E105: Aufteilung nach Temperatur ggf. schätzen | K105: =OFFSET('EM-Faktoren'!$C$1,L105-1,$K$173-2020+1) ->  | L105: 27 | M105: =OFFSET('EM-Faktoren'!$B$4,'B-Bestandsanalyse'!L105-4,) -> Umweltwärme
C106: Abwärme 60 bis 110 °C | E106: Aufteilung nach Temperatur ggf. schätzen | K106: =OFFSET('EM-Faktoren'!$C$1,L106-1,$K$173-2020+1) ->  | L106: 27 | M106: =OFFSET('EM-Faktoren'!$B$4,'B-Bestandsanalyse'!L106-4,) -> Umweltwärme | N106: =+D106*K106/1000 -> 
C107: Abwärme >= 110 °C | E107: Aufteilung nach Temperatur ggf. schätzen | K107: =OFFSET('EM-Faktoren'!$C$1,L107-1,$K$173-2020+1) ->  | L107: 27 | M107: =OFFSET('EM-Faktoren'!$B$4,'B-Bestandsanalyse'!L107-4,) -> Umweltwärme | N107: =+D107*K107/1000 -> 
C108: feste Biomasse (ohne Altholz) | K108: =OFFSET('EM-Faktoren'!$C$1,L108-1,$K$173-2020+1) ->  | L108: 19 | M108: =OFFSET('EM-Faktoren'!$B$4,'B-Bestandsanalyse'!L108-4,) -> EE-Festbrennstoffe
C109: Altholz | K109: =OFFSET('EM-Faktoren'!$C$1,L109-1,$K$173-2020+1) ->  | L109: 19 | M109: =OFFSET('EM-Faktoren'!$B$4,'B-Bestandsanalyse'!L109-4,) -> EE-Festbrennstoffe
C110: Biogas | K110: =OFFSET('EM-Faktoren'!$C$1,L110-1,$K$173-2020+1) ->  | L110: 21 | M110: =OFFSET('EM-Faktoren'!$B$4,'B-Bestandsanalyse'!L110-4,) -> Biogas
C111: Biomethan | K111: =OFFSET('EM-Faktoren'!$C$1,L111-1,$K$173-2020+1) ->  | L111: 25 | M111: =OFFSET('EM-Faktoren'!$B$4,'B-Bestandsanalyse'!L111-4,) -> Synth. Brennstoffe
C112: Deponiegas | K112: =OFFSET('EM-Faktoren'!$C$1,L112-1,$K$173-2020+1) ->  | L112: 22 | M112: =OFFSET('EM-Faktoren'!$B$4,'B-Bestandsanalyse'!L112-4,) -> Deponiegas/Grubengas
C113: Klärgas | K113: =OFFSET('EM-Faktoren'!$C$1,L113-1,$K$173-2020+1) ->  | L113: 18 | M113: =OFFSET('EM-Faktoren'!$B$4,'B-Bestandsanalyse'!L113-4,) -> Klärgas
C114: flüssige Biomasse | K114: =OFFSET('EM-Faktoren'!$C$1,L114-1,$K$173-2020+1) ->  | L114: 20 | M114: =OFFSET('EM-Faktoren'!$B$4,'B-Bestandsanalyse'!L114-4,) -> Flüssige Biomasse
C115: Strom Wärmepumpe | K115: =OFFSET('EM-Faktoren'!$C$1,L115-1,$K$173-2020+1) ->  | L115: 4 | M115: =OFFSET('EM-Faktoren'!$B$4,'B-Bestandsanalyse'!L115-4,) -> Strom
C116: Strom Direktheizung | K116: =OFFSET('EM-Faktoren'!$C$1,L116-1,$K$173-2020+1) ->  | L116: 4 | M116: =OFFSET('EM-Faktoren'!$B$4,'B-Bestandsanalyse'!L116-4,) -> Strom
C117: Solarthermie Dachflächenanlagen | K117: =OFFSET('EM-Faktoren'!$C$1,L117-1,$K$173-2020+1) ->  | L117: 11 | M117: =OFFSET('EM-Faktoren'!$B$4,'B-Bestandsanalyse'!L117-4,) -> Solarwärme
C118: Solathermie Freiflächenanlagen | K118: =OFFSET('EM-Faktoren'!$C$1,L118-1,$K$173-2020+1) ->  | L118: 11 | M118: =OFFSET('EM-Faktoren'!$B$4,'B-Bestandsanalyse'!L118-4,) -> Solarwärme
C119: oberflächennahe Geothermie | K119: =OFFSET('EM-Faktoren'!$C$1,L119-1,$K$173-2020+1) ->  | L119: 27 | M119: =OFFSET('EM-Faktoren'!$B$4,'B-Bestandsanalyse'!L119-4,) -> Umweltwärme
C120: tiefe Geothermie | K120: =OFFSET('EM-Faktoren'!$C$1,L120-1,$K$173-2020+1) ->  | L120: 26 | M120: =OFFSET('EM-Faktoren'!$B$4,'B-Bestandsanalyse'!L120-4,) -> Tiefe Geothermie
C121: Umweltwärme aus Oberflächengewässern | K121: =OFFSET('EM-Faktoren'!$C$1,L121-1,$K$173-2020+1) ->  | L121: 27 | M121: =OFFSET('EM-Faktoren'!$B$4,'B-Bestandsanalyse'!L121-4,) -> Umweltwärme
C122: Umweltwärme aus Grubenwasser | K122: =OFFSET('EM-Faktoren'!$C$1,L122-1,$K$173-2020+1) ->  | L122: 27 | M122: =OFFSET('EM-Faktoren'!$B$4,'B-Bestandsanalyse'!L122-4,) -> Umweltwärme
C123: Umweltwärme aus Luft | K123: =OFFSET('EM-Faktoren'!$C$1,L123-1,$K$173-2020+1) ->  | L123: 27 | M123: =OFFSET('EM-Faktoren'!$B$4,'B-Bestandsanalyse'!L123-4,) -> Umweltwärme
C124: Umweltwärme aus Abwasser | K124: =OFFSET('EM-Faktoren'!$C$1,L124-1,$K$173-2020+1) ->  | L124: 27 | M124: =OFFSET('EM-Faktoren'!$B$4,'B-Bestandsanalyse'!L124-4,) -> Umweltwärme
C125: Sonstige fossile Brennstoffe | K125: =OFFSET('EM-Faktoren'!$C$1,L125-1,$K$173-2020+1) ->  | L125: 14 | M125: =OFFSET('EM-Faktoren'!$B$4,'B-Bestandsanalyse'!L125-4,) -> Sonstige
C126: Sonstige erneuerbare Energien | K126: =OFFSET('EM-Faktoren'!$C$1,L126-1,$K$173-2020+1) ->  | L126: 28 | M126: =OFFSET('EM-Faktoren'!$B$4,'B-Bestandsanalyse'!L126-4,) -> sonstige Erneuerbare
C127: Summe | D127: =SUM(D95:D126) -> 0
B130: B.11 | C130: Jährlicher Endenergieverbrauch aus Gasnetzen nach Energieträgern nach Anlage 2 Abschnitt III Nr. 6
C132: Endenergieverbrauch Gasnetze | D132: Endenergieverbrauch | E132: Hinweise | K132: =+'A-Allgemeine Angaben'!D22 -> 0
C133: Basisjahr | K133: Emissionsfaktor zum Basisjahr (Feld A3) | L133: Zeile | M133: Energieträger | N133: THG-Emissionen
C134: MWh/a | N134: kt
C135: Erdgas | K135: =K97 ->  | L135: =L97 -> 5 | M135: Erdgas | N135: =D135*K135/1000 -> 
C136: Flüssiggas | K136: =K98 ->  | L136: =L98 -> 7 | M136: Flüssiggas | N136: =D136*K136/1000 -> 
C137: Wasserstoff | K137: =K100 ->  | L137: =L100 -> 12 | M137: Wasserstoff
C138: Wasserstoffderivate | K138: =K101 ->  | L138: =L101 -> 13 | M138: PtX | N138: =D138*K138/1000 -> 
C139: Grubengas | K139: =K112 ->  | L139: =L112 -> 22 | M139: Deponiegas/Grubengas
C140: Biogas | K140: =K110 ->  | L140: =L110 -> 21 | M140: Biogas
C141: Biomethan | K141: =K111 ->  | L141: =L111 -> 25 | M141: Synth. Brennstoffe
C142: Deponiegas | K142: =K112 ->  | L142: =L112 -> 22 | M142: Deponiegas/Grubengas
C143: Klärgas | K143: =K113 ->  | L143: =L113 -> 18 | M143: Klärgas
C144: Summe | D144: =SUM(D135:D143) -> 0
B147: B.12 | C147: Anzahl dezentraler Wärmerzeuger, einschließlich Hausübergabestationen, nach Art der Wärmeerzeuger einschließlich des eingesetzten Energieträgers nach Anlage 2 Abschnitt I Nr. 1.5
C149: Anzahl dezentraler Wärmeerzeuger | D149: Anzahl | E149: Hinweise
C150: Basisjahr
C151: Strom-Direktheizung | X151: Stromdirektheizung
C152: Kohle-Heizung | X152: Kohleheizung
C153: Erdgas-Heizung | X153: Erdgasheizung
C154: Flüssiggas-Heizung | X154: Flüssiggasheizung
C155: Heizöl-Heizung | X155: Ölheizung
C156: leitungsgebundene Wärme (Hausübergabestation) | X156: Hausübergabestation
C157: Solarthermie-Heizung | X157: solarthermische Anlage
C158: Erdgas-BHKW | X158: Erdgas-BHKW
C159: Biomasse-BHKW | X159: Biomasse-BHKW
C160: Wärmepumpe (nur ausfüllen, falls nicht wie folgt differenziert wurde) | X160: Wärmepumpe (ohne Differenzierung)
C161: Luft-Wasser-Wärmepumpe | X161: Luft-Wasser-Wärmepumpe
C162: Sole-Wasser-Wärmepumpe | X162: Sole-Wasser-Wärmepumpe
C163: Wasser-Wasser-Wärmepumpe | X163: Wasser-Wasser-Wärmepumpe
C164: Holz-Heizung | X164: Holz-Heizung
C165: Pellets-Heizung | X165: Pelletheizung
C166: Sonstige | X166: sonstige dezentrale Wärmeerzeugunganlagen
C167: Summe | D167: =SUM(D151:D166) -> 0 | X167: dezentrale Wärmeerzeugungsanlagen insgesamt | Y167: nicht in Objektkatalog
B170: B.13 | C170: Treibhausgasemissionen (THG-Emissionen) nach Energieträgern und Sektoren nach Anlage 2 Abschnitt 1 Nr.1
C171: Hinweis: Nicht zur Eingabe durch die Kommunen, automatische Berechnung.
C173: THG-Emissionen Wärmeversorgung | D173: Sektoren optional | K173: =+'A-Allgemeine Angaben'!D22 -> 0
C174: Basisjahr
C175: kt/a | D175: Haushalte | E175: GHD | F175: öffentliche Liegenschaften | G175: Industrie | H175: Gesamtsumme ohne Differenzierung nach Sektoren | I175: Summe (der Spalten D bis G oder H) | K175: Emissionsfaktor zum Basisjahr (Feld A3) | L175: Zeile | M175: Energieträger
C176: Braunkohle | D176: =IF(D48>0,D48*$K176/1000,0) -> 0.0 | E176: 0.0 | F176: 0.0 | G176: 0.0 | H176: 0.0 | K176: =OFFSET('EM-Faktoren'!$C$1,L176-1,$K$173-2020+1) ->  | L176: 10 | M176: =OFFSET('EM-Faktoren'!$B$4,'B-Bestandsanalyse'!L176-4,) -> Braunkohle
C177: Steinkohle | D177: =IF(D49>0,D49*$K177/1000,0) -> 0.0 | E177: 0.0 | F177: 0.0 | G177: 0.0 | H177: 0.0 | K177: =OFFSET('EM-Faktoren'!$C$1,L177-1,$K$173-2020+1) ->  | L177: 9 | M177: =OFFSET('EM-Faktoren'!$B$4,'B-Bestandsanalyse'!L177-4,) -> Kohlen (Steinkohle)
C178: Erdgas | D178: =IF(D50>0,D50*$K178/1000,0) -> 0.0 | E178: 0.0 | F178: 0.0 | G178: 0.0 | H178: 0.0 | K178: =OFFSET('EM-Faktoren'!$C$1,L178-1,$K$173-2020+1) ->  | L178: 5 | M178: =OFFSET('EM-Faktoren'!$B$4,'B-Bestandsanalyse'!L178-4,) -> Erdgas
C179: Flüssiggas | D179: =IF(D51>0,D51*$K179/1000,0) -> 0.0 | E179: 0.0 | F179: 0.0 | G179: 0.0 | H179: 0.0 | K179: =OFFSET('EM-Faktoren'!$C$1,L179-1,$K$173-2020+1) ->  | L179: 7 | M179: =OFFSET('EM-Faktoren'!$B$4,'B-Bestandsanalyse'!L179-4,) -> Flüssiggas
C180: Heizöl | D180: =IF(D52>0,D52*$K180/1000,0) -> 0.0 | E180: 0.0 | F180: 0.0 | G180: 0.0 | H180: 0.0 | K180: =OFFSET('EM-Faktoren'!$C$1,L180-1,$K$173-2020+1) ->  | L180: 6 | M180: =OFFSET('EM-Faktoren'!$B$4,'B-Bestandsanalyse'!L180-4,) -> Heizöl
C181: Wasserstoff | D181: =IF(D53>0,D53*$K181/1000,0) -> 0.0 | E181: 0.0 | F181: 0.0 | G181: 0.0 | H181: 0.0 | K181: =OFFSET('EM-Faktoren'!$C$1,L181-1,$K$173-2020+1) ->  | L181: 12 | M181: =OFFSET('EM-Faktoren'!$B$4,'B-Bestandsanalyse'!L181-4,) -> Wasserstoff
C182: Wasserstoffderivate | D182: =IF(D54>0,D54*$K182/1000,0) -> 0.0 | E182: 0.0 | F182: 0.0 | G182: 0.0 | H182: 0.0 | K182: =OFFSET('EM-Faktoren'!$C$1,L182-1,$K$173-2020+1) ->  | L182: 13 | M182: =OFFSET('EM-Faktoren'!$B$4,'B-Bestandsanalyse'!L182-4,) -> PtX
C183: Grubengas | D183: =IF(D55>0,D55*$K183/1000,0) -> 0.0 | E183: 0.0 | F183: 0.0 | G183: 0.0 | H183: 0.0 | K183: =OFFSET('EM-Faktoren'!$C$1,L183-1,$K$173-2020+1) ->  | L183: 22 | M183: =OFFSET('EM-Faktoren'!$B$4,'B-Bestandsanalyse'!L183-4,) -> Deponiegas/Grubengas
C184: nichtbiogener Abfall | D184: =IF(D56>0,D56*$K184/1000,0) -> 0.0 | E184: 0.0 | F184: 0.0 | G184: 0.0 | H184: 0.0 | K184: =OFFSET('EM-Faktoren'!$C$1,L184-1,$K$173-2020+1) ->  | L184: 23 | M184: =OFFSET('EM-Faktoren'!$B$4,'B-Bestandsanalyse'!L184-4,) -> Abfall
C185: biogener Abfall | D185: =IF(D57>0,D57*$K185/1000,0) -> 0.0 | E185: 0.0 | F185: 0.0 | G185: 0.0 | H185: 0.0 | K185: =OFFSET('EM-Faktoren'!$C$1,L185-1,$K$173-2020+1) ->  | L185: 23 | M185: =OFFSET('EM-Faktoren'!$B$4,'B-Bestandsanalyse'!L185-4,) -> Abfall
C186: Abwärme < 60 °C | D186: =IF(D58>0,D58*$K186/1000,0) -> 0.0 | E186: 0.0 | F186: 0.0 | G186: 0.0 | H186: 0.0 | K186: =OFFSET('EM-Faktoren'!$C$1,L186-1,$K$173-2020+1) ->  | L186: 27 | M186: =OFFSET('EM-Faktoren'!$B$4,'B-Bestandsanalyse'!L186-4,) -> Umweltwärme
C187: Abwärme 60 bis 110 °C | D187: =IF(D59>0,D59*$K187/1000,0) -> 0.0 | E187: 0.0 | F187: 0.0 | G187: 0.0 | H187: 0.0 | K187: =OFFSET('EM-Faktoren'!$C$1,L187-1,$K$173-2020+1) ->  | L187: 27 | M187: =OFFSET('EM-Faktoren'!$B$4,'B-Bestandsanalyse'!L187-4,) -> Umweltwärme
C188: Abwärme >= 110 °C | D188: =IF(D60>0,D60*$K188/1000,0) -> 0.0 | E188: 0.0 | F188: 0.0 | G188: 0.0 | H188: 0.0 | K188: =OFFSET('EM-Faktoren'!$C$1,L188-1,$K$173-2020+1) ->  | L188: 27 | M188: =OFFSET('EM-Faktoren'!$B$4,'B-Bestandsanalyse'!L188-4,) -> Umweltwärme
C189: feste Biomasse (ohne Altholz) | D189: =IF(D61>0,D61*$K189/1000,0) -> 0.0 | E189: 0.0 | F189: 0.0 | G189: 0.0 | H189: 0.0 | K189: =OFFSET('EM-Faktoren'!$C$1,L189-1,$K$173-2020+1) ->  | L189: 19 | M189: =OFFSET('EM-Faktoren'!$B$4,'B-Bestandsanalyse'!L189-4,) -> EE-Festbrennstoffe
C190: Altholz | D190: =IF(D62>0,D62*$K190/1000,0) -> 0.0 | E190: 0.0 | F190: 0.0 | G190: 0.0 | H190: 0.0 | K190: =OFFSET('EM-Faktoren'!$C$1,L190-1,$K$173-2020+1) ->  | L190: 19 | M190: =OFFSET('EM-Faktoren'!$B$4,'B-Bestandsanalyse'!L190-4,) -> EE-Festbrennstoffe
C191: Biogas | D191: =IF(D63>0,D63*$K191/1000,0) -> 0.0 | E191: 0.0 | F191: 0.0 | G191: 0.0 | H191: 0.0 | K191: =OFFSET('EM-Faktoren'!$C$1,L191-1,$K$173-2020+1) ->  | L191: 21 | M191: =OFFSET('EM-Faktoren'!$B$4,'B-Bestandsanalyse'!L191-4,) -> Biogas
C192: Biomethan | D192: =IF(D64>0,D64*$K192/1000,0) -> 0.0 | E192: 0.0 | F192: 0.0 | G192: 0.0 | H192: 0.0 | K192: =OFFSET('EM-Faktoren'!$C$1,L192-1,$K$173-2020+1) ->  | L192: 25 | M192: =OFFSET('EM-Faktoren'!$B$4,'B-Bestandsanalyse'!L192-4,) -> Synth. Brennstoffe
C193: Deponiegas | D193: =IF(D65>0,D65*$K193/1000,0) -> 0.0 | E193: 0.0 | F193: 0.0 | G193: 0.0 | H193: 0.0 | K193: =OFFSET('EM-Faktoren'!$C$1,L193-1,$K$173-2020+1) ->  | L193: 22 | M193: =OFFSET('EM-Faktoren'!$B$4,'B-Bestandsanalyse'!L193-4,) -> Deponiegas/Grubengas
C194: Klärgas | D194: =IF(D66>0,D66*$K194/1000,0) -> 0.0 | E194: 0.0 | F194: 0.0 | G194: 0.0 | H194: 0.0 | K194: =OFFSET('EM-Faktoren'!$C$1,L194-1,$K$173-2020+1) ->  | L194: 18 | M194: =OFFSET('EM-Faktoren'!$B$4,'B-Bestandsanalyse'!L194-4,) -> Klärgas
C195: flüssige Biomasse | D195: =IF(D67>0,D67*$K195/1000,0) -> 0.0 | E195: 0.0 | F195: 0.0 | G195: 0.0 | H195: 0.0 | K195: =OFFSET('EM-Faktoren'!$C$1,L195-1,$K$173-2020+1) ->  | L195: 20 | M195: =OFFSET('EM-Faktoren'!$B$4,'B-Bestandsanalyse'!L195-4,) -> Flüssige Biomasse
C196: Strom Wärmepumpe | D196: =IF(D68>0,D68*$K196/1000,0) -> 0.0 | E196: 0.0 | F196: 0.0 | G196: 0.0 | H196: 0.0 | K196: =OFFSET('EM-Faktoren'!$C$1,L196-1,$K$173-2020+1) ->  | L196: 4 | M196: =OFFSET('EM-Faktoren'!$B$4,'B-Bestandsanalyse'!L196-4,) -> Strom
C197: Strom Direktheizung | D197: =IF(D69>0,D69*$K197/1000,0) -> 0.0 | E197: 0.0 | F197: 0.0 | G197: 0.0 | H197: 0.0 | K197: =OFFSET('EM-Faktoren'!$C$1,L197-1,$K$173-2020+1) ->  | L197: 4 | M197: =OFFSET('EM-Faktoren'!$B$4,'B-Bestandsanalyse'!L197-4,) -> Strom
C198: Solarthermie Dachlfächen-Anlagen | D198: =IF(D70>0,D70*$K198/1000,0) -> 0.0 | E198: 0.0 | F198: 0.0 | G198: 0.0 | H198: 0.0 | K198: =OFFSET('EM-Faktoren'!$C$1,L198-1,$K$173-2020+1) ->  | L198: 11 | M198: =OFFSET('EM-Faktoren'!$B$4,'B-Bestandsanalyse'!L198-4,) -> Solarwärme
C199: Solarthermie Freiflächenanlagen | D199: =IF(D71>0,D71*$K199/1000,0) -> 0.0 | E199: 0.0 | F199: 0.0 | G199: 0.0 | H199: 0.0 | K199: =OFFSET('EM-Faktoren'!$C$1,L199-1,$K$173-2020+1) ->  | L199: 11 | M199: =OFFSET('EM-Faktoren'!$B$4,'B-Bestandsanalyse'!L199-4,) -> Solarwärme
C200: oberflächennahe Geothermie | D200: =IF(D72>0,D72*$K200/1000,0) -> 0.0 | E200: 0.0 | F200: 0.0 | G200: 0.0 | H200: 0.0 | K200: =OFFSET('EM-Faktoren'!$C$1,L200-1,$K$173-2020+1) ->  | L200: 27 | M200: =OFFSET('EM-Faktoren'!$B$4,'B-Bestandsanalyse'!L200-4,) -> Umweltwärme
C201: tiefe Geothermie | D201: =IF(D73>0,D73*$K201/1000,0) -> 0.0 | E201: 0.0 | F201: 0.0 | G201: 0.0 | H201: 0.0 | K201: =OFFSET('EM-Faktoren'!$C$1,L201-1,$K$173-2020+1) ->  | L201: 26 | M201: =OFFSET('EM-Faktoren'!$B$4,'B-Bestandsanalyse'!L201-4,) -> Tiefe Geothermie
C202: Umweltwärme aus Oberflächengewässern | D202: =IF(D74>0,D74*$K202/1000,0) -> 0.0 | E202: 0.0 | F202: 0.0 | G202: 0.0 | H202: 0.0 | K202: =OFFSET('EM-Faktoren'!$C$1,L202-1,$K$173-2020+1) ->  | L202: 27 | M202: =OFFSET('EM-Faktoren'!$B$4,'B-Bestandsanalyse'!L202-4,) -> Umweltwärme
C203: Umweltwärme aus Grubenwasser | D203: =IF(D75>0,D75*$K203/1000,0) -> 0.0 | E203: 0.0 | F203: 0.0 | G203: 0.0 | H203: 0.0 | K203: =OFFSET('EM-Faktoren'!$C$1,L203-1,$K$173-2020+1) ->  | L203: 27 | M203: =OFFSET('EM-Faktoren'!$B$4,'B-Bestandsanalyse'!L203-4,) -> Umweltwärme
C204: Umweltwärme aus Luft | D204: =IF(D76>0,D76*$K204/1000,0) -> 0.0 | E204: 0.0 | F204: 0.0 | G204: 0.0 | H204: 0.0 | K204: =OFFSET('EM-Faktoren'!$C$1,L204-1,$K$173-2020+1) ->  | L204: 27 | M204: =OFFSET('EM-Faktoren'!$B$4,'B-Bestandsanalyse'!L204-4,) -> Umweltwärme
C205: Umweltwärme aus Abwasser | D205: =IF(D77>0,D77*$K205/1000,0) -> 0.0 | E205: 0.0 | F205: 0.0 | G205: 0.0 | H205: 0.0 | K205: =OFFSET('EM-Faktoren'!$C$1,L205-1,$K$173-2020+1) ->  | L205: 27 | M205: =OFFSET('EM-Faktoren'!$B$4,'B-Bestandsanalyse'!L205-4,) -> Umweltwärme
C206: Sonstige fossile Brennstoffe | D206: =IF(D78>0,D78*$K206/1000,0) -> 0.0 | E206: 0.0 | F206: 0.0 | G206: 0.0 | H206: 0.0 | K206: =OFFSET('EM-Faktoren'!$C$1,L206-1,$K$173-2020+1) ->  | L206: 14 | M206: =OFFSET('EM-Faktoren'!$B$4,'B-Bestandsanalyse'!L206-4,) -> Sonstige
C207: Sonstige erneuerbaren Energien | D207: =IF(D79>0,D79*$K207/1000,0) -> 0.0 | E207: 0.0 | F207: 0.0 | G207: 0.0 | H207: 0.0 | K207: =OFFSET('EM-Faktoren'!$C$1,L207-1,$K$173-2020+1) ->  | L207: 28 | M207: =OFFSET('EM-Faktoren'!$B$4,'B-Bestandsanalyse'!L207-4,) -> sonstige Erneuerbare
C208: Summe | D208: =SUM(D176:D207) -> 0.0 | E208: =SUM(E176:E207) -> 0.0 | F208: 0.0 | G208: 0.0 | H208: 0.0 | I208: =SUM(I176:I207) -> 
C211: davon
C212: THG Emissionen leitungsgebundene Wärme | I212: =SUM(N95:N126) ->  | X212: Wärmenetze
C213: THG Emissionen Gasnetze | I213: =SUM(N135:N143) -> 

Sheet C-Potenzialanalyse
B3: Template für die Datenerfassung durch Kommunen zur KWP
B6: Datenerfassung KWP
B7: Legende Eingabefelder:
C8: Dropdown-Menü
C9: Numerische Angaben
C10: Kurze textliche Angaben
C11: Optionale Angaben
B13: # | C13: Inhalte
C14: C - Angaben zu den Ergebnissen der KWP - Potenzialanalyse
C16: Bewertung potenzieller Synergieeffekte (Pflicht bei Gemeinden >45.000 EW nach Anlage 2 Abschnitt 2 Satz 5)
D18: Eingabefeld(er)
B19: C.1 | C19: Wurden Synergieeffekte identifiziert?
B20: C1.1 | C20: ... technische Synergieeffekte | X20: technische Synergieeffekte
B21: C1.2 | C21: ... organisatorische bzw. personelle Synergieeffekte | X21: organisatorische-personelle Synergieeffekte
B22: C1.3 | C22: ... finanzielle Synergieeffekte | X22: finanzielle Synergieeffekte
B24: C.2 | C24: Wurden Erneuerbare-Energie-Gemeinschaften berücksichtigt? | X24: Erneuerbare-Energie-Gemeinschaften
C27: Energetische Potenziale
B29: C.3 | C29: Potenziale zur Senkung des Wärmebedarfs durch Steigerung der Energieeffizienz
C31: Potenziale Endenergieeinsparung | D31: Summe der Potenziale zur Senkung des Wärmebedarfs durch Steigerung der Energieeffizienz | E31: Hinweise
C32: in MWh/a
B33: C3.1 | C33: Wärmebedarfsreduktion in Gebäuden | X33: Potenzial Wärmebedarfsreduktion Gebäude
C36: Sanierungsrate
B38: C.4 | C38: Angenommene Sanierungsrate für das gesamte beplante Gebiet
C40: Angenommene Sanierungsrate | E40: für den Fall, dass eine nichtlineare Sanierungsrate angenommen wurde | I40: Hinweise
C41: in Prozent | D41: linear | E41: Basisjahr bis 2030 | F41: 2030 bis 2035 | G41: 2035 bis 2040
C42: Angenommene Sanierungsrate | X42: Sanierungsrate linear | Y42: Sanierungsrate nichtlinear
C45: Energetische Potenziale
B47: C.5 | C47: Potenziale lokaler erneuerbarer Energien (EE) zur Strom- und Wärmeversorgung nach Energieträgern
C49: Hinweis zur erneuerbaren Stromversorgung
C50: Erneuerbare Energien sollen überwiegend in effizienten KWK-Anlagen genutzt werden. Bitte ermitteln sie das entsprechend reduzierte Potenzial für die Wärmeerzeugung.
C52: Potenzial Wärmeerzeugung | D52: Summe der Potenziale EE | E52: Hinweise | F52: Erläuterung
C53: in MWh/a
C54: Wasserstoff | F54: mittels überschüssigem EE-Strom lokal erzeugter Wasserstoff
C55: Wasserstoffderivate | F55: mittels überschüssigem EE-Strom lokal erzeugter Wasserstoffderivate
C56: Grubengas
C57: nichtbiogener Abfall | F57: aus Einzugsgebiet bestehender und geplanter Anlagen in der Kommune
C58: biogener Abfall | F58: aus Einzugsgebiet bestehender und geplanter Anlagen in der Kommune
C59: Abwärme (Summe) | F59: Summe wenn nicht nach Temperaturniveau unterschieden werden kann | X59: =C59 -> Abwärme (Summe)
C60: Abwärme < 60 °C
C61: Abwärme 60 bis 110 °C
C62: Abwärme >= 110 °C
C63: feste Biomasse (ohne Altholz) | F63: unter Berücksichtigung bestehender stofflicher Nutzung (Holzindustrie, Papier etc.)
C64: Altholz | F64: aus Einzugsgebiet bestehender und geplanter Anlagen in der Kommune
C65: Biogas | F65: lokal erzeugtes Biogas
C66: Biomethan | F66: lokal erzeugtes Biomethan
C67: Deponiegas | F67: Ausgasung der Deponien berücksichtigen
C68: Klärgas
C69: flüssige Biomasse | F69: lokal erzeugte flüssige Biomasse
C70: Erneuerbare Stromerzeugung | F70: lokal erzeugter EE-Strom (Windkraft, Wasserkraft, PV) und Strom aus erneuerbarer KWK | X70: =C70 -> Erneuerbare Stromerzeugung
C71: Solarthermie Dach-Anlagen | F71: Aufteilung der Dachflächen für PV und Solarthermie berücksichtigen
C72: Solarthermie Freiflächenanlagen | F72: Aufteilung der verfügbaren Freiflächen für PV und Solarthermie berücksichtigen
C73: oberflächennahe Geothermie | F73: nur auf gebäudenahen Flächen oder wirtschaftliche Erschließung mit Wärmenetzen
C74: tiefe Geothermie
C75: Umweltwärme aus Oberflächengewässern | F75: unter Berücksichtigung von Restriktionen zur Entnahme von Wärme und Verfügbarkeit von Wärmenetzen
C76: Umweltwärme aus Grubenwasser
C77: Umweltwärme aus Abwasser
C78: Summe | D78: =SUM(D54:D77) -> 0

Sheet D-Zielszenario
B3: Template für die Datenerfassung durch Kommunen zur KWP
B6: Datenerfassung KWP
B7: Legende Eingabefelder:
C8: Dropdown-Menü
C9: Numerische Angaben
C10: Kurze textliche Angaben
C11: Optionale Angaben
C12: Rechenergebnisse (keine Eingabefelder)
B14: # | C14: Inhalte
C15: D - Angaben zu den Ergebnissen der KWP - Maßgebliches Zielszenario
C17: Energienetze | D17: Verweis WPG
E19: Eingabefeld(er)
E20: 2030 | F20: 2035 | G20: 2040 | H20: Einheit | I20: Hinweise
F21: 2025 optional f. vereinfachtes Verfahren
B22: D.1 | C22: Anzahl Wärmenetze | H22: Anzahl | X22: Anzahl Wärmenetze
B23: D.2 | C23: Gesamte Trassenlänge aller Wärmenetze | H23: km | X23: Gesamtlänge Wärmenetze
B24: D.3 | C24: Kapazität Wärmespeicher | H24: MWh | X24: Kapazität Wärmespeicher
B25: D.4 | C25: Anzahl der Gebäude mit Anschluss an ein Wärmenetz | D25: Anlage 2 Abschnitt III Nr. 5 | H25: Anzahl | X25: Anzahl Gebäude mit Wärmenetzanschluss
B26: D.5 | C26: Anteil der Gebäude mit Wärmenetzanschluss an der Gesamtheit der Gebäude | D26: Anlage 2 Abschnitt III Nr. 5 | H26: % | X26: Anteil Gebäude mit Wärmenetzanschluss
B27: D.6 | C27: Anzahl der Gebäude mit Anschluss an ein Gasnetz | D27: Anlage 2 Abschnitt III Nr. 6 | H27: Anzahl | X27: Anzahl Gebäude mit Gasnetzanschluss
B28: D.7 | C28: Anteil der Gebäude mit Gasnetzanschluss an der Gesamtheit der Gebäude | D28: Anlage 2 Abschnitt III Nr. 6 | H28: % | X28: Anteil Gebäude mit Gasnetzanschluss
C31: Endenergieverbrauch
B33: D.8 | C33: Bedarf an grünem Methan für das KWP Zieljahr nach § 28 Abs. 5
D35: Eingabefeld(er) | E35: Einheit
C36: Endenergieverbrauch | D36: 2040
C37: grünes Methan | E37: MWh/a | X37: grünes Methan
B40: D.9 | C40: Jährlicher Endenergieverbrauch gesamte Wärmeversorgung nach Energieträgern und Sektoren nach Anlage 2 Abschnitt III Nr. 1 WPG
C42: Hinweis zu Wärmepumpen und Umweltwärme
C43: Wärmepumpen haben die Besonderheit, dass sie zwei der im Template gelisteten Energieträger nutzen, um Wärme zu erzeugen. Daher müssen die jeweiligen Energiemengen beiden Energieträgern zugeordnet werden. Eine Luft-Wärmepumpe wird folglich im Energieträger Umweltwärme Luft und dem Energieträger Strom Wärmepumpe berücksichtigt.
C46: Hinweis zu leitungsgebundener Wärme (Wärmenetze)
C47: Der Endenergieverbrauch für die Wärmenetze muss in der Tabelle berücksichtigt werden, inkl. Umwandlungs- und Leitungsverlusten
C49: ='B-Bestandsanalyse'!$C$45 -> Endenergieverbrauch Wärme | D49: Sektoren optional
C50: 2030 | M50: 2030
C51: MWh/a | D51: Haushalte | E51: GHD | F51: öffentliche Liegenschaften | G51: Industrie | H51: Gesamtsumme ohne Differenzierung nach Sektoren | I51: Summe (der Spalten D bis G oder H) | J51: Hinweise | M51: Emissionsfaktor | N51: Zeile | O51: Energieträger | P51: Tonnen THG | Q51: Haushalte | R51: GHD | S51: öff. Liegenschaften | T51: Industrie
C52: Braunkohle | I52: =_xlfn.IFS(Z52="-","-",H52>SUM(D52:G52),H52,X52="OK",SUM(D52:G52),Y52="OK",H52) -> - | K52: =IF(SUM(D52:G52)>0,IF(H52>0,"Fehler: entweder Aufteilug nach Sektoren ODER Gesammtsumme",""),"") ->  | M52: =OFFSET('EM-Faktoren'!$C$1,N52-1,$M$50-2020+1) -> 0.441 | N52: 10 | O52: =OFFSET('EM-Faktoren'!$B$4,N52-4,) -> Braunkohle | P52: =+I52*M52 ->  | Q52: =D52*$M52 -> 0 | R52: =E52*$M52 -> 0 | S52: 0 | T52: 0 | X52: =IFERROR(_xlfn.IFS(D52="","-",E52="","-",F52="","-",G52="","-"),"OK") -> - | Y52: =IFERROR(_xlfn.IFS(H52="","-"),"OK") -> - | Z52: =IFERROR(_xlfn.IFS(X52&Y52="--","-"),"OK") -> -
C53: Steinkohle | I53: =_xlfn.IFS(Z53="-","-",H53>SUM(D53:G53),H53,X53="OK",SUM(D53:G53),Y53="OK",H53) -> - | K53: =IF(SUM(D53:G53)>0,IF(H53>0,"Fehler: entweder Aufteilug nach Sektoren ODER Gesammtsumme",""),"") ->  | M53: =OFFSET('EM-Faktoren'!$C$1,N53-1,$M$50-2020+1) -> 0.433 | N53: 9 | O53: =OFFSET('EM-Faktoren'!$B$4,N53-4,) -> Kohlen (Steinkohle) | P53: =+I53*M53 ->  | Q53: =D53*$M53 -> 0 | R53: =E53*$M53 -> 0 | S53: =F53*$M53 -> 0 | T53: =G53*$M53 -> 0 | X53: =IFERROR(_xlfn.IFS(D53="","-",E53="","-",F53="","-",G53="","-"),"OK") -> - | Y53: =IFERROR(_xlfn.IFS(H53="","-"),"OK") -> - | Z53: =IFERROR(_xlfn.IFS(X53&Y53="--","-"),"OK") -> -
C54: Erdgas | I54: =_xlfn.IFS(Z54="-","-",H54>SUM(D54:G54),H54,X54="OK",SUM(D54:G54),Y54="OK",H54) -> - | M54: =OFFSET('EM-Faktoren'!$C$1,N54-1,$M$50-2020+1) -> 0.257 | N54: 5 | O54: =OFFSET('EM-Faktoren'!$B$4,N54-4,) -> Erdgas | Q54: 0 | R54: 0 | S54: 0 | T54: 0 | X54: =IFERROR(_xlfn.IFS(D54="","-",E54="","-",F54="","-",G54="","-"),"OK") -> - | Y54: =IFERROR(_xlfn.IFS(H54="","-"),"OK") -> - | Z54: =IFERROR(_xlfn.IFS(X54&Y54="--","-"),"OK") -> -
C55: Flüssiggas | I55: =_xlfn.IFS(Z55="-","-",H55>SUM(D55:G55),H55,X55="OK",SUM(D55:G55),Y55="OK",H55) -> - | M55: =OFFSET('EM-Faktoren'!$C$1,N55-1,$M$50-2020+1) -> 0.295 | N55: 7 | O55: =OFFSET('EM-Faktoren'!$B$4,N55-4,) -> Flüssiggas | Q55: 0 | R55: 0 | S55: 0 | T55: 0 | X55: =IFERROR(_xlfn.IFS(D55="","-",E55="","-",F55="","-",G55="","-"),"OK") -> - | Y55: =IFERROR(_xlfn.IFS(H55="","-"),"OK") -> - | Z55: =IFERROR(_xlfn.IFS(X55&Y55="--","-"),"OK") -> -
C56: Heizöl | I56: =_xlfn.IFS(Z56="-","-",H56>SUM(D56:G56),H56,X56="OK",SUM(D56:G56),Y56="OK",H56) -> - | M56: =OFFSET('EM-Faktoren'!$C$1,N56-1,$M$50-2020+1) -> 0.311 | N56: 6 | O56: =OFFSET('EM-Faktoren'!$B$4,N56-4,) -> Heizöl | Q56: 0 | R56: 0 | S56: 0 | T56: 0 | X56: =IFERROR(_xlfn.IFS(D56="","-",E56="","-",F56="","-",G56="","-"),"OK") -> - | Y56: =IFERROR(_xlfn.IFS(H56="","-"),"OK") -> - | Z56: =IFERROR(_xlfn.IFS(X56&Y56="--","-"),"OK") -> -
C57: Wasserstoff | I57: =_xlfn.IFS(Z57="-","-",H57>SUM(D57:G57),H57,X57="OK",SUM(D57:G57),Y57="OK",H57) -> - | M57: =OFFSET('EM-Faktoren'!$C$1,N57-1,$M$50-2020+1) -> 0.050 | N57: 12 | O57: =OFFSET('EM-Faktoren'!$B$4,N57-4,) -> Wasserstoff | Q57: 0 | R57: 0 | S57: 0 | T57: 0 | X57: =IFERROR(_xlfn.IFS(D57="","-",E57="","-",F57="","-",G57="","-"),"OK") -> - | Y57: =IFERROR(_xlfn.IFS(H57="","-"),"OK") -> - | Z57: =IFERROR(_xlfn.IFS(X57&Y57="--","-"),"OK") -> -
C58: Wasserstoffderivate | I58: =_xlfn.IFS(Z58="-","-",H58>SUM(D58:G58),H58,X58="OK",SUM(D58:G58),Y58="OK",H58) -> - | M58: =OFFSET('EM-Faktoren'!$C$1,N58-1,$M$50-2020+1) -> 0.041 | N58: 13 | O58: =OFFSET('EM-Faktoren'!$B$4,N58-4,) -> PtX | Q58: 0 | R58: 0 | S58: 0 | T58: 0 | X58: =IFERROR(_xlfn.IFS(D58="","-",E58="","-",F58="","-",G58="","-"),"OK") -> - | Y58: =IFERROR(_xlfn.IFS(H58="","-"),"OK") -> - | Z58: =IFERROR(_xlfn.IFS(X58&Y58="--","-"),"OK") -> -
C59: Grubengas | I59: =_xlfn.IFS(Z59="-","-",H59>SUM(D59:G59),H59,X59="OK",SUM(D59:G59),Y59="OK",H59) -> - | M59: =OFFSET('EM-Faktoren'!$C$1,N59-1,$M$50-2020+1) -> 0.135 | N59: 22 | O59: =OFFSET('EM-Faktoren'!$B$4,N59-4,) -> Deponiegas/Grubengas | Q59: 0 | R59: 0 | S59: 0 | T59: 0 | X59: =IFERROR(_xlfn.IFS(D59="","-",E59="","-",F59="","-",G59="","-"),"OK") -> - | Y59: =IFERROR(_xlfn.IFS(H59="","-"),"OK") -> - | Z59: =IFERROR(_xlfn.IFS(X59&Y59="--","-"),"OK") -> -
C60: nichtbiogener Abfall | I60: =_xlfn.IFS(Z60="-","-",H60>SUM(D60:G60),H60,X60="OK",SUM(D60:G60),Y60="OK",H60) -> - | M60: =OFFSET('EM-Faktoren'!$C$1,N60-1,$M$50-2020+1) -> 0.121 | N60: 23 | O60: =OFFSET('EM-Faktoren'!$B$4,N60-4,) -> Abfall | Q60: 0 | R60: 0 | S60: 0 | T60: 0 | X60: =IFERROR(_xlfn.IFS(D60="","-",E60="","-",F60="","-",G60="","-"),"OK") -> - | Y60: =IFERROR(_xlfn.IFS(H60="","-"),"OK") -> - | Z60: =IFERROR(_xlfn.IFS(X60&Y60="--","-"),"OK") -> -
C61: biogener Abfall | I61: =_xlfn.IFS(Z61="-","-",H61>SUM(D61:G61),H61,X61="OK",SUM(D61:G61),Y61="OK",H61) -> - | M61: =OFFSET('EM-Faktoren'!$C$1,N61-1,$M$50-2020+1) -> 0.121 | N61: 23 | O61: =OFFSET('EM-Faktoren'!$B$4,N61-4,) -> Abfall | Q61: 0 | R61: 0 | S61: 0 | T61: 0 | X61: =IFERROR(_xlfn.IFS(D61="","-",E61="","-",F61="","-",G61="","-"),"OK") -> - | Y61: =IFERROR(_xlfn.IFS(H61="","-"),"OK") -> - | Z61: =IFERROR(_xlfn.IFS(X61&Y61="--","-"),"OK") -> -
C62: Abwärme < 60 °C | I62: =_xlfn.IFS(Z62="-","-",H62>SUM(D62:G62),H62,X62="OK",SUM(D62:G62),Y62="OK",H62) -> - | M62: =OFFSET('EM-Faktoren'!$C$1,N62-1,$M$50-2020+1) -> 0.010 | N62: 27 | O62: =OFFSET('EM-Faktoren'!$B$4,N62-4,) -> Umweltwärme | Q62: 0 | R62: 0 | S62: 0 | T62: 0 | X62: =IFERROR(_xlfn.IFS(D62="","-",E62="","-",F62="","-",G62="","-"),"OK") -> - | Y62: =IFERROR(_xlfn.IFS(H62="","-"),"OK") -> - | Z62: =IFERROR(_xlfn.IFS(X62&Y62="--","-"),"OK") -> -
C63: Abwärme 60 bis 110 °C | I63: =_xlfn.IFS(Z63="-","-",H63>SUM(D63:G63),H63,X63="OK",SUM(D63:G63),Y63="OK",H63) -> - | M63: =OFFSET('EM-Faktoren'!$C$1,N63-1,$M$50-2020+1) -> 0.010 | N63: 27 | O63: =OFFSET('EM-Faktoren'!$B$4,N63-4,) -> Umweltwärme | Q63: 0 | R63: 0 | S63: 0 | T63: 0 | X63: =IFERROR(_xlfn.IFS(D63="","-",E63="","-",F63="","-",G63="","-"),"OK") -> - | Y63: =IFERROR(_xlfn.IFS(H63="","-"),"OK") -> - | Z63: =IFERROR(_xlfn.IFS(X63&Y63="--","-"),"OK") -> -
C64: Abwärme >= 110 °C | I64: =_xlfn.IFS(Z64="-","-",H64>SUM(D64:G64),H64,X64="OK",SUM(D64:G64),Y64="OK",H64) -> - | M64: =OFFSET('EM-Faktoren'!$C$1,N64-1,$M$50-2020+1) -> 0.010 | N64: 27 | O64: =OFFSET('EM-Faktoren'!$B$4,N64-4,) -> Umweltwärme | P64: =+I64*M64 ->  | Q64: =D64*$M64 -> 0 | R64: =E64*$M64 -> 0 | S64: =F64*$M64 -> 0 | T64: =G64*$M64 -> 0 | X64: =IFERROR(_xlfn.IFS(D64="","-",E64="","-",F64="","-",G64="","-"),"OK") -> - | Y64: =IFERROR(_xlfn.IFS(H64="","-"),"OK") -> - | Z64: =IFERROR(_xlfn.IFS(X64&Y64="--","-"),"OK") -> -
C65: feste Biomasse (ohne Altholz) | I65: =_xlfn.IFS(Z65="-","-",H65>SUM(D65:G65),H65,X65="OK",SUM(D65:G65),Y65="OK",H65) -> - | M65: =OFFSET('EM-Faktoren'!$C$1,N65-1,$M$50-2020+1) -> 0.064 | N65: 19 | O65: =OFFSET('EM-Faktoren'!$B$4,N65-4,) -> EE-Festbrennstoffe | Q65: 0 | R65: 0 | S65: 0 | T65: 0 | X65: =IFERROR(_xlfn.IFS(D65="","-",E65="","-",F65="","-",G65="","-"),"OK") -> - | Y65: =IFERROR(_xlfn.IFS(H65="","-"),"OK") -> - | Z65: =IFERROR(_xlfn.IFS(X65&Y65="--","-"),"OK") -> -
C66: Altholz | I66: =_xlfn.IFS(Z66="-","-",H66>SUM(D66:G66),H66,X66="OK",SUM(D66:G66),Y66="OK",H66) -> - | M66: =OFFSET('EM-Faktoren'!$C$1,N66-1,$M$50-2020+1) -> 0.064 | N66: 19 | O66: =OFFSET('EM-Faktoren'!$B$4,N66-4,) -> EE-Festbrennstoffe | Q66: 0 | R66: 0 | S66: 0 | T66: 0 | X66: =IFERROR(_xlfn.IFS(D66="","-",E66="","-",F66="","-",G66="","-"),"OK") -> - | Y66: =IFERROR(_xlfn.IFS(H66="","-"),"OK") -> - | Z66: =IFERROR(_xlfn.IFS(X66&Y66="--","-"),"OK") -> -
C67: Biogas | I67: =_xlfn.IFS(Z67="-","-",H67>SUM(D67:G67),H67,X67="OK",SUM(D67:G67),Y67="OK",H67) -> - | M67: =OFFSET('EM-Faktoren'!$C$1,N67-1,$M$50-2020+1) -> 0.124 | N67: 21 | O67: =OFFSET('EM-Faktoren'!$B$4,N67-4,) -> Biogas | Q67: 0 | R67: 0 | S67: 0 | T67: 0 | X67: =IFERROR(_xlfn.IFS(D67="","-",E67="","-",F67="","-",G67="","-"),"OK") -> - | Y67: =IFERROR(_xlfn.IFS(H67="","-"),"OK") -> - | Z67: =IFERROR(_xlfn.IFS(X67&Y67="--","-"),"OK") -> -
C68: Biomethan | I68: =_xlfn.IFS(Z68="-","-",H68>SUM(D68:G68),H68,X68="OK",SUM(D68:G68),Y68="OK",H68) -> - | M68: =OFFSET('EM-Faktoren'!$C$1,N68-1,$M$50-2020+1) -> 0.041 | N68: 25 | O68: =OFFSET('EM-Faktoren'!$B$4,N68-4,) -> Synth. Brennstoffe | Q68: 0 | R68: 0 | S68: 0 | T68: 0 | X68: =IFERROR(_xlfn.IFS(D68="","-",E68="","-",F68="","-",G68="","-"),"OK") -> - | Y68: =IFERROR(_xlfn.IFS(H68="","-"),"OK") -> - | Z68: =IFERROR(_xlfn.IFS(X68&Y68="--","-"),"OK") -> -
C69: Deponiegas | I69: =_xlfn.IFS(Z69="-","-",H69>SUM(D69:G69),H69,X69="OK",SUM(D69:G69),Y69="OK",H69) -> - | M69: =OFFSET('EM-Faktoren'!$C$1,N69-1,$M$50-2020+1) -> 0.135 | N69: 22 | O69: =OFFSET('EM-Faktoren'!$B$4,N69-4,) -> Deponiegas/Grubengas | Q69: 0 | R69: 0 | S69: 0 | T69: 0 | X69: =IFERROR(_xlfn.IFS(D69="","-",E69="","-",F69="","-",G69="","-"),"OK") -> - | Y69: =IFERROR(_xlfn.IFS(H69="","-"),"OK") -> - | Z69: =IFERROR(_xlfn.IFS(X69&Y69="--","-"),"OK") -> -
C70: Klärgas | I70: =_xlfn.IFS(Z70="-","-",H70>SUM(D70:G70),H70,X70="OK",SUM(D70:G70),Y70="OK",H70) -> - | M70: =OFFSET('EM-Faktoren'!$C$1,N70-1,$M$50-2020+1) -> 0.110 | N70: 18 | O70: =OFFSET('EM-Faktoren'!$B$4,N70-4,) -> Klärgas | Q70: 0 | R70: 0 | S70: 0 | T70: 0 | X70: =IFERROR(_xlfn.IFS(D70="","-",E70="","-",F70="","-",G70="","-"),"OK") -> - | Y70: =IFERROR(_xlfn.IFS(H70="","-"),"OK") -> - | Z70: =IFERROR(_xlfn.IFS(X70&Y70="--","-"),"OK") -> -
C71: flüssige Biomasse | I71: =_xlfn.IFS(Z71="-","-",H71>SUM(D71:G71),H71,X71="OK",SUM(D71:G71),Y71="OK",H71) -> - | M71: =OFFSET('EM-Faktoren'!$C$1,N71-1,$M$50-2020+1) -> 0.300 | N71: 20 | O71: =OFFSET('EM-Faktoren'!$B$4,N71-4,) -> Flüssige Biomasse | Q71: 0 | R71: 0 | S71: 0 | T71: 0 | X71: =IFERROR(_xlfn.IFS(D71="","-",E71="","-",F71="","-",G71="","-"),"OK") -> - | Y71: =IFERROR(_xlfn.IFS(H71="","-"),"OK") -> - | Z71: =IFERROR(_xlfn.IFS(X71&Y71="--","-"),"OK") -> -
C72: Strom Wärmepumpe | I72: =_xlfn.IFS(Z72="-","-",H72>SUM(D72:G72),H72,X72="OK",SUM(D72:G72),Y72="OK",H72) -> - | M72: =OFFSET('EM-Faktoren'!$C$1,N72-1,$M$50-2020+1) -> 0.170 | N72: 4 | O72: =OFFSET('EM-Faktoren'!$B$4,N72-4,) -> Strom | Q72: 0 | R72: 0 | S72: 0 | T72: 0 | X72: =IFERROR(_xlfn.IFS(D72="","-",E72="","-",F72="","-",G72="","-"),"OK") -> - | Y72: =IFERROR(_xlfn.IFS(H72="","-"),"OK") -> - | Z72: =IFERROR(_xlfn.IFS(X72&Y72="--","-"),"OK") -> -
C73: Strom Direktheizung | I73: =_xlfn.IFS(Z73="-","-",H73>SUM(D73:G73),H73,X73="OK",SUM(D73:G73),Y73="OK",H73) -> - | M73: =OFFSET('EM-Faktoren'!$C$1,N73-1,$M$50-2020+1) -> 0.170 | N73: 4 | O73: =OFFSET('EM-Faktoren'!$B$4,N73-4,) -> Strom | Q73: 0 | R73: 0 | S73: 0 | T73: 0 | X73: =IFERROR(_xlfn.IFS(D73="","-",E73="","-",F73="","-",G73="","-"),"OK") -> - | Y73: =IFERROR(_xlfn.IFS(H73="","-"),"OK") -> - | Z73: =IFERROR(_xlfn.IFS(X73&Y73="--","-"),"OK") -> -
C74: Solarthermie Dachflächen-Anlagen | I74: =_xlfn.IFS(Z74="-","-",H74>SUM(D74:G74),H74,X74="OK",SUM(D74:G74),Y74="OK",H74) -> - | M74: =OFFSET('EM-Faktoren'!$C$1,N74-1,$M$50-2020+1) -> 0.023 | N74: 11 | O74: =OFFSET('EM-Faktoren'!$B$4,N74-4,) -> Solarwärme | Q74: 0 | R74: 0 | S74: 0 | T74: 0 | X74: =IFERROR(_xlfn.IFS(D74="","-",E74="","-",F74="","-",G74="","-"),"OK") -> - | Y74: =IFERROR(_xlfn.IFS(H74="","-"),"OK") -> - | Z74: =IFERROR(_xlfn.IFS(X74&Y74="--","-"),"OK") -> -
C75: Solarthermie Freiflächenanlagen | I75: =_xlfn.IFS(Z75="-","-",H75>SUM(D75:G75),H75,X75="OK",SUM(D75:G75),Y75="OK",H75) -> - | M75: =OFFSET('EM-Faktoren'!$C$1,N75-1,$M$50-2020+1) -> 0.023 | N75: 11 | O75: =OFFSET('EM-Faktoren'!$B$4,N75-4,) -> Solarwärme | Q75: 0 | R75: 0 | S75: 0 | T75: 0 | X75: =IFERROR(_xlfn.IFS(D75="","-",E75="","-",F75="","-",G75="","-"),"OK") -> - | Y75: =IFERROR(_xlfn.IFS(H75="","-"),"OK") -> - | Z75: =IFERROR(_xlfn.IFS(X75&Y75="--","-"),"OK") -> -
C76: oberflächennahe Geothermie | I76: =_xlfn.IFS(Z76="-","-",H76>SUM(D76:G76),H76,X76="OK",SUM(D76:G76),Y76="OK",H76) -> - | M76: =OFFSET('EM-Faktoren'!$C$1,N76-1,$M$50-2020+1) -> 0.010 | N76: 27 | O76: =OFFSET('EM-Faktoren'!$B$4,N76-4,) -> Umweltwärme | Q76: 0 | R76: 0 | S76: 0 | T76: 0 | X76: =IFERROR(_xlfn.IFS(D76="","-",E76="","-",F76="","-",G76="","-"),"OK") -> - | Y76: =IFERROR(_xlfn.IFS(H76="","-"),"OK") -> - | Z76: =IFERROR(_xlfn.IFS(X76&Y76="--","-"),"OK") -> -
C77: tiefe Geothermie | I77: =_xlfn.IFS(Z77="-","-",H77>SUM(D77:G77),H77,X77="OK",SUM(D77:G77),Y77="OK",H77) -> - | M77: =OFFSET('EM-Faktoren'!$C$1,N77-1,$M$50-2020+1) -> 0.149 | N77: 26 | O77: =OFFSET('EM-Faktoren'!$B$4,N77-4,) -> Tiefe Geothermie | Q77: 0 | R77: 0 | S77: 0 | T77: 0 | X77: =IFERROR(_xlfn.IFS(D77="","-",E77="","-",F77="","-",G77="","-"),"OK") -> - | Y77: =IFERROR(_xlfn.IFS(H77="","-"),"OK") -> - | Z77: =IFERROR(_xlfn.IFS(X77&Y77="--","-"),"OK") -> -
C78: Umweltwärme aus Oberflächengewässern | I78: =_xlfn.IFS(Z78="-","-",H78>SUM(D78:G78),H78,X78="OK",SUM(D78:G78),Y78="OK",H78) -> - | M78: =OFFSET('EM-Faktoren'!$C$1,N78-1,$M$50-2020+1) -> 0.010 | N78: 27 | O78: =OFFSET('EM-Faktoren'!$B$4,N78-4,) -> Umweltwärme | Q78: 0 | R78: 0 | S78: 0 | T78: 0 | X78: =IFERROR(_xlfn.IFS(D78="","-",E78="","-",F78="","-",G78="","-"),"OK") -> - | Y78: =IFERROR(_xlfn.IFS(H78="","-"),"OK") -> - | Z78: =IFERROR(_xlfn.IFS(X78&Y78="--","-"),"OK") -> -
C79: Umweltwärme aus Grubenwasser | I79: =_xlfn.IFS(Z79="-","-",H79>SUM(D79:G79),H79,X79="OK",SUM(D79:G79),Y79="OK",H79) -> - | M79: =OFFSET('EM-Faktoren'!$C$1,N79-1,$M$50-2020+1) -> 0.010 | N79: 27 | O79: =OFFSET('EM-Faktoren'!$B$4,N79-4,) -> Umweltwärme | Q79: 0 | R79: 0 | S79: 0 | T79: 0 | X79: =IFERROR(_xlfn.IFS(D79="","-",E79="","-",F79="","-",G79="","-"),"OK") -> - | Y79: =IFERROR(_xlfn.IFS(H79="","-"),"OK") -> - | Z79: =IFERROR(_xlfn.IFS(X79&Y79="--","-"),"OK") -> -
C80: Umweltwärme aus Luft | I80: =_xlfn.IFS(Z80="-","-",H80>SUM(D80:G80),H80,X80="OK",SUM(D80:G80),Y80="OK",H80) -> - | M80: =OFFSET('EM-Faktoren'!$C$1,N80-1,$M$50-2020+1) -> 0.010 | N80: 27 | O80: =OFFSET('EM-Faktoren'!$B$4,N80-4,) -> Umweltwärme | Q80: 0 | R80: 0 | S80: 0 | T80: 0 | X80: =IFERROR(_xlfn.IFS(D80="","-",E80="","-",F80="","-",G80="","-"),"OK") -> - | Y80: =IFERROR(_xlfn.IFS(H80="","-"),"OK") -> - | Z80: =IFERROR(_xlfn.IFS(X80&Y80="--","-"),"OK") -> -
C81: Umweltwärme aus Abwasser | I81: =_xlfn.IFS(Z81="-","-",H81>SUM(D81:G81),H81,X81="OK",SUM(D81:G81),Y81="OK",H81) -> - | M81: =OFFSET('EM-Faktoren'!$C$1,N81-1,$M$50-2020+1) -> 0.010 | N81: 27 | O81: =OFFSET('EM-Faktoren'!$B$4,N81-4,) -> Umweltwärme | Q81: 0 | R81: 0 | S81: 0 | T81: 0 | X81: =IFERROR(_xlfn.IFS(D81="","-",E81="","-",F81="","-",G81="","-"),"OK") -> - | Y81: =IFERROR(_xlfn.IFS(H81="","-"),"OK") -> - | Z81: =IFERROR(_xlfn.IFS(X81&Y81="--","-"),"OK") -> -
C82: Sonstige fossile Brennstoffe | I82: =_xlfn.IFS(Z82="-","-",H82>SUM(D82:G82),H82,X82="OK",SUM(D82:G82),Y82="OK",H82) -> - | M82: =OFFSET('EM-Faktoren'!$C$1,N82-1,$M$50-2020+1) -> 0.200 | N82: 14 | O82: =OFFSET('EM-Faktoren'!$B$4,N82-4,) -> Sonstige | Q82: 0 | R82: 0 | S82: 0 | T82: 0 | X82: =IFERROR(_xlfn.IFS(D82="","-",E82="","-",F82="","-",G82="","-"),"OK") -> - | Y82: =IFERROR(_xlfn.IFS(H82="","-"),"OK") -> - | Z82: =IFERROR(_xlfn.IFS(X82&Y82="--","-"),"OK") -> -
C83: Sonstige erneuerbaren Energien | I83: =_xlfn.IFS(Z83="-","-",H83>SUM(D83:G83),H83,X83="OK",SUM(D83:G83),Y83="OK",H83) -> - | M83: =OFFSET('EM-Faktoren'!$C$1,N83-1,$M$50-2020+1) -> 0.050 | N83: 28 | O83: =OFFSET('EM-Faktoren'!$B$4,N83-4,) -> sonstige Erneuerbare | Q83: 0 | R83: 0 | S83: 0 | T83: 0 | X83: =IFERROR(_xlfn.IFS(D83="","-",E83="","-",F83="","-",G83="","-"),"OK") -> - | Y83: =IFERROR(_xlfn.IFS(H83="","-"),"OK") -> - | Z83: =IFERROR(_xlfn.IFS(X83&Y83="--","-"),"OK") -> -
C84: Summe | D84: =SUM(D52:D83) -> 0 | E84: =SUM(E52:E83) -> 0 | F84: =SUM(F52:F83) -> 0 | G84: =SUM(G52:G83) -> 0 | H84: =SUM(H52:H83) -> 0 | I84: =IF(SUM(D84:G84)>0,SUM(D84:G84),H84) -> 0 | P84: =SUM(P52:P83) ->  | Q84: =SUM(Q52:Q83) -> 0 | R84: =SUM(R52:R83) -> 0 | S84: =SUM(S52:S83) -> 0 | T84: =SUM(T52:T83) -> 0
I85: =IF(SUM(D84:G84)>0,IF(H84>0,"Fehler: entweder Aufteilug nach Sektoren ODER Gesammtsumme",""),"") -> 
C86: 2035 (optional für vereinfachtes Verfahren)
C87: ='B-Bestandsanalyse'!$C$45 -> Endenergieverbrauch Wärme | D87: Sektoren optional
C88: 2035 | M88: 2035
C89: in MWh/a | D89: Haushalte | E89: GHD | F89: öffentliche Liegenschaften | G89: Industrie | H89: Gesamtsumme ohne Differenzierung nach Sektoren | I89: Summe (der Spalten D bis G oder H) | J89: Hinweise | M89: Emissionsfaktor | N89: Zeile | O89: Energieträger | P89: Tonnen THG | Q89: Haushalte | R89: GHD | S89: öff. Liegenschaften | T89: Industrie
C90: Braunkohle | I90: =_xlfn.IFS(Z90="-","-",H90>SUM(D90:G90),H90,X90="OK",SUM(D90:G90),Y90="OK",H90) -> - | K90: =IF(SUM(D90:G90)>0,IF(H90>0,"Fehler: entweder Aufteilug nach Sektoren ODER Gesammtsumme",""),"") ->  | M90: =OFFSET('EM-Faktoren'!$C$1,N90-1,$M$88-2020-3) -> 0.441 | N90: 10 | O90: =OFFSET('EM-Faktoren'!$B$4,N90-4,) -> Braunkohle | P90: =+I90*M90 ->  | Q90: =D90*$M90 -> 0 | R90: =E90*$M90 -> 0 | S90: 0 | T90: 0 | X90: =IFERROR(_xlfn.IFS(D90="","-",E90="","-",F90="","-",G90="","-"),"OK") -> - | Y90: =IFERROR(_xlfn.IFS(H90="","-"),"OK") -> - | Z90: =IFERROR(_xlfn.IFS(X90&Y90="--","-"),"OK") -> -
C91: Steinkohle | I91: =_xlfn.IFS(Z91="-","-",H91>SUM(D91:G91),H91,X91="OK",SUM(D91:G91),Y91="OK",H91) -> - | K91: =IF(SUM(D91:G91)>0,IF(H91>0,"Fehler: entweder Aufteilug nach Sektoren ODER Gesammtsumme",""),"") ->  | M91: =OFFSET('EM-Faktoren'!$C$1,N91-1,$M$88-2020-3) -> 0.433 | N91: 9 | O91: =OFFSET('EM-Faktoren'!$B$4,N91-4,) -> Kohlen (Steinkohle) | P91: =+I91*M91 ->  | Q91: =D91*$M91 -> 0 | R91: =E91*$M91 -> 0 | S91: =F91*$M91 -> 0 | T91: =G91*$M91 -> 0 | X91: =IFERROR(_xlfn.IFS(D91="","-",E91="","-",F91="","-",G91="","-"),"OK") -> - | Y91: =IFERROR(_xlfn.IFS(H91="","-"),"OK") -> - | Z91: =IFERROR(_xlfn.IFS(X91&Y91="--","-"),"OK") -> -
C92: Erdgas | I92: =_xlfn.IFS(Z92="-","-",H92>SUM(D92:G92),H92,X92="OK",SUM(D92:G92),Y92="OK",H92) -> - | M92: =OFFSET('EM-Faktoren'!$C$1,N92-1,$M$88-2020-3) -> 0.257 | N92: 5 | O92: =OFFSET('EM-Faktoren'!$B$4,N92-4,) -> Erdgas | Q92: 0 | R92: 0 | S92: 0 | T92: 0 | X92: =IFERROR(_xlfn.IFS(D92="","-",E92="","-",F92="","-",G92="","-"),"OK") -> - | Y92: =IFERROR(_xlfn.IFS(H92="","-"),"OK") -> - | Z92: =IFERROR(_xlfn.IFS(X92&Y92="--","-"),"OK") -> -
C93: Flüssiggas | I93: =_xlfn.IFS(Z93="-","-",H93>SUM(D93:G93),H93,X93="OK",SUM(D93:G93),Y93="OK",H93) -> - | M93: =OFFSET('EM-Faktoren'!$C$1,N93-1,$M$88-2020-3) -> 0.295 | N93: 7 | O93: =OFFSET('EM-Faktoren'!$B$4,N93-4,) -> Flüssiggas | Q93: 0 | R93: 0 | S93: 0 | T93: 0 | X93: =IFERROR(_xlfn.IFS(D93="","-",E93="","-",F93="","-",G93="","-"),"OK") -> - | Y93: =IFERROR(_xlfn.IFS(H93="","-"),"OK") -> - | Z93: =IFERROR(_xlfn.IFS(X93&Y93="--","-"),"OK") -> -
C94: Heizöl | I94: =_xlfn.IFS(Z94="-","-",H94>SUM(D94:G94),H94,X94="OK",SUM(D94:G94),Y94="OK",H94) -> - | M94: =OFFSET('EM-Faktoren'!$C$1,N94-1,$M$88-2020-3) -> 0.311 | N94: 6 | O94: =OFFSET('EM-Faktoren'!$B$4,N94-4,) -> Heizöl | Q94: 0 | R94: 0 | S94: 0 | T94: 0 | X94: =IFERROR(_xlfn.IFS(D94="","-",E94="","-",F94="","-",G94="","-"),"OK") -> - | Y94: =IFERROR(_xlfn.IFS(H94="","-"),"OK") -> - | Z94: =IFERROR(_xlfn.IFS(X94&Y94="--","-"),"OK") -> -
C95: Wasserstoff | I95: =_xlfn.IFS(Z95="-","-",H95>SUM(D95:G95),H95,X95="OK",SUM(D95:G95),Y95="OK",H95) -> - | M95: =OFFSET('EM-Faktoren'!$C$1,N95-1,$M$88-2020-3) -> 0.050 | N95: 12 | O95: =OFFSET('EM-Faktoren'!$B$4,N95-4,) -> Wasserstoff | Q95: 0 | R95: 0 | S95: 0 | T95: 0 | X95: =IFERROR(_xlfn.IFS(D95="","-",E95="","-",F95="","-",G95="","-"),"OK") -> - | Y95: =IFERROR(_xlfn.IFS(H95="","-"),"OK") -> - | Z95: =IFERROR(_xlfn.IFS(X95&Y95="--","-"),"OK") -> -
C96: Wasserstoffderivate | I96: =_xlfn.IFS(Z96="-","-",H96>SUM(D96:G96),H96,X96="OK",SUM(D96:G96),Y96="OK",H96) -> - | M96: =OFFSET('EM-Faktoren'!$C$1,N96-1,$M$88-2020-3) -> 0.041 | N96: 13 | O96: =OFFSET('EM-Faktoren'!$B$4,N96-4,) -> PtX | Q96: 0 | R96: 0 | S96: 0 | T96: 0 | X96: =IFERROR(_xlfn.IFS(D96="","-",E96="","-",F96="","-",G96="","-"),"OK") -> - | Y96: =IFERROR(_xlfn.IFS(H96="","-"),"OK") -> - | Z96: =IFERROR(_xlfn.IFS(X96&Y96="--","-"),"OK") -> -
C97: Grubengas | I97: =_xlfn.IFS(Z97="-","-",H97>SUM(D97:G97),H97,X97="OK",SUM(D97:G97),Y97="OK",H97) -> - | M97: =OFFSET('EM-Faktoren'!$C$1,N97-1,$M$88-2020-3) -> 0.135 | N97: 22 | O97: =OFFSET('EM-Faktoren'!$B$4,N97-4,) -> Deponiegas/Grubengas | Q97: 0 | R97: 0 | S97: 0 | T97: 0 | X97: =IFERROR(_xlfn.IFS(D97="","-",E97="","-",F97="","-",G97="","-"),"OK") -> - | Y97: =IFERROR(_xlfn.IFS(H97="","-"),"OK") -> - | Z97: =IFERROR(_xlfn.IFS(X97&Y97="--","-"),"OK") -> -
C98: nichtbiogener Abfall | I98: =_xlfn.IFS(Z98="-","-",H98>SUM(D98:G98),H98,X98="OK",SUM(D98:G98),Y98="OK",H98) -> - | M98: =OFFSET('EM-Faktoren'!$C$1,N98-1,$M$88-2020-3) -> 0.121 | N98: 23 | O98: =OFFSET('EM-Faktoren'!$B$4,N98-4,) -> Abfall | Q98: 0 | R98: 0 | S98: 0 | T98: 0 | X98: =IFERROR(_xlfn.IFS(D98="","-",E98="","-",F98="","-",G98="","-"),"OK") -> - | Y98: =IFERROR(_xlfn.IFS(H98="","-"),"OK") -> - | Z98: =IFERROR(_xlfn.IFS(X98&Y98="--","-"),"OK") -> -
C99: biogener Abfall | I99: =_xlfn.IFS(Z99="-","-",H99>SUM(D99:G99),H99,X99="OK",SUM(D99:G99),Y99="OK",H99) -> - | M99: =OFFSET('EM-Faktoren'!$C$1,N99-1,$M$88-2020-3) -> 0.121 | N99: 23 | O99: =OFFSET('EM-Faktoren'!$B$4,N99-4,) -> Abfall | Q99: 0 | R99: 0 | S99: 0 | T99: 0 | X99: =IFERROR(_xlfn.IFS(D99="","-",E99="","-",F99="","-",G99="","-"),"OK") -> - | Y99: =IFERROR(_xlfn.IFS(H99="","-"),"OK") -> - | Z99: =IFERROR(_xlfn.IFS(X99&Y99="--","-"),"OK") -> -
C100: Abwärme < 60 °C | I100: =_xlfn.IFS(Z100="-","-",H100>SUM(D100:G100),H100,X100="OK",SUM(D100:G100),Y100="OK",H100) -> - | M100: =OFFSET('EM-Faktoren'!$C$1,N100-1,$M$88-2020-3) -> 0.010 | N100: 27 | O100: =OFFSET('EM-Faktoren'!$B$4,N100-4,) -> Umweltwärme | Q100: 0 | R100: 0 | S100: 0 | T100: 0 | X100: =IFERROR(_xlfn.IFS(D100="","-",E100="","-",F100="","-",G100="","-"),"OK") -> - | Y100: =IFERROR(_xlfn.IFS(H100="","-"),"OK") -> - | Z100: =IFERROR(_xlfn.IFS(X100&Y100="--","-"),"OK") -> -
C101: Abwärme 60 bis 110 °C | I101: =_xlfn.IFS(Z101="-","-",H101>SUM(D101:G101),H101,X101="OK",SUM(D101:G101),Y101="OK",H101) -> - | M101: =OFFSET('EM-Faktoren'!$C$1,N101-1,$M$88-2020-3) -> 0.010 | N101: 27 | O101: =OFFSET('EM-Faktoren'!$B$4,N101-4,) -> Umweltwärme | Q101: 0 | R101: 0 | S101: 0 | T101: 0 | X101: =IFERROR(_xlfn.IFS(D101="","-",E101="","-",F101="","-",G101="","-"),"OK") -> - | Y101: =IFERROR(_xlfn.IFS(H101="","-"),"OK") -> - | Z101: =IFERROR(_xlfn.IFS(X101&Y101="--","-"),"OK") -> -
C102: Abwärme >= 110 °C | I102: =_xlfn.IFS(Z102="-","-",H102>SUM(D102:G102),H102,X102="OK",SUM(D102:G102),Y102="OK",H102) -> - | M102: =OFFSET('EM-Faktoren'!$C$1,N102-1,$M$88-2020-3) -> 0.010 | N102: 27 | O102: =OFFSET('EM-Faktoren'!$B$4,N102-4,) -> Umweltwärme | P102: =+I102*M102 ->  | Q102: =D102*$M102 -> 0 | R102: =E102*$M102 -> 0 | S102: =F102*$M102 -> 0 | T102: =G102*$M102 -> 0 | X102: =IFERROR(_xlfn.IFS(D102="","-",E102="","-",F102="","-",G102="","-"),"OK") -> - | Y102: =IFERROR(_xlfn.IFS(H102="","-"),"OK") -> - | Z102: =IFERROR(_xlfn.IFS(X102&Y102="--","-"),"OK") -> -
C103: feste Biomasse (ohne Altholz) | I103: =_xlfn.IFS(Z103="-","-",H103>SUM(D103:G103),H103,X103="OK",SUM(D103:G103),Y103="OK",H103) -> - | M103: =OFFSET('EM-Faktoren'!$C$1,N103-1,$M$88-2020-3) -> 0.064 | N103: 19 | O103: =OFFSET('EM-Faktoren'!$B$4,N103-4,) -> EE-Festbrennstoffe | Q103: 0 | R103: 0 | S103: 0 | T103: 0 | X103: =IFERROR(_xlfn.IFS(D103="","-",E103="","-",F103="","-",G103="","-"),"OK") -> - | Y103: =IFERROR(_xlfn.IFS(H103="","-"),"OK") -> - | Z103: =IFERROR(_xlfn.IFS(X103&Y103="--","-"),"OK") -> -
C104: Altholz | I104: =_xlfn.IFS(Z104="-","-",H104>SUM(D104:G104),H104,X104="OK",SUM(D104:G104),Y104="OK",H104) -> - | M104: =OFFSET('EM-Faktoren'!$C$1,N104-1,$M$88-2020-3) -> 0.064 | N104: 19 | O104: =OFFSET('EM-Faktoren'!$B$4,N104-4,) -> EE-Festbrennstoffe | Q104: 0 | R104: 0 | S104: 0 | T104: 0 | X104: =IFERROR(_xlfn.IFS(D104="","-",E104="","-",F104="","-",G104="","-"),"OK") -> - | Y104: =IFERROR(_xlfn.IFS(H104="","-"),"OK") -> - | Z104: =IFERROR(_xlfn.IFS(X104&Y104="--","-"),"OK") -> -
C105: Biogas | I105: =_xlfn.IFS(Z105="-","-",H105>SUM(D105:G105),H105,X105="OK",SUM(D105:G105),Y105="OK",H105) -> - | M105: =OFFSET('EM-Faktoren'!$C$1,N105-1,$M$88-2020-3) -> 0.124 | N105: 21 | O105: =OFFSET('EM-Faktoren'!$B$4,N105-4,) -> Biogas | Q105: 0 | R105: 0 | S105: 0 | T105: 0 | X105: =IFERROR(_xlfn.IFS(D105="","-",E105="","-",F105="","-",G105="","-"),"OK") -> - | Y105: =IFERROR(_xlfn.IFS(H105="","-"),"OK") -> - | Z105: =IFERROR(_xlfn.IFS(X105&Y105="--","-"),"OK") -> -
C106: Biomethan | I106: =_xlfn.IFS(Z106="-","-",H106>SUM(D106:G106),H106,X106="OK",SUM(D106:G106),Y106="OK",H106) -> - | M106: =OFFSET('EM-Faktoren'!$C$1,N106-1,$M$88-2020-3) -> 0.041 | N106: 25 | O106: =OFFSET('EM-Faktoren'!$B$4,N106-4,) -> Synth. Brennstoffe | Q106: 0 | R106: 0 | S106: 0 | T106: 0 | X106: =IFERROR(_xlfn.IFS(D106="","-",E106="","-",F106="","-",G106="","-"),"OK") -> - | Y106: =IFERROR(_xlfn.IFS(H106="","-"),"OK") -> - | Z106: =IFERROR(_xlfn.IFS(X106&Y106="--","-"),"OK") -> -
C107: Deponiegas | I107: =_xlfn.IFS(Z107="-","-",H107>SUM(D107:G107),H107,X107="OK",SUM(D107:G107),Y107="OK",H107) -> - | M107: =OFFSET('EM-Faktoren'!$C$1,N107-1,$M$88-2020-3) -> 0.135 | N107: 22 | O107: =OFFSET('EM-Faktoren'!$B$4,N107-4,) -> Deponiegas/Grubengas | Q107: 0 | R107: 0 | S107: 0 | T107: 0 | X107: =IFERROR(_xlfn.IFS(D107="","-",E107="","-",F107="","-",G107="","-"),"OK") -> - | Y107: =IFERROR(_xlfn.IFS(H107="","-"),"OK") -> - | Z107: =IFERROR(_xlfn.IFS(X107&Y107="--","-"),"OK") -> -
C108: Klärgas | I108: =_xlfn.IFS(Z108="-","-",H108>SUM(D108:G108),H108,X108="OK",SUM(D108:G108),Y108="OK",H108) -> - | M108: =OFFSET('EM-Faktoren'!$C$1,N108-1,$M$88-2020-3) -> 0.110 | N108: 18 | O108: =OFFSET('EM-Faktoren'!$B$4,N108-4,) -> Klärgas | Q108: 0 | R108: 0 | S108: 0 | T108: 0 | X108: =IFERROR(_xlfn.IFS(D108="","-",E108="","-",F108="","-",G108="","-"),"OK") -> - | Y108: =IFERROR(_xlfn.IFS(H108="","-"),"OK") -> - | Z108: =IFERROR(_xlfn.IFS(X108&Y108="--","-"),"OK") -> -
C109: flüssige Biomasse | I109: =_xlfn.IFS(Z109="-","-",H109>SUM(D109:G109),H109,X109="OK",SUM(D109:G109),Y109="OK",H109) -> - | M109: =OFFSET('EM-Faktoren'!$C$1,N109-1,$M$88-2020-3) -> 0.300 | N109: 20 | O109: =OFFSET('EM-Faktoren'!$B$4,N109-4,) -> Flüssige Biomasse | Q109: 0 | R109: 0 | S109: 0 | T109: 0 | X109: =IFERROR(_xlfn.IFS(D109="","-",E109="","-",F109="","-",G109="","-"),"OK") -> - | Y109: =IFERROR(_xlfn.IFS(H109="","-"),"OK") -> - | Z109: =IFERROR(_xlfn.IFS(X109&Y109="--","-"),"OK") -> -
C110: Strom Wärmepumpe | I110: =_xlfn.IFS(Z110="-","-",H110>SUM(D110:G110),H110,X110="OK",SUM(D110:G110),Y110="OK",H110) -> - | M110: =OFFSET('EM-Faktoren'!$C$1,N110-1,$M$88-2020-3) -> 0.108 | N110: 4 | O110: =OFFSET('EM-Faktoren'!$B$4,N110-4,) -> Strom | Q110: 0 | R110: 0 | S110: 0 | T110: 0 | X110: =IFERROR(_xlfn.IFS(D110="","-",E110="","-",F110="","-",G110="","-"),"OK") -> - | Y110: =IFERROR(_xlfn.IFS(H110="","-"),"OK") -> - | Z110: =IFERROR(_xlfn.IFS(X110&Y110="--","-"),"OK") -> -
C111: Strom Direktheizung | I111: =_xlfn.IFS(Z111="-","-",H111>SUM(D111:G111),H111,X111="OK",SUM(D111:G111),Y111="OK",H111) -> - | M111: =OFFSET('EM-Faktoren'!$C$1,N111-1,$M$88-2020-3) -> 0.108 | N111: 4 | O111: =OFFSET('EM-Faktoren'!$B$4,N111-4,) -> Strom | Q111: 0 | R111: 0 | S111: 0 | T111: 0 | X111: =IFERROR(_xlfn.IFS(D111="","-",E111="","-",F111="","-",G111="","-"),"OK") -> - | Y111: =IFERROR(_xlfn.IFS(H111="","-"),"OK") -> - | Z111: =IFERROR(_xlfn.IFS(X111&Y111="--","-"),"OK") -> -
C112: Solarthermie Dachflächen-Anlagen | I112: =_xlfn.IFS(Z112="-","-",H112>SUM(D112:G112),H112,X112="OK",SUM(D112:G112),Y112="OK",H112) -> - | M112: =OFFSET('EM-Faktoren'!$C$1,N112-1,$M$88-2020-3) -> 0.023 | N112: 11 | O112: =OFFSET('EM-Faktoren'!$B$4,N112-4,) -> Solarwärme | Q112: 0 | R112: 0 | S112: 0 | T112: 0 | X112: =IFERROR(_xlfn.IFS(D112="","-",E112="","-",F112="","-",G112="","-"),"OK") -> - | Y112: =IFERROR(_xlfn.IFS(H112="","-"),"OK") -> - | Z112: =IFERROR(_xlfn.IFS(X112&Y112="--","-"),"OK") -> -
C113: Solarthermie Freiflächenanlagen | I113: =_xlfn.IFS(Z113="-","-",H113>SUM(D113:G113),H113,X113="OK",SUM(D113:G113),Y113="OK",H113) -> - | M113: =OFFSET('EM-Faktoren'!$C$1,N113-1,$M$88-2020-3) -> 0.023 | N113: 11 | O113: =OFFSET('EM-Faktoren'!$B$4,N113-4,) -> Solarwärme | Q113: 0 | R113: 0 | S113: 0 | T113: 0 | X113: =IFERROR(_xlfn.IFS(D113="","-",E113="","-",F113="","-",G113="","-"),"OK") -> - | Y113: =IFERROR(_xlfn.IFS(H113="","-"),"OK") -> - | Z113: =IFERROR(_xlfn.IFS(X113&Y113="--","-"),"OK") -> -
C114: oberflächennahe Geothermie | I114: =_xlfn.IFS(Z114="-","-",H114>SUM(D114:G114),H114,X114="OK",SUM(D114:G114),Y114="OK",H114) -> - | M114: =OFFSET('EM-Faktoren'!$C$1,N114-1,$M$88-2020-3) -> 0.010 | N114: 27 | O114: =OFFSET('EM-Faktoren'!$B$4,N114-4,) -> Umweltwärme | Q114: 0 | R114: 0 | S114: 0 | T114: 0 | X114: =IFERROR(_xlfn.IFS(D114="","-",E114="","-",F114="","-",G114="","-"),"OK") -> - | Y114: =IFERROR(_xlfn.IFS(H114="","-"),"OK") -> - | Z114: =IFERROR(_xlfn.IFS(X114&Y114="--","-"),"OK") -> -
C115: tiefe Geothermie | I115: =_xlfn.IFS(Z115="-","-",H115>SUM(D115:G115),H115,X115="OK",SUM(D115:G115),Y115="OK",H115) -> - | M115: =OFFSET('EM-Faktoren'!$C$1,N115-1,$M$88-2020-3) -> 0.149 | N115: 26 | O115: =OFFSET('EM-Faktoren'!$B$4,N115-4,) -> Tiefe Geothermie | Q115: 0 | R115: 0 | S115: 0 | T115: 0 | X115: =IFERROR(_xlfn.IFS(D115="","-",E115="","-",F115="","-",G115="","-"),"OK") -> - | Y115: =IFERROR(_xlfn.IFS(H115="","-"),"OK") -> - | Z115: =IFERROR(_xlfn.IFS(X115&Y115="--","-"),"OK") -> -
C116: Umweltwärme aus Oberflächengewässern | I116: =_xlfn.IFS(Z116="-","-",H116>SUM(D116:G116),H116,X116="OK",SUM(D116:G116),Y116="OK",H116) -> - | M116: =OFFSET('EM-Faktoren'!$C$1,N116-1,$M$88-2020-3) -> 0.010 | N116: 27 | O116: =OFFSET('EM-Faktoren'!$B$4,N116-4,) -> Umweltwärme | Q116: 0 | R116: 0 | S116: 0 | T116: 0 | X116: =IFERROR(_xlfn.IFS(D116="","-",E116="","-",F116="","-",G116="","-"),"OK") -> - | Y116: =IFERROR(_xlfn.IFS(H116="","-"),"OK") -> - | Z116: =IFERROR(_xlfn.IFS(X116&Y116="--","-"),"OK") -> -
C117: Umweltwärme aus Grubenwasser | I117: =_xlfn.IFS(Z117="-","-",H117>SUM(D117:G117),H117,X117="OK",SUM(D117:G117),Y117="OK",H117) -> - | M117: =OFFSET('EM-Faktoren'!$C$1,N117-1,$M$88-2020-3) -> 0.010 | N117: 27 | O117: =OFFSET('EM-Faktoren'!$B$4,N117-4,) -> Umweltwärme | Q117: 0 | R117: 0 | S117: 0 | T117: 0 | X117: =IFERROR(_xlfn.IFS(D117="","-",E117="","-",F117="","-",G117="","-"),"OK") -> - | Y117: =IFERROR(_xlfn.IFS(H117="","-"),"OK") -> - | Z117: =IFERROR(_xlfn.IFS(X117&Y117="--","-"),"OK") -> -
C118: Umweltwärme aus Luft | I118: =_xlfn.IFS(Z118="-","-",H118>SUM(D118:G118),H118,X118="OK",SUM(D118:G118),Y118="OK",H118) -> - | M118: =OFFSET('EM-Faktoren'!$C$1,N118-1,$M$88-2020-3) -> 0.010 | N118: 27 | O118: =OFFSET('EM-Faktoren'!$B$4,N118-4,) -> Umweltwärme | Q118: 0 | R118: 0 | S118: 0 | T118: 0 | X118: =IFERROR(_xlfn.IFS(D118="","-",E118="","-",F118="","-",G118="","-"),"OK") -> - | Y118: =IFERROR(_xlfn.IFS(H118="","-"),"OK") -> - | Z118: =IFERROR(_xlfn.IFS(X118&Y118="--","-"),"OK") -> -
C119: Umweltwärme aus Abwasser | I119: =_xlfn.IFS(Z119="-","-",H119>SUM(D119:G119),H119,X119="OK",SUM(D119:G119),Y119="OK",H119) -> - | M119: =OFFSET('EM-Faktoren'!$C$1,N119-1,$M$88-2020-3) -> 0.010 | N119: 27 | O119: =OFFSET('EM-Faktoren'!$B$4,N119-4,) -> Umweltwärme | Q119: 0 | R119: 0 | S119: 0 | T119: 0 | X119: =IFERROR(_xlfn.IFS(D119="","-",E119="","-",F119="","-",G119="","-"),"OK") -> - | Y119: =IFERROR(_xlfn.IFS(H119="","-"),"OK") -> - | Z119: =IFERROR(_xlfn.IFS(X119&Y119="--","-"),"OK") -> -
C120: Sonstige fossile Brennstoffe | I120: =_xlfn.IFS(Z120="-","-",H120>SUM(D120:G120),H120,X120="OK",SUM(D120:G120),Y120="OK",H120) -> - | M120: =OFFSET('EM-Faktoren'!$C$1,N120-1,$M$88-2020-3) -> 0.150 | N120: 14 | O120: =OFFSET('EM-Faktoren'!$B$4,N120-4,) -> Sonstige | Q120: 0 | R120: 0 | S120: 0 | T120: 0 | X120: =IFERROR(_xlfn.IFS(D120="","-",E120="","-",F120="","-",G120="","-"),"OK") -> - | Y120: =IFERROR(_xlfn.IFS(H120="","-"),"OK") -> - | Z120: =IFERROR(_xlfn.IFS(X120&Y120="--","-"),"OK") -> -
C121: Sonstige erneuerbaren Energien | I121: =_xlfn.IFS(Z121="-","-",H121>SUM(D121:G121),H121,X121="OK",SUM(D121:G121),Y121="OK",H121) -> - | M121: =OFFSET('EM-Faktoren'!$C$1,N121-1,$M$88-2020-3) -> 0.050 | N121: 28 | O121: =OFFSET('EM-Faktoren'!$B$4,N121-4,) -> sonstige Erneuerbare | Q121: 0 | R121: 0 | S121: 0 | T121: 0 | X121: =IFERROR(_xlfn.IFS(D121="","-",E121="","-",F121="","-",G121="","-"),"OK") -> - | Y121: =IFERROR(_xlfn.IFS(H121="","-"),"OK") -> - | Z121: =IFERROR(_xlfn.IFS(X121&Y121="--","-"),"OK") -> -
C122: Summe | D122: =SUM(D90:D121) -> 0 | E122: =SUM(E90:E121) -> 0 | F122: =SUM(F90:F121) -> 0 | G122: =SUM(G90:G121) -> 0 | H122: =SUM(H90:H121) -> 0 | I122: =IF(SUM(D122:G122)>0,SUM(D122:G122),H122) -> 0 | P122: =SUM(P90:P121) ->  | Q122: =SUM(Q90:Q121) -> 0 | R122: =SUM(R90:R121) -> 0 | S122: =SUM(S90:S121) -> 0 | T122: =SUM(T90:T121) -> 0
I123: =IF(SUM(D122:G122)>0,IF(H122>0,"Fehler: entweder Aufteilug nach Sektoren ODER Gesammtsumme",""),"") -> 
C125: ='B-Bestandsanalyse'!$C$45 -> Endenergieverbrauch Wärme | D125: Sektoren optional
C126: 2040 | M126: 2040
C127: in MWh/a | D127: Haushalte | E127: GHD | F127: öffentliche Liegenschaften | G127: Industrie | H127: Gesamtsumme ohne Differenzierung nach Sektoren | I127: Summe (der Spalten D bis G oder H) | J127: Hinweise | M127: Emissionsfaktor | N127: Zeile | O127: Energieträger | P127: Tonnen THG | Q127: Haushalte | R127: GHD | S127: öff. Liegenschaften | T127: Industrie
C128: Braunkohle | I128: =_xlfn.IFS(Z128="-","-",H128>SUM(D128:G128),H128,X128="OK",SUM(D128:G128),Y128="OK",H128) -> - | K128: =IF(SUM(D128:G128)>0,IF(H128>0,"Fehler: entweder Aufteilug nach Sektoren ODER Gesammtsumme",""),"") ->  | M128: =OFFSET('EM-Faktoren'!$C$1,N128-1,$M$126-2020-7) -> 0.441 | N128: 10 | O128: =OFFSET('EM-Faktoren'!$B$4,N128-4,) -> Braunkohle | P128: =+I128*M128 ->  | Q128: =D128*$M128 -> 0 | R128: =E128*$M128 -> 0 | S128: 0 | T128: 0 | X128: =IFERROR(_xlfn.IFS(D128="","-",E128="","-",F128="","-",G128="","-"),"OK") -> - | Y128: =IFERROR(_xlfn.IFS(H128="","-"),"OK") -> - | Z128: =IFERROR(_xlfn.IFS(X128&Y128="--","-"),"OK") -> -
C129: Steinkohle | I129: =_xlfn.IFS(Z129="-","-",H129>SUM(D129:G129),H129,X129="OK",SUM(D129:G129),Y129="OK",H129) -> - | K129: =IF(SUM(D129:G129)>0,IF(H129>0,"Fehler: entweder Aufteilug nach Sektoren ODER Gesammtsumme",""),"") ->  | M129: =OFFSET('EM-Faktoren'!$C$1,N129-1,$M$126-2020-7) -> 0.433 | N129: 9 | O129: =OFFSET('EM-Faktoren'!$B$4,N129-4,) -> Kohlen (Steinkohle) | P129: =+I129*M129 ->  | Q129: =D129*$M129 -> 0 | R129: =E129*$M129 -> 0 | S129: =F129*$M129 -> 0 | T129: =G129*$M129 -> 0 | X129: =IFERROR(_xlfn.IFS(D129="","-",E129="","-",F129="","-",G129="","-"),"OK") -> - | Y129: =IFERROR(_xlfn.IFS(H129="","-"),"OK") -> - | Z129: =IFERROR(_xlfn.IFS(X129&Y129="--","-"),"OK") -> -
C130: Erdgas | I130: =_xlfn.IFS(Z130="-","-",H130>SUM(D130:G130),H130,X130="OK",SUM(D130:G130),Y130="OK",H130) -> - | M130: =OFFSET('EM-Faktoren'!$C$1,N130-1,$M$126-2020-7) -> 0.257 | N130: 5 | O130: =OFFSET('EM-Faktoren'!$B$4,N130-4,) -> Erdgas | Q130: 0 | R130: 0 | S130: 0 | T130: 0 | X130: =IFERROR(_xlfn.IFS(D130="","-",E130="","-",F130="","-",G130="","-"),"OK") -> - | Y130: =IFERROR(_xlfn.IFS(H130="","-"),"OK") -> - | Z130: =IFERROR(_xlfn.IFS(X130&Y130="--","-"),"OK") -> -
C131: Flüssiggas | I131: =_xlfn.IFS(Z131="-","-",H131>SUM(D131:G131),H131,X131="OK",SUM(D131:G131),Y131="OK",H131) -> - | M131: =OFFSET('EM-Faktoren'!$C$1,N131-1,$M$126-2020-7) -> 0.295 | N131: 7 | O131: =OFFSET('EM-Faktoren'!$B$4,N131-4,) -> Flüssiggas | Q131: 0 | R131: 0 | S131: 0 | T131: 0 | X131: =IFERROR(_xlfn.IFS(D131="","-",E131="","-",F131="","-",G131="","-"),"OK") -> - | Y131: =IFERROR(_xlfn.IFS(H131="","-"),"OK") -> - | Z131: =IFERROR(_xlfn.IFS(X131&Y131="--","-"),"OK") -> -
C132: Heizöl | I132: =_xlfn.IFS(Z132="-","-",H132>SUM(D132:G132),H132,X132="OK",SUM(D132:G132),Y132="OK",H132) -> - | M132: =OFFSET('EM-Faktoren'!$C$1,N132-1,$M$126-2020-7) -> 0.311 | N132: 6 | O132: =OFFSET('EM-Faktoren'!$B$4,N132-4,) -> Heizöl | Q132: 0 | R132: 0 | S132: 0 | T132: 0 | X132: =IFERROR(_xlfn.IFS(D132="","-",E132="","-",F132="","-",G132="","-"),"OK") -> - | Y132: =IFERROR(_xlfn.IFS(H132="","-"),"OK") -> - | Z132: =IFERROR(_xlfn.IFS(X132&Y132="--","-"),"OK") -> -
C133: Wasserstoff | I133: =_xlfn.IFS(Z133="-","-",H133>SUM(D133:G133),H133,X133="OK",SUM(D133:G133),Y133="OK",H133) -> - | M133: =OFFSET('EM-Faktoren'!$C$1,N133-1,$M$126-2020-7) -> 0.050 | N133: 12 | O133: =OFFSET('EM-Faktoren'!$B$4,N133-4,) -> Wasserstoff | Q133: 0 | R133: 0 | S133: 0 | T133: 0 | X133: =IFERROR(_xlfn.IFS(D133="","-",E133="","-",F133="","-",G133="","-"),"OK") -> - | Y133: =IFERROR(_xlfn.IFS(H133="","-"),"OK") -> - | Z133: =IFERROR(_xlfn.IFS(X133&Y133="--","-"),"OK") -> -
C134: Wasserstoffderivate | I134: =_xlfn.IFS(Z134="-","-",H134>SUM(D134:G134),H134,X134="OK",SUM(D134:G134),Y134="OK",H134) -> - | M134: =OFFSET('EM-Faktoren'!$C$1,N134-1,$M$126-2020-7) -> 0.041 | N134: 13 | O134: =OFFSET('EM-Faktoren'!$B$4,N134-4,) -> PtX | Q134: 0 | R134: 0 | S134: 0 | T134: 0 | X134: =IFERROR(_xlfn.IFS(D134="","-",E134="","-",F134="","-",G134="","-"),"OK") -> - | Y134: =IFERROR(_xlfn.IFS(H134="","-"),"OK") -> - | Z134: =IFERROR(_xlfn.IFS(X134&Y134="--","-"),"OK") -> -
C135: Grubengas | I135: =_xlfn.IFS(Z135="-","-",H135>SUM(D135:G135),H135,X135="OK",SUM(D135:G135),Y135="OK",H135) -> - | M135: =OFFSET('EM-Faktoren'!$C$1,N135-1,$M$126-2020-7) -> 0.135 | N135: 22 | O135: =OFFSET('EM-Faktoren'!$B$4,N135-4,) -> Deponiegas/Grubengas | Q135: 0 | R135: 0 | S135: 0 | T135: 0 | X135: =IFERROR(_xlfn.IFS(D135="","-",E135="","-",F135="","-",G135="","-"),"OK") -> - | Y135: =IFERROR(_xlfn.IFS(H135="","-"),"OK") -> - | Z135: =IFERROR(_xlfn.IFS(X135&Y135="--","-"),"OK") -> -
C136: nichtbiogener Abfall | I136: =_xlfn.IFS(Z136="-","-",H136>SUM(D136:G136),H136,X136="OK",SUM(D136:G136),Y136="OK",H136) -> - | M136: =OFFSET('EM-Faktoren'!$C$1,N136-1,$M$126-2020-7) -> 0.121 | N136: 23 | O136: =OFFSET('EM-Faktoren'!$B$4,N136-4,) -> Abfall | Q136: 0 | R136: 0 | S136: 0 | T136: 0 | X136: =IFERROR(_xlfn.IFS(D136="","-",E136="","-",F136="","-",G136="","-"),"OK") -> - | Y136: =IFERROR(_xlfn.IFS(H136="","-"),"OK") -> - | Z136: =IFERROR(_xlfn.IFS(X136&Y136="--","-"),"OK") -> -
C137: biogener Abfall | I137: =_xlfn.IFS(Z137="-","-",H137>SUM(D137:G137),H137,X137="OK",SUM(D137:G137),Y137="OK",H137) -> - | M137: =OFFSET('EM-Faktoren'!$C$1,N137-1,$M$126-2020-7) -> 0.121 | N137: 23 | O137: =OFFSET('EM-Faktoren'!$B$4,N137-4,) -> Abfall | Q137: 0 | R137: 0 | S137: 0 | T137: 0 | X137: =IFERROR(_xlfn.IFS(D137="","-",E137="","-",F137="","-",G137="","-"),"OK") -> - | Y137: =IFERROR(_xlfn.IFS(H137="","-"),"OK") -> - | Z137: =IFERROR(_xlfn.IFS(X137&Y137="--","-"),"OK") -> -
C138: Abwärme < 60 °C | I138: =_xlfn.IFS(Z138="-","-",H138>SUM(D138:G138),H138,X138="OK",SUM(D138:G138),Y138="OK",H138) -> - | M138: =OFFSET('EM-Faktoren'!$C$1,N138-1,$M$126-2020-7) -> 0.010 | N138: 27 | O138: =OFFSET('EM-Faktoren'!$B$4,N138-4,) -> Umweltwärme | P138: =+I138*M138 ->  | Q138: 0 | R138: 0 | S138: 0 | T138: 0 | X138: =IFERROR(_xlfn.IFS(D138="","-",E138="","-",F138="","-",G138="","-"),"OK") -> - | Y138: =IFERROR(_xlfn.IFS(H138="","-"),"OK") -> - | Z138: =IFERROR(_xlfn.IFS(X138&Y138="--","-"),"OK") -> -
C139: Abwärme 60 bis 110 °C | I139: =_xlfn.IFS(Z139="-","-",H139>SUM(D139:G139),H139,X139="OK",SUM(D139:G139),Y139="OK",H139) -> - | M139: =OFFSET('EM-Faktoren'!$C$1,N139-1,$M$126-2020-7) -> 0.010 | N139: 27 | O139: =OFFSET('EM-Faktoren'!$B$4,N139-4,) -> Umweltwärme | Q139: 0 | R139: 0 | S139: 0 | T139: 0 | X139: =IFERROR(_xlfn.IFS(D139="","-",E139="","-",F139="","-",G139="","-"),"OK") -> - | Y139: =IFERROR(_xlfn.IFS(H139="","-"),"OK") -> - | Z139: =IFERROR(_xlfn.IFS(X139&Y139="--","-"),"OK") -> -
C140: Abwärme >= 110 °C | I140: =_xlfn.IFS(Z140="-","-",H140>SUM(D140:G140),H140,X140="OK",SUM(D140:G140),Y140="OK",H140) -> - | M140: =OFFSET('EM-Faktoren'!$C$1,N140-1,$M$126-2020-7) -> 0.010 | N140: 27 | O140: =OFFSET('EM-Faktoren'!$B$4,N140-4,) -> Umweltwärme | P140: =+I140*M140 ->  | Q140: =D140*$M140 -> 0 | R140: =E140*$M140 -> 0 | S140: =F140*$M140 -> 0 | T140: =G140*$M140 -> 0 | X140: =IFERROR(_xlfn.IFS(D140="","-",E140="","-",F140="","-",G140="","-"),"OK") -> - | Y140: =IFERROR(_xlfn.IFS(H140="","-"),"OK") -> - | Z140: =IFERROR(_xlfn.IFS(X140&Y140="--","-"),"OK") -> -
C141: feste Biomasse (ohne Altholz) | I141: =_xlfn.IFS(Z141="-","-",H141>SUM(D141:G141),H141,X141="OK",SUM(D141:G141),Y141="OK",H141) -> - | M141: =OFFSET('EM-Faktoren'!$C$1,N141-1,$M$126-2020-7) -> 0.064 | N141: 19 | O141: =OFFSET('EM-Faktoren'!$B$4,N141-4,) -> EE-Festbrennstoffe | Q141: 0 | R141: 0 | S141: 0 | T141: 0 | X141: =IFERROR(_xlfn.IFS(D141="","-",E141="","-",F141="","-",G141="","-"),"OK") -> - | Y141: =IFERROR(_xlfn.IFS(H141="","-"),"OK") -> - | Z141: =IFERROR(_xlfn.IFS(X141&Y141="--","-"),"OK") -> -
C142: Altholz | I142: =_xlfn.IFS(Z142="-","-",H142>SUM(D142:G142),H142,X142="OK",SUM(D142:G142),Y142="OK",H142) -> - | M142: =OFFSET('EM-Faktoren'!$C$1,N142-1,$M$126-2020-7) -> 0.064 | N142: 19 | O142: =OFFSET('EM-Faktoren'!$B$4,N142-4,) -> EE-Festbrennstoffe | Q142: 0 | R142: 0 | S142: 0 | T142: 0 | X142: =IFERROR(_xlfn.IFS(D142="","-",E142="","-",F142="","-",G142="","-"),"OK") -> - | Y142: =IFERROR(_xlfn.IFS(H142="","-"),"OK") -> - | Z142: =IFERROR(_xlfn.IFS(X142&Y142="--","-"),"OK") -> -
C143: Biogas | I143: =_xlfn.IFS(Z143="-","-",H143>SUM(D143:G143),H143,X143="OK",SUM(D143:G143),Y143="OK",H143) -> - | M143: =OFFSET('EM-Faktoren'!$C$1,N143-1,$M$126-2020-7) -> 0.124 | N143: 21 | O143: =OFFSET('EM-Faktoren'!$B$4,N143-4,) -> Biogas | Q143: 0 | R143: 0 | S143: 0 | T143: 0 | X143: =IFERROR(_xlfn.IFS(D143="","-",E143="","-",F143="","-",G143="","-"),"OK") -> - | Y143: =IFERROR(_xlfn.IFS(H143="","-"),"OK") -> - | Z143: =IFERROR(_xlfn.IFS(X143&Y143="--","-"),"OK") -> -
C144: Biomethan | I144: =_xlfn.IFS(Z144="-","-",H144>SUM(D144:G144),H144,X144="OK",SUM(D144:G144),Y144="OK",H144) -> - | M144: =OFFSET('EM-Faktoren'!$C$1,N144-1,$M$126-2020-7) -> 0.041 | N144: 25 | O144: =OFFSET('EM-Faktoren'!$B$4,N144-4,) -> Synth. Brennstoffe | Q144: 0 | R144: 0 | S144: 0 | T144: 0 | X144: =IFERROR(_xlfn.IFS(D144="","-",E144="","-",F144="","-",G144="","-"),"OK") -> - | Y144: =IFERROR(_xlfn.IFS(H144="","-"),"OK") -> - | Z144: =IFERROR(_xlfn.IFS(X144&Y144="--","-"),"OK") -> -
C145: Deponiegas | I145: =_xlfn.IFS(Z145="-","-",H145>SUM(D145:G145),H145,X145="OK",SUM(D145:G145),Y145="OK",H145) -> - | M145: =OFFSET('EM-Faktoren'!$C$1,N145-1,$M$126-2020-7) -> 0.135 | N145: 22 | O145: =OFFSET('EM-Faktoren'!$B$4,N145-4,) -> Deponiegas/Grubengas | Q145: 0 | R145: 0 | S145: 0 | T145: 0 | X145: =IFERROR(_xlfn.IFS(D145="","-",E145="","-",F145="","-",G145="","-"),"OK") -> - | Y145: =IFERROR(_xlfn.IFS(H145="","-"),"OK") -> - | Z145: =IFERROR(_xlfn.IFS(X145&Y145="--","-"),"OK") -> -
C146: Klärgas | I146: =_xlfn.IFS(Z146="-","-",H146>SUM(D146:G146),H146,X146="OK",SUM(D146:G146),Y146="OK",H146) -> - | M146: =OFFSET('EM-Faktoren'!$C$1,N146-1,$M$126-2020-7) -> 0.055 | N146: 18 | O146: =OFFSET('EM-Faktoren'!$B$4,N146-4,) -> Klärgas | Q146: 0 | R146: 0 | S146: 0 | T146: 0 | X146: =IFERROR(_xlfn.IFS(D146="","-",E146="","-",F146="","-",G146="","-"),"OK") -> - | Y146: =IFERROR(_xlfn.IFS(H146="","-"),"OK") -> - | Z146: =IFERROR(_xlfn.IFS(X146&Y146="--","-"),"OK") -> -
C147: flüssige Biomasse | I147: =_xlfn.IFS(Z147="-","-",H147>SUM(D147:G147),H147,X147="OK",SUM(D147:G147),Y147="OK",H147) -> - | M147: =OFFSET('EM-Faktoren'!$C$1,N147-1,$M$126-2020-7) -> 0.300 | N147: 20 | O147: =OFFSET('EM-Faktoren'!$B$4,N147-4,) -> Flüssige Biomasse | Q147: 0 | R147: 0 | S147: 0 | T147: 0 | X147: =IFERROR(_xlfn.IFS(D147="","-",E147="","-",F147="","-",G147="","-"),"OK") -> - | Y147: =IFERROR(_xlfn.IFS(H147="","-"),"OK") -> - | Z147: =IFERROR(_xlfn.IFS(X147&Y147="--","-"),"OK") -> -
C148: Strom Wärmepumpe | I148: =_xlfn.IFS(Z148="-","-",H148>SUM(D148:G148),H148,X148="OK",SUM(D148:G148),Y148="OK",H148) -> - | M148: =OFFSET('EM-Faktoren'!$C$1,N148-1,$M$126-2020-7) -> 0.081 | N148: 4 | O148: =OFFSET('EM-Faktoren'!$B$4,N148-4,) -> Strom | Q148: 0 | R148: 0 | S148: 0 | T148: 0 | X148: =IFERROR(_xlfn.IFS(D148="","-",E148="","-",F148="","-",G148="","-"),"OK") -> - | Y148: =IFERROR(_xlfn.IFS(H148="","-"),"OK") -> - | Z148: =IFERROR(_xlfn.IFS(X148&Y148="--","-"),"OK") -> -
C149: Strom Direktheizung | I149: =_xlfn.IFS(Z149="-","-",H149>SUM(D149:G149),H149,X149="OK",SUM(D149:G149),Y149="OK",H149) -> - | M149: =OFFSET('EM-Faktoren'!$C$1,N149-1,$M$126-2020-7) -> 0.081 | N149: 4 | O149: =OFFSET('EM-Faktoren'!$B$4,N149-4,) -> Strom | Q149: 0 | R149: 0 | S149: 0 | T149: 0 | X149: =IFERROR(_xlfn.IFS(D149="","-",E149="","-",F149="","-",G149="","-"),"OK") -> - | Y149: =IFERROR(_xlfn.IFS(H149="","-"),"OK") -> - | Z149: =IFERROR(_xlfn.IFS(X149&Y149="--","-"),"OK") -> -
C150: Solarthermie Dachflächen-Anlagen | I150: =_xlfn.IFS(Z150="-","-",H150>SUM(D150:G150),H150,X150="OK",SUM(D150:G150),Y150="OK",H150) -> - | M150: =OFFSET('EM-Faktoren'!$C$1,N150-1,$M$126-2020-7) -> 0.023 | N150: 11 | O150: =OFFSET('EM-Faktoren'!$B$4,N150-4,) -> Solarwärme | Q150: 0 | R150: 0 | S150: 0 | T150: 0 | X150: =IFERROR(_xlfn.IFS(D150="","-",E150="","-",F150="","-",G150="","-"),"OK") -> - | Y150: =IFERROR(_xlfn.IFS(H150="","-"),"OK") -> - | Z150: =IFERROR(_xlfn.IFS(X150&Y150="--","-"),"OK") -> -
C151: Solarthermie Freiflächenanlagen | I151: =_xlfn.IFS(Z151="-","-",H151>SUM(D151:G151),H151,X151="OK",SUM(D151:G151),Y151="OK",H151) -> - | M151: =OFFSET('EM-Faktoren'!$C$1,N151-1,$M$126-2020-7) -> 0.023 | N151: 11 | O151: =OFFSET('EM-Faktoren'!$B$4,N151-4,) -> Solarwärme | Q151: 0 | R151: 0 | S151: 0 | T151: 0 | X151: =IFERROR(_xlfn.IFS(D151="","-",E151="","-",F151="","-",G151="","-"),"OK") -> - | Y151: =IFERROR(_xlfn.IFS(H151="","-"),"OK") -> - | Z151: =IFERROR(_xlfn.IFS(X151&Y151="--","-"),"OK") -> -
C152: oberflächennahe Geothermie | I152: =_xlfn.IFS(Z152="-","-",H152>SUM(D152:G152),H152,X152="OK",SUM(D152:G152),Y152="OK",H152) -> - | M152: =OFFSET('EM-Faktoren'!$C$1,N152-1,$M$126-2020-7) -> 0.010 | N152: 27 | O152: =OFFSET('EM-Faktoren'!$B$4,N152-4,) -> Umweltwärme | Q152: 0 | R152: 0 | S152: 0 | T152: 0 | X152: =IFERROR(_xlfn.IFS(D152="","-",E152="","-",F152="","-",G152="","-"),"OK") -> - | Y152: =IFERROR(_xlfn.IFS(H152="","-"),"OK") -> - | Z152: =IFERROR(_xlfn.IFS(X152&Y152="--","-"),"OK") -> -
C153: tiefe Geothermie | I153: =_xlfn.IFS(Z153="-","-",H153>SUM(D153:G153),H153,X153="OK",SUM(D153:G153),Y153="OK",H153) -> - | M153: =OFFSET('EM-Faktoren'!$C$1,N153-1,$M$126-2020-7) -> 0.149 | N153: 26 | O153: =OFFSET('EM-Faktoren'!$B$4,N153-4,) -> Tiefe Geothermie | Q153: 0 | R153: 0 | S153: 0 | T153: 0 | X153: =IFERROR(_xlfn.IFS(D153="","-",E153="","-",F153="","-",G153="","-"),"OK") -> - | Y153: =IFERROR(_xlfn.IFS(H153="","-"),"OK") -> - | Z153: =IFERROR(_xlfn.IFS(X153&Y153="--","-"),"OK") -> -
C154: Umweltwärme aus Oberflächengewässern | I154: =_xlfn.IFS(Z154="-","-",H154>SUM(D154:G154),H154,X154="OK",SUM(D154:G154),Y154="OK",H154) -> - | M154: =OFFSET('EM-Faktoren'!$C$1,N154-1,$M$126-2020-7) -> 0.010 | N154: 27 | O154: =OFFSET('EM-Faktoren'!$B$4,N154-4,) -> Umweltwärme | Q154: 0 | R154: 0 | S154: 0 | T154: 0 | X154: =IFERROR(_xlfn.IFS(D154="","-",E154="","-",F154="","-",G154="","-"),"OK") -> - | Y154: =IFERROR(_xlfn.IFS(H154="","-"),"OK") -> - | Z154: =IFERROR(_xlfn.IFS(X154&Y154="--","-"),"OK") -> -
C155: Umweltwärme aus Grubenwasser | I155: =_xlfn.IFS(Z155="-","-",H155>SUM(D155:G155),H155,X155="OK",SUM(D155:G155),Y155="OK",H155) -> - | M155: =OFFSET('EM-Faktoren'!$C$1,N155-1,$M$126-2020-7) -> 0.010 | N155: 27 | O155: =OFFSET('EM-Faktoren'!$B$4,N155-4,) -> Umweltwärme | Q155: 0 | R155: 0 | S155: 0 | T155: 0 | X155: =IFERROR(_xlfn.IFS(D155="","-",E155="","-",F155="","-",G155="","-"),"OK") -> - | Y155: =IFERROR(_xlfn.IFS(H155="","-"),"OK") -> - | Z155: =IFERROR(_xlfn.IFS(X155&Y155="--","-"),"OK") -> -
C156: Umweltwärme aus Luft | I156: =_xlfn.IFS(Z156="-","-",H156>SUM(D156:G156),H156,X156="OK",SUM(D156:G156),Y156="OK",H156) -> - | M156: =OFFSET('EM-Faktoren'!$C$1,N156-1,$M$126-2020-7) -> 0.010 | N156: 27 | O156: =OFFSET('EM-Faktoren'!$B$4,N156-4,) -> Umweltwärme | Q156: 0 | R156: 0 | S156: 0 | T156: 0 | X156: =IFERROR(_xlfn.IFS(D156="","-",E156="","-",F156="","-",G156="","-"),"OK") -> - | Y156: =IFERROR(_xlfn.IFS(H156="","-"),"OK") -> - | Z156: =IFERROR(_xlfn.IFS(X156&Y156="--","-"),"OK") -> -
C157: Umweltwärme aus Abwasser | I157: =_xlfn.IFS(Z157="-","-",H157>SUM(D157:G157),H157,X157="OK",SUM(D157:G157),Y157="OK",H157) -> - | M157: =OFFSET('EM-Faktoren'!$C$1,N157-1,$M$126-2020-7) -> 0.010 | N157: 27 | O157: =OFFSET('EM-Faktoren'!$B$4,N157-4,) -> Umweltwärme | Q157: 0 | R157: 0 | S157: 0 | T157: 0 | X157: =IFERROR(_xlfn.IFS(D157="","-",E157="","-",F157="","-",G157="","-"),"OK") -> - | Y157: =IFERROR(_xlfn.IFS(H157="","-"),"OK") -> - | Z157: =IFERROR(_xlfn.IFS(X157&Y157="--","-"),"OK") -> -
C158: Sonstige fossile Brennstoffe | I158: =_xlfn.IFS(Z158="-","-",H158>SUM(D158:G158),H158,X158="OK",SUM(D158:G158),Y158="OK",H158) -> - | M158: =OFFSET('EM-Faktoren'!$C$1,N158-1,$M$126-2020-7) -> 0.150 | N158: 14 | O158: =OFFSET('EM-Faktoren'!$B$4,N158-4,) -> Sonstige | Q158: 0 | R158: 0 | S158: 0 | T158: 0 | X158: =IFERROR(_xlfn.IFS(D158="","-",E158="","-",F158="","-",G158="","-"),"OK") -> - | Y158: =IFERROR(_xlfn.IFS(H158="","-"),"OK") -> - | Z158: =IFERROR(_xlfn.IFS(X158&Y158="--","-"),"OK") -> -
C159: Sonstige erneuerbare Energien | I159: =_xlfn.IFS(Z159="-","-",H159>SUM(D159:G159),H159,X159="OK",SUM(D159:G159),Y159="OK",H159) -> - | M159: =OFFSET('EM-Faktoren'!$C$1,N159-1,$M$126-2020-7) -> 0.050 | N159: 28 | O159: =OFFSET('EM-Faktoren'!$B$4,N159-4,) -> sonstige Erneuerbare | Q159: 0 | R159: 0 | S159: 0 | T159: 0 | X159: =IFERROR(_xlfn.IFS(D159="","-",E159="","-",F159="","-",G159="","-"),"OK") -> - | Y159: =IFERROR(_xlfn.IFS(H159="","-"),"OK") -> - | Z159: =IFERROR(_xlfn.IFS(X159&Y159="--","-"),"OK") -> -
C160: Summe | D160: =SUM(D128:D159) -> 0 | E160: =SUM(E128:E159) -> 0 | F160: =SUM(F128:F159) -> 0 | G160: =SUM(G128:G159) -> 0 | H160: =SUM(H128:H159) -> 0 | I160: =IF(SUM(D160:G160)>0,SUM(D160:G160),H160) -> 0 | P160: =SUM(P128:P159) ->  | Q160: =SUM(Q128:Q159) -> 0 | R160: =SUM(R128:R159) -> 0 | S160: =SUM(S128:S159) -> 0 | T160: =SUM(T128:T159) -> 0
I161: =IF(SUM(D160:G160)>0,IF(H160>0,"Fehler: entweder Aufteilug nach Sektoren ODER Gesammtsumme",""),"") -> 
C163: Treibhausgasemissionen
B165: D.10 | C165: Treibhausgasemissionen (THG-Emissionen) der gesamten Wärmeversorgung des beplanten Gebiets
C166: Hinweis: Nicht zur Eingabe durch die Kommunen, automatische Berechnung.
C168: THG-Emissionen Wärmeversorgung | D168: =D127 -> Haushalte | E168: =E127 -> GHD | F168: öffentliche Liegenschaften | G168: Industrie | H168: Gesamt
C169: kt/a
C170: Jahr
C171: 2030 | D171: =Q84/1000 -> 0.0 | E171: =R84/1000 -> 0.0 | F171: =S84/1000 -> 0.0 | G171: =T84/1000 -> 0.0 | H171: =P84/1000 -> 
C172: 2035 | D172: =Q122/1000 -> 0.0 | E172: =R122/1000 -> 0.0 | F172: 0.0 | G172: 0.0 | H172: =P122/1000 ->  | I172: optional für vereinfachtes Verfahren
C173: 2040 | D173: =Q160/1000 -> 0.0 | E173: =R160/1000 -> 0.0 | F173: 0.0 | G173: 0.0 | H173: =P160/1000 -> 
C177: Endenergieverbrauch für Energienetze
B179: D.11 | C179: Jährlicher Endenergieverbrauch leitungsgebundener Wärme nach Energieträgern nach Anlage 2 Abschnitt III Nr. 3 WPG
C182: Endenergieverbrauch leitungsgebundene Wärme | D182: 2030 | E182: 2035 | F182: 2040 | G182: Hinweise | M182: 2030 | N182: 2035 | O182: 2040
C183: in MWh/a | E183: 2035 optional f. vereinfachtes Verfahren | M183: Tonnen THG
C184: Braunkohle | M184: =+D184*M52 -> 0 | N184: =+E184*M90 -> 0 | O184: =+F184*M128 -> 0
C185: Steinkohle | M185: 0 | N185: 0 | O185: 0
C186: Erdgas | M186: 0 | N186: 0 | O186: 0
C187: Flüssiggas | M187: 0 | N187: 0 | O187: 0
C188: Heizöl | M188: 0 | N188: 0 | O188: 0
C189: Wasserstoff | M189: 0 | N189: 0 | O189: 0
C190: Wasserstoffderivate | M190: 0 | N190: 0 | O190: 0
C191: Grubengas | M191: 0 | N191: 0 | O191: 0
C192: nichtbiogener Abfall | M192: 0 | N192: 0 | O192: 0
C193: biogener Abfall | M193: 0 | N193: 0 | O193: 0
C194: Abwärme < 60 °C | M194: 0 | N194: 0 | O194: 0
C195: Abwärme 60 bis 110 °C | M195: 0 | N195: 0 | O195: 0
C196: Abwärme >= 110 °C | M196: 0 | N196: 0 | O196: 0
C197: feste Biomasse (ohne Altholz) | M197: 0 | N197: 0 | O197: 0
C198: Altholz | M198: 0 | N198: 0 | O198: 0
C199: Biogas | M199: 0 | N199: 0 | O199: 0
C200: Biomethan | M200: 0 | N200: 0 | O200: 0
C201: Deponiegas | M201: 0 | N201: 0 | O201: 0
C202: Klärgas | M202: 0 | N202: 0 | O202: 0
C203: flüssige Biomasse | M203: 0 | N203: 0 | O203: 0
C204: Strom Wärmepumpe | M204: 0 | N204: 0 | O204: 0
C205: Strom Direktheizung | M205: 0 | N205: 0 | O205: 0
C206: Solarthermie Dachlächen-Anlagen | M206: 0 | N206: 0 | O206: 0
C207: Solarthermie Freiflächenanlagen | M207: 0 | N207: 0 | O207: 0
C208: oberflächennahe Geothermie | M208: 0 | N208: 0 | O208: 0
C209: tiefe Geothermie | M209: 0 | N209: 0 | O209: 0
C210: Umweltwärme aus Oberflächengewässern | M210: 0 | N210: 0 | O210: 0
C211: Umweltwärme aus Grubenwasser | M211: 0 | N211: 0 | O211: 0
C212: Umweltwärme aus Luft | M212: 0 | N212: 0 | O212: 0
C213: Umweltwärme aus Abwasser | M213: 0 | N213: 0 | O213: 0
C214: Sonstige fossile Brennstoffe | M214: 0 | N214: 0 | O214: 0
C215: Sonstige erneuerbare Energien | M215: 0 | N215: 0 | O215: 0
C216: Summe | D216: =SUM(D184:D215) -> 0 | E216: =SUM(E184:E215) -> 0 | F216: =SUM(F184:F215) -> 0
B220: D.12 | C220: Jährlicher Endenergieverbrauch aus Gasnetzen nach Energieträgern nach Anlage 2 Abschnitt III Nr. 6
C222: Endenergieverbrauch Gasnetze | D222: 2030 | E222: 2035 | F222: 2040 | M222: 2030 | N222: 2035 | O222: 2040
C223: MWh/a | E223: 2035 optional f. vereinfachtes Verfahren | M223: Tonnen THG
C224: Erdgas | M224: =D224*M54 -> 0 | N224: =+E224*M92 -> 0 | O224: =+F224*M130 -> 0 | X224: ='B-Bestandsanalyse'!X50 -> Erdgas
C225: Flüssiggas | M225: =D225*M55 -> 0 | N225: =+E225*M93 -> 0 | O225: =+F225*M131 -> 0 | X225: ='B-Bestandsanalyse'!X51 -> Flüssiggas
C226: Wasserstoff | M226: =D226*M57 -> 0 | N226: =+E226*M95 -> 0 | O226: =+F226*M133 -> 0 | X226: ='B-Bestandsanalyse'!X53 -> Wasserstoff
C227: Wasserstoffderivate | M227: =D227*M58 -> 0 | N227: =+E227*M96 -> 0 | O227: =+F227*M134 -> 0 | X227: ='B-Bestandsanalyse'!X54 -> Wasserstoffderivate
C228: Grubengas | M228: =D228*M59 -> 0 | N228: =+E228*M97 -> 0 | O228: =+F228*M135 -> 0 | X228: ='B-Bestandsanalyse'!X55 -> Grubengas
C229: Biogas | M229: =D229*M67 -> 0 | N229: =+E229*M105 -> 0 | O229: =+F229*M143 -> 0 | X229: ='B-Bestandsanalyse'!X63 -> Biogas
C230: Biomethan | M230: =D230*M68 -> 0 | N230: =+E230*M106 -> 0 | O230: =+F230*M144 -> 0 | X230: ='B-Bestandsanalyse'!X64 -> Biomethan
C231: Deponiegas | M231: =D231*M69 -> 0 | N231: =+E231*M107 -> 0 | O231: =+F231*M145 -> 0 | X231: ='B-Bestandsanalyse'!X65 -> Deponiegas
... 8 more rows

Sheet E-Maßnahmen
B3: Template für die Datenerfassung durch Kommunen zur KWP
B6: Datenerfassung KWP
B7: Legende Eingabefelder:
C8: Dropdown-Menü
C9: Numerische Angaben
C10: Kurze textliche Angaben
C11: Optionale Angaben
B13: # | C13: Inhalte
C14: E - Angaben zu den Ergebnissen der KWP - Umsetzungsmaßnahmen
C16: E.1 | D16: E.2 | E16: E.2.1 | F16: E.3 | G16: E.4 | H16: E.5 | I16: E.6 | J16: E.7.1 | K16: E.7.2 | L16: E.8 | M16: E.9 | N16: E.10.1 | O16: E.10.2
C17: Kategorie | D17: Bezeichnung der Maßnahmen | E17: Anzahl der Maßnahmen in der Kategorie | F17: Zeitpunkt für den Beginn der Umsetzung | G17: Anzahl der Wiederholungen | H17: Zeitpunkt, zu dem die Umsetzung abgeschlossen sein soll | I17: Erwartete Kosten (Planung & Umsetzung) der Maßnahme | J17: Kostentragender Sektor 1 | K17: Kostentragender Sektor 2 | L17: Endenergieeinsparung durch die Maßnahmen | M17: THG-Emissionen Einsparung durch die Maßnahmen | N17: Ermittelte Finanzierungsmechanismen 1 zur Umsetzung der Maßnahme | O17: Ermittelte Finanzierungsmechanismen 2 zur Umsetzung der Maßnahme
E18: Anzahl | F18: Datum (TT.MM.JJJJ) | G18: Anzahl | H18: Datum (TT.MM.JJJJ) | I18: EUR | L18: MWh/a | M18: t/a | N18: Pflicht bei Gemeinden >45.000 EW nach Anlage 2 Abschnitt VI Satz 5
B19: M 1
B20: M 2
B21: M 3
B22: M 4
B23: M 5
B24: M 6
B25: M 7
B26: M 8
B27: M 9
B28: M 10

Sheet Export (hidden)
A1: Kommune | B1: =+'A-Allgemeine Angaben'!D19 -> 0
A2: Gemeindeschlüssel | B2: =+'A-Allgemeine Angaben'!E19 -> 
A3: Version | B3: =Deckblatt!D13 -> V1 | Juni 2026
A5: Attribut_nr | B5: Attribut | C5: Energieträger | D5: Sektor | E5: Einheit | F5: Jahr | G5: Wert
A6: A.1c | B6: ='A-Allgemeine Angaben'!X19 -> Einwohner | E6: Anzahl | F6: ='A-Allgemeine Angaben'!D20 -> 0 | G6: =+'A-Allgemeine Angaben'!F19 -> 
A7: A.2 | B7: ='A-Allgemeine Angaben'!X20 -> WP Erstellungsjahr | E7: Textfeld | F7: =+'A-Allgemeine Angaben'!D20 -> 0 | G7: =+F7 -> 0
A8: =+'A-Allgemeine Angaben'!B21 -> A.3 | B8: ='A-Allgemeine Angaben'!X21 -> Konvoiplanung | E8: Textfeld | F8: =+'A-Allgemeine Angaben'!$D$20 -> 0 | G8: =+'A-Allgemeine Angaben'!D21 -> 0
A9: =+'A-Allgemeine Angaben'!B22 -> A.4 | B9: ='A-Allgemeine Angaben'!X22 -> Basisjahr | E9: Textfeld | F9: =+'A-Allgemeine Angaben'!$D$20 -> 0 | G9: =+'A-Allgemeine Angaben'!D22 -> 0
A10: =+'A-Allgemeine Angaben'!B23 -> A.5 | B10: ='A-Allgemeine Angaben'!X23 -> Zieljahr | E10: Textfeld | F10: =+'A-Allgemeine Angaben'!$D$20 -> 0 | G10: =+'A-Allgemeine Angaben'!D23 -> 0
A11: =+'A-Allgemeine Angaben'!B24 -> A.6 | B11: ='A-Allgemeine Angaben'!X24 -> vereinfachtes Verfahren | E11: Textfeld | F11: =+'A-Allgemeine Angaben'!$D$20 -> 0 | G11: =+'A-Allgemeine Angaben'!D24 -> 0
A12: =+'A-Allgemeine Angaben'!B25 -> A.7 | B12: ='A-Allgemeine Angaben'!X25 -> verkürzte WP | E12: Textfeld | F12: =+'A-Allgemeine Angaben'!$D$20 -> 0 | G12: =+'A-Allgemeine Angaben'!D25 -> 0
A13: =+'A-Allgemeine Angaben'!B26 -> A.8 | B13: ='A-Allgemeine Angaben'!X26 -> Erhöhtes Einsparpotenzial | E13: Textfeld | F13: =+'A-Allgemeine Angaben'!$D$20 -> 0 | G13: =+'A-Allgemeine Angaben'!D26 -> 0
A14: =+'A-Allgemeine Angaben'!B27 -> A.9 | B14: ='A-Allgemeine Angaben'!X27 -> EE Gebiet | E14: Textfeld | F14: =+'A-Allgemeine Angaben'!$D$20 -> 0 | G14: =+'A-Allgemeine Angaben'!D27 -> 0
A15: =+'A-Allgemeine Angaben'!B28 -> A.10 | B15: ='A-Allgemeine Angaben'!X28 -> Fortschreibung WP | E15: Textfeld | F15: =+'A-Allgemeine Angaben'!$D$20 -> 0 | G15: =+'A-Allgemeine Angaben'!D28 -> 0
A16: A.13 | B16: ='A-Allgemeine Angaben'!X33 -> Kontaktperson | E16: Textfeld | F16: =+'A-Allgemeine Angaben'!$D$20 -> 0 | G16: =_xlfn.CONCAT('A-Allgemeine Angaben'!D33," ",'A-Allgemeine Angaben'!D34) -> 
A17: A.17 | B17: ='A-Allgemeine Angaben'!X38 -> umsetzende Stelle | E17: Textfeld | F17: =+'A-Allgemeine Angaben'!$D$20 -> 0 | G17: ='A-Allgemeine Angaben'!D38 -> 0
A18: =+'A-Allgemeine Angaben'!B42 -> A.18 | B18: ='A-Allgemeine Angaben'!X42 -> WP gesetzliche Grundlage | E18: Textfeld | F18: =+'A-Allgemeine Angaben'!$D$20 -> 0 | G18: =+'A-Allgemeine Angaben'!D42 -> 0
A19: =+'A-Allgemeine Angaben'!B43 -> A.19 | B19: ='A-Allgemeine Angaben'!X43 -> URL Endbericht | E19: Textfeld | F19: =+'A-Allgemeine Angaben'!$D$20 -> 0 | G19: =+'A-Allgemeine Angaben'!D43 -> 0
A20: =+'A-Allgemeine Angaben'!B44 -> A.20 | B20: ='A-Allgemeine Angaben'!X44 -> Beschlussdatum | E20: Datum | F20: =+'A-Allgemeine Angaben'!$D$20 -> 0 | G20: =+'A-Allgemeine Angaben'!D44 -> 00:00:00
A21: =+'B-Bestandsanalyse'!B20 -> B.1 | B21: =+'B-Bestandsanalyse'!X20 -> Anzahl Wohngebäude | E21: ='B-Bestandsanalyse'!F20 -> Anzahl | F21: ='A-Allgemeine Angaben'!$D$20 -> 0 | G21: =IF('B-Bestandsanalyse'!E20="","-",'B-Bestandsanalyse'!E20) -> -
A22: =+'B-Bestandsanalyse'!B21 -> B.2 | B22: =+'B-Bestandsanalyse'!X21 -> Anzahl beheizter Wohngebäude | E22: ='B-Bestandsanalyse'!F21 -> Anzahl | F22: ='A-Allgemeine Angaben'!$D$20 -> 0 | G22: =IF('B-Bestandsanalyse'!E21="","-",'B-Bestandsanalyse'!E21) -> -
A23: =+'B-Bestandsanalyse'!B22 -> B.3 | B23: =+'B-Bestandsanalyse'!X22 -> Anzahl beheizter Nichtwohngebäude | E23: ='B-Bestandsanalyse'!F22 -> Anzahl | F23: ='A-Allgemeine Angaben'!$D$20 -> 0 | G23: =IF('B-Bestandsanalyse'!E22="","-",'B-Bestandsanalyse'!E22) -> -
A24: =+'B-Bestandsanalyse'!B28 -> B.4 | B24: ='B-Bestandsanalyse'!X28 -> Anzahl bestehender W-Netze | E24: ='B-Bestandsanalyse'!F28 -> Anzahl | F24: ='A-Allgemeine Angaben'!$D$20 -> 0 | G24: =IF('B-Bestandsanalyse'!E28="","-",'B-Bestandsanalyse'!E28) -> -
A25: =+'B-Bestandsanalyse'!B29 -> B.5 | B25: ='B-Bestandsanalyse'!X29 -> Anzahl geplanter-genehmigter W-Netze | E25: ='B-Bestandsanalyse'!F29 -> Anzahl | F25: ='A-Allgemeine Angaben'!$D$20 -> 0 | G25: =IF('B-Bestandsanalyse'!E29="","-",'B-Bestandsanalyse'!E29) -> -
A26: =+'B-Bestandsanalyse'!B30 -> B.6 | B26: ='B-Bestandsanalyse'!X30 -> Trassenlänge bestehender W-Netze | E26: ='B-Bestandsanalyse'!F30 -> km | F26: ='A-Allgemeine Angaben'!$D$20 -> 0 | G26: =IF('B-Bestandsanalyse'!E30="","-",'B-Bestandsanalyse'!E30) -> -
A27: =+'B-Bestandsanalyse'!B31 -> B.7 | B27: ='B-Bestandsanalyse'!X31 -> Trassenlänge geplanter-genehmigter W-Netze | E27: ='B-Bestandsanalyse'!F31 -> km | F27: ='A-Allgemeine Angaben'!$D$20 -> 0 | G27: =IF('B-Bestandsanalyse'!E31="","-",'B-Bestandsanalyse'!E31) -> -
A28: =+'B-Bestandsanalyse'!$B$40 -> B.8 | B28: ='B-Bestandsanalyse'!$C$45 -> Endenergieverbrauch Wärme | C28: ='B-Bestandsanalyse'!X48 -> Braunkohle | D28: ='B-Bestandsanalyse'!$D$47 -> Haushalte | E28: ='B-Bestandsanalyse'!$C$47 -> MWh/a | F28: ='A-Allgemeine Angaben'!$D$22 -> 0 | G28: =IF('B-Bestandsanalyse'!D48="","-",'B-Bestandsanalyse'!D48) -> -
A29: =+'B-Bestandsanalyse'!$B$40 -> B.8 | B29: ='B-Bestandsanalyse'!$C$45 -> Endenergieverbrauch Wärme | C29: ='B-Bestandsanalyse'!X49 -> Steinkohle | D29: ='B-Bestandsanalyse'!$D$47 -> Haushalte | E29: ='B-Bestandsanalyse'!$C$47 -> MWh/a | F29: ='A-Allgemeine Angaben'!$D$22 -> 0 | G29: =IF('B-Bestandsanalyse'!D49="","-",'B-Bestandsanalyse'!D49) -> -
A30: =+'B-Bestandsanalyse'!$B$40 -> B.8 | B30: ='B-Bestandsanalyse'!$C$45 -> Endenergieverbrauch Wärme | C30: ='B-Bestandsanalyse'!X50 -> Erdgas | D30: ='B-Bestandsanalyse'!$D$47 -> Haushalte | E30: ='B-Bestandsanalyse'!$C$47 -> MWh/a | F30: ='A-Allgemeine Angaben'!$D$22 -> 0 | G30: =IF('B-Bestandsanalyse'!D50="","-",'B-Bestandsanalyse'!D50) -> -
A31: =+'B-Bestandsanalyse'!$B$40 -> B.8 | B31: ='B-Bestandsanalyse'!$C$45 -> Endenergieverbrauch Wärme | C31: ='B-Bestandsanalyse'!X51 -> Flüssiggas | D31: ='B-Bestandsanalyse'!$D$47 -> Haushalte | E31: ='B-Bestandsanalyse'!$C$47 -> MWh/a | F31: ='A-Allgemeine Angaben'!$D$22 -> 0 | G31: =IF('B-Bestandsanalyse'!D51="","-",'B-Bestandsanalyse'!D51) -> -
A32: =+'B-Bestandsanalyse'!$B$40 -> B.8 | B32: ='B-Bestandsanalyse'!$C$45 -> Endenergieverbrauch Wärme | C32: ='B-Bestandsanalyse'!X52 -> Heizöl | D32: ='B-Bestandsanalyse'!$D$47 -> Haushalte | E32: ='B-Bestandsanalyse'!$C$47 -> MWh/a | F32: ='A-Allgemeine Angaben'!$D$22 -> 0 | G32: =IF('B-Bestandsanalyse'!D52="","-",'B-Bestandsanalyse'!D52) -> -
A33: =+'B-Bestandsanalyse'!$B$40 -> B.8 | B33: ='B-Bestandsanalyse'!$C$45 -> Endenergieverbrauch Wärme | C33: ='B-Bestandsanalyse'!X53 -> Wasserstoff | D33: ='B-Bestandsanalyse'!$D$47 -> Haushalte | E33: ='B-Bestandsanalyse'!$C$47 -> MWh/a | F33: ='A-Allgemeine Angaben'!$D$22 -> 0 | G33: =IF('B-Bestandsanalyse'!D53="","-",'B-Bestandsanalyse'!D53) -> -
A34: =+'B-Bestandsanalyse'!$B$40 -> B.8 | B34: ='B-Bestandsanalyse'!$C$45 -> Endenergieverbrauch Wärme | C34: ='B-Bestandsanalyse'!X54 -> Wasserstoffderivate | D34: ='B-Bestandsanalyse'!$D$47 -> Haushalte | E34: ='B-Bestandsanalyse'!$C$47 -> MWh/a | F34: ='A-Allgemeine Angaben'!$D$22 -> 0 | G34: =IF('B-Bestandsanalyse'!D54="","-",'B-Bestandsanalyse'!D54) -> -
A35: =+'B-Bestandsanalyse'!$B$40 -> B.8 | B35: ='B-Bestandsanalyse'!$C$45 -> Endenergieverbrauch Wärme | C35: ='B-Bestandsanalyse'!X55 -> Grubengas | D35: ='B-Bestandsanalyse'!$D$47 -> Haushalte | E35: ='B-Bestandsanalyse'!$C$47 -> MWh/a | F35: ='A-Allgemeine Angaben'!$D$22 -> 0 | G35: =IF('B-Bestandsanalyse'!D55="","-",'B-Bestandsanalyse'!D55) -> -
A36: =+'B-Bestandsanalyse'!$B$40 -> B.8 | B36: ='B-Bestandsanalyse'!$C$45 -> Endenergieverbrauch Wärme | C36: ='B-Bestandsanalyse'!X56 -> Nicht biogener Abfall | D36: ='B-Bestandsanalyse'!$D$47 -> Haushalte | E36: ='B-Bestandsanalyse'!$C$47 -> MWh/a | F36: ='A-Allgemeine Angaben'!$D$22 -> 0 | G36: =IF('B-Bestandsanalyse'!D56="","-",'B-Bestandsanalyse'!D56) -> -
A37: =+'B-Bestandsanalyse'!$B$40 -> B.8 | B37: ='B-Bestandsanalyse'!$C$45 -> Endenergieverbrauch Wärme | C37: ='B-Bestandsanalyse'!X57 -> Biogener Abfall | D37: ='B-Bestandsanalyse'!$D$47 -> Haushalte | E37: ='B-Bestandsanalyse'!$C$47 -> MWh/a | F37: ='A-Allgemeine Angaben'!$D$22 -> 0 | G37: =IF('B-Bestandsanalyse'!D57="","-",'B-Bestandsanalyse'!D57) -> -
A38: =+'B-Bestandsanalyse'!$B$40 -> B.8 | B38: ='B-Bestandsanalyse'!$C$45 -> Endenergieverbrauch Wärme | C38: ='B-Bestandsanalyse'!X58 -> Abwärme < 60 °C | D38: ='B-Bestandsanalyse'!$D$47 -> Haushalte | E38: ='B-Bestandsanalyse'!$C$47 -> MWh/a | F38: ='A-Allgemeine Angaben'!$D$22 -> 0 | G38: =IF('B-Bestandsanalyse'!D58="","-",'B-Bestandsanalyse'!D58) -> -
A39: =+'B-Bestandsanalyse'!$B$40 -> B.8 | B39: ='B-Bestandsanalyse'!$C$45 -> Endenergieverbrauch Wärme | C39: ='B-Bestandsanalyse'!X59 -> Abwärme 60 bis 110 °C | D39: ='B-Bestandsanalyse'!$D$47 -> Haushalte | E39: ='B-Bestandsanalyse'!$C$47 -> MWh/a | F39: ='A-Allgemeine Angaben'!$D$22 -> 0 | G39: =IF('B-Bestandsanalyse'!D59="","-",'B-Bestandsanalyse'!D59) -> -
A40: =+'B-Bestandsanalyse'!$B$40 -> B.8 | B40: ='B-Bestandsanalyse'!$C$45 -> Endenergieverbrauch Wärme | C40: ='B-Bestandsanalyse'!X60 -> Abwärme >= 110 °C | D40: ='B-Bestandsanalyse'!$D$47 -> Haushalte | E40: ='B-Bestandsanalyse'!$C$47 -> MWh/a | F40: ='A-Allgemeine Angaben'!$D$22 -> 0 | G40: =IF('B-Bestandsanalyse'!D60="","-",'B-Bestandsanalyse'!D60) -> -
A41: =+'B-Bestandsanalyse'!$B$40 -> B.8 | B41: ='B-Bestandsanalyse'!$C$45 -> Endenergieverbrauch Wärme | C41: ='B-Bestandsanalyse'!X61 -> feste Biomasse (ohne Altholz) | D41: ='B-Bestandsanalyse'!$D$47 -> Haushalte | E41: ='B-Bestandsanalyse'!$C$47 -> MWh/a | F41: ='A-Allgemeine Angaben'!$D$22 -> 0 | G41: =IF('B-Bestandsanalyse'!D61="","-",'B-Bestandsanalyse'!D61) -> -
A42: =+'B-Bestandsanalyse'!$B$40 -> B.8 | B42: ='B-Bestandsanalyse'!$C$45 -> Endenergieverbrauch Wärme | C42: ='B-Bestandsanalyse'!X62 -> Altholz | D42: ='B-Bestandsanalyse'!$D$47 -> Haushalte | E42: ='B-Bestandsanalyse'!$C$47 -> MWh/a | F42: ='A-Allgemeine Angaben'!$D$22 -> 0 | G42: =IF('B-Bestandsanalyse'!D62="","-",'B-Bestandsanalyse'!D62) -> -
A43: =+'B-Bestandsanalyse'!$B$40 -> B.8 | B43: ='B-Bestandsanalyse'!$C$45 -> Endenergieverbrauch Wärme | C43: ='B-Bestandsanalyse'!X63 -> Biogas | D43: ='B-Bestandsanalyse'!$D$47 -> Haushalte | E43: ='B-Bestandsanalyse'!$C$47 -> MWh/a | F43: ='A-Allgemeine Angaben'!$D$22 -> 0 | G43: =IF('B-Bestandsanalyse'!D63="","-",'B-Bestandsanalyse'!D63) -> -
A44: =+'B-Bestandsanalyse'!$B$40 -> B.8 | B44: ='B-Bestandsanalyse'!$C$45 -> Endenergieverbrauch Wärme | C44: ='B-Bestandsanalyse'!X64 -> Biomethan | D44: ='B-Bestandsanalyse'!$D$47 -> Haushalte | E44: ='B-Bestandsanalyse'!$C$47 -> MWh/a | F44: ='A-Allgemeine Angaben'!$D$22 -> 0 | G44: =IF('B-Bestandsanalyse'!D64="","-",'B-Bestandsanalyse'!D64) -> -
A45: =+'B-Bestandsanalyse'!$B$40 -> B.8 | B45: ='B-Bestandsanalyse'!$C$45 -> Endenergieverbrauch Wärme | C45: ='B-Bestandsanalyse'!X65 -> Deponiegas | D45: ='B-Bestandsanalyse'!$D$47 -> Haushalte | E45: ='B-Bestandsanalyse'!$C$47 -> MWh/a | F45: ='A-Allgemeine Angaben'!$D$22 -> 0 | G45: =IF('B-Bestandsanalyse'!D65="","-",'B-Bestandsanalyse'!D65) -> -
A46: =+'B-Bestandsanalyse'!$B$40 -> B.8 | B46: ='B-Bestandsanalyse'!$C$45 -> Endenergieverbrauch Wärme | C46: ='B-Bestandsanalyse'!X66 -> Klärgas | D46: ='B-Bestandsanalyse'!$D$47 -> Haushalte | E46: ='B-Bestandsanalyse'!$C$47 -> MWh/a | F46: ='A-Allgemeine Angaben'!$D$22 -> 0 | G46: =IF('B-Bestandsanalyse'!D66="","-",'B-Bestandsanalyse'!D66) -> -
A47: =+'B-Bestandsanalyse'!$B$40 -> B.8 | B47: ='B-Bestandsanalyse'!$C$45 -> Endenergieverbrauch Wärme | C47: ='B-Bestandsanalyse'!X67 -> Flüssige Biomasse | D47: ='B-Bestandsanalyse'!$D$47 -> Haushalte | E47: ='B-Bestandsanalyse'!$C$47 -> MWh/a | F47: ='A-Allgemeine Angaben'!$D$22 -> 0 | G47: =IF('B-Bestandsanalyse'!D67="","-",'B-Bestandsanalyse'!D67) -> -
A48: =+'B-Bestandsanalyse'!$B$40 -> B.8 | B48: ='B-Bestandsanalyse'!$C$45 -> Endenergieverbrauch Wärme | C48: ='B-Bestandsanalyse'!X68 -> Strom Wärmepumpe | D48: ='B-Bestandsanalyse'!$D$47 -> Haushalte | E48: ='B-Bestandsanalyse'!$C$47 -> MWh/a | F48: ='A-Allgemeine Angaben'!$D$22 -> 0 | G48: =IF('B-Bestandsanalyse'!D68="","-",'B-Bestandsanalyse'!D68) -> -
A49: =+'B-Bestandsanalyse'!$B$40 -> B.8 | B49: ='B-Bestandsanalyse'!$C$45 -> Endenergieverbrauch Wärme | C49: ='B-Bestandsanalyse'!X69 -> Strom Direktheizung | D49: ='B-Bestandsanalyse'!$D$47 -> Haushalte | E49: ='B-Bestandsanalyse'!$C$47 -> MWh/a | F49: ='A-Allgemeine Angaben'!$D$22 -> 0 | G49: =IF('B-Bestandsanalyse'!D69="","-",'B-Bestandsanalyse'!D69) -> -
A50: =+'B-Bestandsanalyse'!$B$40 -> B.8 | B50: ='B-Bestandsanalyse'!$C$45 -> Endenergieverbrauch Wärme | C50: ='B-Bestandsanalyse'!X70 -> Solarthermie Dach-Anlagen | D50: ='B-Bestandsanalyse'!$D$47 -> Haushalte | E50: ='B-Bestandsanalyse'!$C$47 -> MWh/a | F50: ='A-Allgemeine Angaben'!$D$22 -> 0 | G50: =IF('B-Bestandsanalyse'!D70="","-",'B-Bestandsanalyse'!D70) -> -
A51: =+'B-Bestandsanalyse'!$B$40 -> B.8 | B51: ='B-Bestandsanalyse'!$C$45 -> Endenergieverbrauch Wärme | C51: ='B-Bestandsanalyse'!X71 -> Solarthermie Freiflächenanlagen | D51: ='B-Bestandsanalyse'!$D$47 -> Haushalte | E51: ='B-Bestandsanalyse'!$C$47 -> MWh/a | F51: ='A-Allgemeine Angaben'!$D$22 -> 0 | G51: =IF('B-Bestandsanalyse'!D71="","-",'B-Bestandsanalyse'!D71) -> -
A52: =+'B-Bestandsanalyse'!$B$40 -> B.8 | B52: ='B-Bestandsanalyse'!$C$45 -> Endenergieverbrauch Wärme | C52: ='B-Bestandsanalyse'!X72 -> Oberflächennahe Geothermie | D52: ='B-Bestandsanalyse'!$D$47 -> Haushalte | E52: ='B-Bestandsanalyse'!$C$47 -> MWh/a | F52: ='A-Allgemeine Angaben'!$D$22 -> 0 | G52: =IF('B-Bestandsanalyse'!D72="","-",'B-Bestandsanalyse'!D72) -> -
A53: =+'B-Bestandsanalyse'!$B$40 -> B.8 | B53: ='B-Bestandsanalyse'!$C$45 -> Endenergieverbrauch Wärme | C53: ='B-Bestandsanalyse'!X73 -> Tiefe Geothermie | D53: ='B-Bestandsanalyse'!$D$47 -> Haushalte | E53: ='B-Bestandsanalyse'!$C$47 -> MWh/a | F53: ='A-Allgemeine Angaben'!$D$22 -> 0 | G53: =IF('B-Bestandsanalyse'!D73="","-",'B-Bestandsanalyse'!D73) -> -
A54: =+'B-Bestandsanalyse'!$B$40 -> B.8 | B54: ='B-Bestandsanalyse'!$C$45 -> Endenergieverbrauch Wärme | C54: ='B-Bestandsanalyse'!X74 -> Oberflächengewässern | D54: ='B-Bestandsanalyse'!$D$47 -> Haushalte | E54: ='B-Bestandsanalyse'!$C$47 -> MWh/a | F54: ='A-Allgemeine Angaben'!$D$22 -> 0 | G54: =IF('B-Bestandsanalyse'!D74="","-",'B-Bestandsanalyse'!D74) -> -
A55: =+'B-Bestandsanalyse'!$B$40 -> B.8 | B55: ='B-Bestandsanalyse'!$C$45 -> Endenergieverbrauch Wärme | C55: ='B-Bestandsanalyse'!X75 -> Grubenwasser | D55: ='B-Bestandsanalyse'!$D$47 -> Haushalte | E55: ='B-Bestandsanalyse'!$C$47 -> MWh/a | F55: ='A-Allgemeine Angaben'!$D$22 -> 0 | G55: =IF('B-Bestandsanalyse'!D75="","-",'B-Bestandsanalyse'!D75) -> -
A56: =+'B-Bestandsanalyse'!$B$40 -> B.8 | B56: ='B-Bestandsanalyse'!$C$45 -> Endenergieverbrauch Wärme | C56: ='B-Bestandsanalyse'!X76 -> Luft | D56: ='B-Bestandsanalyse'!$D$47 -> Haushalte | E56: ='B-Bestandsanalyse'!$C$47 -> MWh/a | F56: ='A-Allgemeine Angaben'!$D$22 -> 0 | G56: =IF('B-Bestandsanalyse'!D76="","-",'B-Bestandsanalyse'!D76) -> -
A57: =+'B-Bestandsanalyse'!$B$40 -> B.8 | B57: ='B-Bestandsanalyse'!$C$45 -> Endenergieverbrauch Wärme | C57: ='B-Bestandsanalyse'!X77 -> Abwasser | D57: ='B-Bestandsanalyse'!$D$47 -> Haushalte | E57: ='B-Bestandsanalyse'!$C$47 -> MWh/a | F57: ='A-Allgemeine Angaben'!$D$22 -> 0 | G57: =IF('B-Bestandsanalyse'!D77="","-",'B-Bestandsanalyse'!D77) -> -
A58: =+'B-Bestandsanalyse'!$B$40 -> B.8 | B58: ='B-Bestandsanalyse'!$C$45 -> Endenergieverbrauch Wärme | C58: ='B-Bestandsanalyse'!X78 -> Sonstige fossile Brennstoffe | D58: ='B-Bestandsanalyse'!$D$47 -> Haushalte | E58: ='B-Bestandsanalyse'!$C$47 -> MWh/a | F58: ='A-Allgemeine Angaben'!$D$22 -> 0 | G58: =IF('B-Bestandsanalyse'!D78="","-",'B-Bestandsanalyse'!D78) -> -
A59: =+'B-Bestandsanalyse'!$B$40 -> B.8 | B59: ='B-Bestandsanalyse'!$C$45 -> Endenergieverbrauch Wärme | C59: ='B-Bestandsanalyse'!X79 -> Sonstige erneuerbare Energien | D59: ='B-Bestandsanalyse'!$D$47 -> Haushalte | E59: ='B-Bestandsanalyse'!$C$47 -> MWh/a | F59: ='A-Allgemeine Angaben'!$D$22 -> 0 | G59: =IF('B-Bestandsanalyse'!D79="","-",'B-Bestandsanalyse'!D79) -> -
A60: =+'B-Bestandsanalyse'!$B$40 -> B.8 | B60: ='B-Bestandsanalyse'!$C$45 -> Endenergieverbrauch Wärme | D60: ='B-Bestandsanalyse'!$D$47 -> Haushalte | E60: ='B-Bestandsanalyse'!$C$47 -> MWh/a | F60: ='A-Allgemeine Angaben'!$D$22 -> 0 | G60: =IF('B-Bestandsanalyse'!D80="","-",'B-Bestandsanalyse'!D80) -> 0
A61: =+'B-Bestandsanalyse'!$B$40 -> B.8 | B61: ='B-Bestandsanalyse'!$C$45 -> Endenergieverbrauch Wärme | C61: ='B-Bestandsanalyse'!X48 -> Braunkohle | D61: ='B-Bestandsanalyse'!$E$47 -> GHD | E61: ='B-Bestandsanalyse'!$C$47 -> MWh/a | F61: ='A-Allgemeine Angaben'!$D$22 -> 0 | G61: =IF('B-Bestandsanalyse'!E48="","-",'B-Bestandsanalyse'!E48) -> -
A62: =+'B-Bestandsanalyse'!$B$40 -> B.8 | B62: ='B-Bestandsanalyse'!$C$45 -> Endenergieverbrauch Wärme | C62: ='B-Bestandsanalyse'!X49 -> Steinkohle | D62: ='B-Bestandsanalyse'!$E$47 -> GHD | E62: ='B-Bestandsanalyse'!$C$47 -> MWh/a | F62: ='A-Allgemeine Angaben'!$D$22 -> 0 | G62: =IF('B-Bestandsanalyse'!E49="","-",'B-Bestandsanalyse'!E49) -> -
A63: =+'B-Bestandsanalyse'!$B$40 -> B.8 | B63: ='B-Bestandsanalyse'!$C$45 -> Endenergieverbrauch Wärme | C63: ='B-Bestandsanalyse'!X50 -> Erdgas | D63: ='B-Bestandsanalyse'!$E$47 -> GHD | E63: ='B-Bestandsanalyse'!$C$47 -> MWh/a | F63: ='A-Allgemeine Angaben'!$D$22 -> 0 | G63: =IF('B-Bestandsanalyse'!E50="","-",'B-Bestandsanalyse'!E50) -> -
A64: =+'B-Bestandsanalyse'!$B$40 -> B.8 | B64: ='B-Bestandsanalyse'!$C$45 -> Endenergieverbrauch Wärme | C64: ='B-Bestandsanalyse'!X51 -> Flüssiggas | D64: ='B-Bestandsanalyse'!$E$47 -> GHD | E64: ='B-Bestandsanalyse'!$C$47 -> MWh/a | F64: ='A-Allgemeine Angaben'!$D$22 -> 0 | G64: =IF('B-Bestandsanalyse'!E51="","-",'B-Bestandsanalyse'!E51) -> -
A65: =+'B-Bestandsanalyse'!$B$40 -> B.8 | B65: ='B-Bestandsanalyse'!$C$45 -> Endenergieverbrauch Wärme | C65: ='B-Bestandsanalyse'!X52 -> Heizöl | D65: ='B-Bestandsanalyse'!$E$47 -> GHD | E65: ='B-Bestandsanalyse'!$C$47 -> MWh/a | F65: ='A-Allgemeine Angaben'!$D$22 -> 0 | G65: =IF('B-Bestandsanalyse'!E52="","-",'B-Bestandsanalyse'!E52) -> -
A66: =+'B-Bestandsanalyse'!$B$40 -> B.8 | B66: ='B-Bestandsanalyse'!$C$45 -> Endenergieverbrauch Wärme | C66: ='B-Bestandsanalyse'!X53 -> Wasserstoff | D66: ='B-Bestandsanalyse'!$E$47 -> GHD | E66: ='B-Bestandsanalyse'!$C$47 -> MWh/a | F66: ='A-Allgemeine Angaben'!$D$22 -> 0 | G66: =IF('B-Bestandsanalyse'!E53="","-",'B-Bestandsanalyse'!E53) -> -
A67: =+'B-Bestandsanalyse'!$B$40 -> B.8 | B67: ='B-Bestandsanalyse'!$C$45 -> Endenergieverbrauch Wärme | C67: ='B-Bestandsanalyse'!X54 -> Wasserstoffderivate | D67: ='B-Bestandsanalyse'!$E$47 -> GHD | E67: ='B-Bestandsanalyse'!$C$47 -> MWh/a | F67: ='A-Allgemeine Angaben'!$D$22 -> 0 | G67: =IF('B-Bestandsanalyse'!E54="","-",'B-Bestandsanalyse'!E54) -> -
A68: =+'B-Bestandsanalyse'!$B$40 -> B.8 | B68: ='B-Bestandsanalyse'!$C$45 -> Endenergieverbrauch Wärme | C68: ='B-Bestandsanalyse'!X55 -> Grubengas | D68: ='B-Bestandsanalyse'!$E$47 -> GHD | E68: ='B-Bestandsanalyse'!$C$47 -> MWh/a | F68: ='A-Allgemeine Angaben'!$D$22 -> 0 | G68: =IF('B-Bestandsanalyse'!E55="","-",'B-Bestandsanalyse'!E55) -> -
A69: =+'B-Bestandsanalyse'!$B$40 -> B.8 | B69: ='B-Bestandsanalyse'!$C$45 -> Endenergieverbrauch Wärme | C69: ='B-Bestandsanalyse'!X56 -> Nicht biogener Abfall | D69: ='B-Bestandsanalyse'!$E$47 -> GHD | E69: ='B-Bestandsanalyse'!$C$47 -> MWh/a | F69: ='A-Allgemeine Angaben'!$D$22 -> 0 | G69: =IF('B-Bestandsanalyse'!E56="","-",'B-Bestandsanalyse'!E56) -> -
A70: =+'B-Bestandsanalyse'!$B$40 -> B.8 | B70: ='B-Bestandsanalyse'!$C$45 -> Endenergieverbrauch Wärme | C70: ='B-Bestandsanalyse'!X57 -> Biogener Abfall | D70: ='B-Bestandsanalyse'!$E$47 -> GHD | E70: ='B-Bestandsanalyse'!$C$47 -> MWh/a | F70: ='A-Allgemeine Angaben'!$D$22 -> 0 | G70: =IF('B-Bestandsanalyse'!E57="","-",'B-Bestandsanalyse'!E57) -> -
A71: =+'B-Bestandsanalyse'!$B$40 -> B.8 | B71: ='B-Bestandsanalyse'!$C$45 -> Endenergieverbrauch Wärme | C71: ='B-Bestandsanalyse'!X58 -> Abwärme < 60 °C | D71: ='B-Bestandsanalyse'!$E$47 -> GHD | E71: ='B-Bestandsanalyse'!$C$47 -> MWh/a | F71: ='A-Allgemeine Angaben'!$D$22 -> 0 | G71: =IF('B-Bestandsanalyse'!E58="","-",'B-Bestandsanalyse'!E58) -> -
A72: =+'B-Bestandsanalyse'!$B$40 -> B.8 | B72: ='B-Bestandsanalyse'!$C$45 -> Endenergieverbrauch Wärme | C72: ='B-Bestandsanalyse'!X59 -> Abwärme 60 bis 110 °C | D72: ='B-Bestandsanalyse'!$E$47 -> GHD | E72: ='B-Bestandsanalyse'!$C$47 -> MWh/a | F72: ='A-Allgemeine Angaben'!$D$22 -> 0 | G72: =IF('B-Bestandsanalyse'!E59="","-",'B-Bestandsanalyse'!E59) -> -
A73: =+'B-Bestandsanalyse'!$B$40 -> B.8 | B73: ='B-Bestandsanalyse'!$C$45 -> Endenergieverbrauch Wärme | C73: ='B-Bestandsanalyse'!X60 -> Abwärme >= 110 °C | D73: ='B-Bestandsanalyse'!$E$47 -> GHD | E73: ='B-Bestandsanalyse'!$C$47 -> MWh/a | F73: ='A-Allgemeine Angaben'!$D$22 -> 0 | G73: =IF('B-Bestandsanalyse'!E60="","-",'B-Bestandsanalyse'!E60) -> -
A74: =+'B-Bestandsanalyse'!$B$40 -> B.8 | B74: ='B-Bestandsanalyse'!$C$45 -> Endenergieverbrauch Wärme | C74: ='B-Bestandsanalyse'!X61 -> feste Biomasse (ohne Altholz) | D74: ='B-Bestandsanalyse'!$E$47 -> GHD | E74: ='B-Bestandsanalyse'!$C$47 -> MWh/a | F74: ='A-Allgemeine Angaben'!$D$22 -> 0 | G74: =IF('B-Bestandsanalyse'!E61="","-",'B-Bestandsanalyse'!E61) -> -
A75: =+'B-Bestandsanalyse'!$B$40 -> B.8 | B75: ='B-Bestandsanalyse'!$C$45 -> Endenergieverbrauch Wärme | C75: ='B-Bestandsanalyse'!X62 -> Altholz | D75: ='B-Bestandsanalyse'!$E$47 -> GHD | E75: ='B-Bestandsanalyse'!$C$47 -> MWh/a | F75: ='A-Allgemeine Angaben'!$D$22 -> 0 | G75: =IF('B-Bestandsanalyse'!E62="","-",'B-Bestandsanalyse'!E62) -> -
A76: =+'B-Bestandsanalyse'!$B$40 -> B.8 | B76: ='B-Bestandsanalyse'!$C$45 -> Endenergieverbrauch Wärme | C76: ='B-Bestandsanalyse'!X63 -> Biogas | D76: ='B-Bestandsanalyse'!$E$47 -> GHD | E76: ='B-Bestandsanalyse'!$C$47 -> MWh/a | F76: ='A-Allgemeine Angaben'!$D$22 -> 0 | G76: =IF('B-Bestandsanalyse'!E63="","-",'B-Bestandsanalyse'!E63) -> -
A77: =+'B-Bestandsanalyse'!$B$40 -> B.8 | B77: ='B-Bestandsanalyse'!$C$45 -> Endenergieverbrauch Wärme | C77: ='B-Bestandsanalyse'!X64 -> Biomethan | D77: ='B-Bestandsanalyse'!$E$47 -> GHD | E77: ='B-Bestandsanalyse'!$C$47 -> MWh/a | F77: ='A-Allgemeine Angaben'!$D$22 -> 0 | G77: =IF('B-Bestandsanalyse'!E64="","-",'B-Bestandsanalyse'!E64) -> -
A78: =+'B-Bestandsanalyse'!$B$40 -> B.8 | B78: ='B-Bestandsanalyse'!$C$45 -> Endenergieverbrauch Wärme | C78: ='B-Bestandsanalyse'!X65 -> Deponiegas | D78: ='B-Bestandsanalyse'!$E$47 -> GHD | E78: ='B-Bestandsanalyse'!$C$47 -> MWh/a | F78: ='A-Allgemeine Angaben'!$D$22 -> 0 | G78: =IF('B-Bestandsanalyse'!E65="","-",'B-Bestandsanalyse'!E65) -> -
A79: =+'B-Bestandsanalyse'!$B$40 -> B.8 | B79: ='B-Bestandsanalyse'!$C$45 -> Endenergieverbrauch Wärme | C79: ='B-Bestandsanalyse'!X66 -> Klärgas | D79: ='B-Bestandsanalyse'!$E$47 -> GHD | E79: ='B-Bestandsanalyse'!$C$47 -> MWh/a | F79: ='A-Allgemeine Angaben'!$D$22 -> 0 | G79: =IF('B-Bestandsanalyse'!E66="","-",'B-Bestandsanalyse'!E66) -> -
A80: =+'B-Bestandsanalyse'!$B$40 -> B.8 | B80: ='B-Bestandsanalyse'!$C$45 -> Endenergieverbrauch Wärme | C80: ='B-Bestandsanalyse'!X67 -> Flüssige Biomasse | D80: ='B-Bestandsanalyse'!$E$47 -> GHD | E80: ='B-Bestandsanalyse'!$C$47 -> MWh/a | F80: ='A-Allgemeine Angaben'!$D$22 -> 0 | G80: =IF('B-Bestandsanalyse'!E67="","-",'B-Bestandsanalyse'!E67) -> -
A81: =+'B-Bestandsanalyse'!$B$40 -> B.8 | B81: ='B-Bestandsanalyse'!$C$45 -> Endenergieverbrauch Wärme | C81: ='B-Bestandsanalyse'!X68 -> Strom Wärmepumpe | D81: ='B-Bestandsanalyse'!$E$47 -> GHD | E81: ='B-Bestandsanalyse'!$C$47 -> MWh/a | F81: ='A-Allgemeine Angaben'!$D$22 -> 0 | G81: =IF('B-Bestandsanalyse'!E68="","-",'B-Bestandsanalyse'!E68) -> -
A82: =+'B-Bestandsanalyse'!$B$40 -> B.8 | B82: ='B-Bestandsanalyse'!$C$45 -> Endenergieverbrauch Wärme | C82: ='B-Bestandsanalyse'!X69 -> Strom Direktheizung | D82: ='B-Bestandsanalyse'!$E$47 -> GHD | E82: ='B-Bestandsanalyse'!$C$47 -> MWh/a | F82: ='A-Allgemeine Angaben'!$D$22 -> 0 | G82: =IF('B-Bestandsanalyse'!E69="","-",'B-Bestandsanalyse'!E69) -> -
A83: =+'B-Bestandsanalyse'!$B$40 -> B.8 | B83: ='B-Bestandsanalyse'!$C$45 -> Endenergieverbrauch Wärme | C83: ='B-Bestandsanalyse'!X70 -> Solarthermie Dach-Anlagen | D83: ='B-Bestandsanalyse'!$E$47 -> GHD | E83: ='B-Bestandsanalyse'!$C$47 -> MWh/a | F83: ='A-Allgemeine Angaben'!$D$22 -> 0 | G83: =IF('B-Bestandsanalyse'!E70="","-",'B-Bestandsanalyse'!E70) -> -
A84: =+'B-Bestandsanalyse'!$B$40 -> B.8 | B84: ='B-Bestandsanalyse'!$C$45 -> Endenergieverbrauch Wärme | C84: ='B-Bestandsanalyse'!X71 -> Solarthermie Freiflächenanlagen | D84: ='B-Bestandsanalyse'!$E$47 -> GHD | E84: ='B-Bestandsanalyse'!$C$47 -> MWh/a | F84: ='A-Allgemeine Angaben'!$D$22 -> 0 | G84: =IF('B-Bestandsanalyse'!E71="","-",'B-Bestandsanalyse'!E71) -> -
A85: =+'B-Bestandsanalyse'!$B$40 -> B.8 | B85: ='B-Bestandsanalyse'!$C$45 -> Endenergieverbrauch Wärme | C85: ='B-Bestandsanalyse'!X72 -> Oberflächennahe Geothermie | D85: ='B-Bestandsanalyse'!$E$47 -> GHD | E85: ='B-Bestandsanalyse'!$C$47 -> MWh/a | F85: ='A-Allgemeine Angaben'!$D$22 -> 0 | G85: =IF('B-Bestandsanalyse'!E72="","-",'B-Bestandsanalyse'!E72) -> -
A86: =+'B-Bestandsanalyse'!$B$40 -> B.8 | B86: ='B-Bestandsanalyse'!$C$45 -> Endenergieverbrauch Wärme | C86: ='B-Bestandsanalyse'!X73 -> Tiefe Geothermie | D86: ='B-Bestandsanalyse'!$E$47 -> GHD | E86: ='B-Bestandsanalyse'!$C$47 -> MWh/a | F86: ='A-Allgemeine Angaben'!$D$22 -> 0 | G86: =IF('B-Bestandsanalyse'!E73="","-",'B-Bestandsanalyse'!E73) -> -
A87: =+'B-Bestandsanalyse'!$B$40 -> B.8 | B87: ='B-Bestandsanalyse'!$C$45 -> Endenergieverbrauch Wärme | C87: ='B-Bestandsanalyse'!X74 -> Oberflächengewässern | D87: ='B-Bestandsanalyse'!$E$47 -> GHD | E87: ='B-Bestandsanalyse'!$C$47 -> MWh/a | F87: ='A-Allgemeine Angaben'!$D$22 -> 0 | G87: =IF('B-Bestandsanalyse'!E74="","-",'B-Bestandsanalyse'!E74) -> -
A88: =+'B-Bestandsanalyse'!$B$40 -> B.8 | B88: ='B-Bestandsanalyse'!$C$45 -> Endenergieverbrauch Wärme | C88: ='B-Bestandsanalyse'!X75 -> Grubenwasser | D88: ='B-Bestandsanalyse'!$E$47 -> GHD | E88: ='B-Bestandsanalyse'!$C$47 -> MWh/a | F88: ='A-Allgemeine Angaben'!$D$22 -> 0 | G88: =IF('B-Bestandsanalyse'!E75="","-",'B-Bestandsanalyse'!E75) -> -
A89: =+'B-Bestandsanalyse'!$B$40 -> B.8 | B89: ='B-Bestandsanalyse'!$C$45 -> Endenergieverbrauch Wärme | C89: ='B-Bestandsanalyse'!X76 -> Luft | D89: ='B-Bestandsanalyse'!$E$47 -> GHD | E89: ='B-Bestandsanalyse'!$C$47 -> MWh/a | F89: ='A-Allgemeine Angaben'!$D$22 -> 0 | G89: =IF('B-Bestandsanalyse'!E76="","-",'B-Bestandsanalyse'!E76) -> -
A90: =+'B-Bestandsanalyse'!$B$40 -> B.8 | B90: ='B-Bestandsanalyse'!$C$45 -> Endenergieverbrauch Wärme | C90: ='B-Bestandsanalyse'!X77 -> Abwasser | D90: ='B-Bestandsanalyse'!$E$47 -> GHD | E90: ='B-Bestandsanalyse'!$C$47 -> MWh/a | F90: ='A-Allgemeine Angaben'!$D$22 -> 0 | G90: =IF('B-Bestandsanalyse'!E77="","-",'B-Bestandsanalyse'!E77) -> -
A91: =+'B-Bestandsanalyse'!$B$40 -> B.8 | B91: ='B-Bestandsanalyse'!$C$45 -> Endenergieverbrauch Wärme | C91: ='B-Bestandsanalyse'!X78 -> Sonstige fossile Brennstoffe | D91: ='B-Bestandsanalyse'!$E$47 -> GHD | E91: ='B-Bestandsanalyse'!$C$47 -> MWh/a | F91: ='A-Allgemeine Angaben'!$D$22 -> 0 | G91: =IF('B-Bestandsanalyse'!E78="","-",'B-Bestandsanalyse'!E78) -> -
A92: =+'B-Bestandsanalyse'!$B$40 -> B.8 | B92: ='B-Bestandsanalyse'!$C$45 -> Endenergieverbrauch Wärme | C92: ='B-Bestandsanalyse'!X79 -> Sonstige erneuerbare Energien | D92: ='B-Bestandsanalyse'!$E$47 -> GHD | E92: ='B-Bestandsanalyse'!$C$47 -> MWh/a | F92: ='A-Allgemeine Angaben'!$D$22 -> 0 | G92: =IF('B-Bestandsanalyse'!E79="","-",'B-Bestandsanalyse'!E79) -> -
A93: =+'B-Bestandsanalyse'!$B$40 -> B.8 | B93: ='B-Bestandsanalyse'!$C$45 -> Endenergieverbrauch Wärme | D93: ='B-Bestandsanalyse'!$E$47 -> GHD | E93: ='B-Bestandsanalyse'!$C$47 -> MWh/a | F93: ='A-Allgemeine Angaben'!$D$22 -> 0 | G93: =IF('B-Bestandsanalyse'!E80="","-",'B-Bestandsanalyse'!E80) -> 0
A94: =+'B-Bestandsanalyse'!$B$40 -> B.8 | B94: ='B-Bestandsanalyse'!$C$45 -> Endenergieverbrauch Wärme | C94: ='B-Bestandsanalyse'!X48 -> Braunkohle | D94: ='B-Bestandsanalyse'!$F$47 -> öffentliche Liegenschaften | E94: ='B-Bestandsanalyse'!$C$47 -> MWh/a | F94: ='A-Allgemeine Angaben'!$D$22 -> 0 | G94: =IF('B-Bestandsanalyse'!F48="","-",'B-Bestandsanalyse'!F48) -> -
A95: =+'B-Bestandsanalyse'!$B$40 -> B.8 | B95: ='B-Bestandsanalyse'!$C$45 -> Endenergieverbrauch Wärme | C95: ='B-Bestandsanalyse'!X49 -> Steinkohle | D95: ='B-Bestandsanalyse'!$F$47 -> öffentliche Liegenschaften | E95: ='B-Bestandsanalyse'!$C$47 -> MWh/a | F95: ='A-Allgemeine Angaben'!$D$22 -> 0 | G95: =IF('B-Bestandsanalyse'!F49="","-",'B-Bestandsanalyse'!F49) -> -
A96: =+'B-Bestandsanalyse'!$B$40 -> B.8 | B96: ='B-Bestandsanalyse'!$C$45 -> Endenergieverbrauch Wärme | C96: ='B-Bestandsanalyse'!X50 -> Erdgas | D96: ='B-Bestandsanalyse'!$F$47 -> öffentliche Liegenschaften | E96: ='B-Bestandsanalyse'!$C$47 -> MWh/a | F96: ='A-Allgemeine Angaben'!$D$22 -> 0 | G96: =IF('B-Bestandsanalyse'!F50="","-",'B-Bestandsanalyse'!F50) -> -
A97: =+'B-Bestandsanalyse'!$B$40 -> B.8 | B97: ='B-Bestandsanalyse'!$C$45 -> Endenergieverbrauch Wärme | C97: ='B-Bestandsanalyse'!X51 -> Flüssiggas | D97: ='B-Bestandsanalyse'!$F$47 -> öffentliche Liegenschaften | E97: ='B-Bestandsanalyse'!$C$47 -> MWh/a | F97: ='A-Allgemeine Angaben'!$D$22 -> 0 | G97: =IF('B-Bestandsanalyse'!F51="","-",'B-Bestandsanalyse'!F51) -> -
A98: =+'B-Bestandsanalyse'!$B$40 -> B.8 | B98: ='B-Bestandsanalyse'!$C$45 -> Endenergieverbrauch Wärme | C98: ='B-Bestandsanalyse'!X52 -> Heizöl | D98: ='B-Bestandsanalyse'!$F$47 -> öffentliche Liegenschaften | E98: ='B-Bestandsanalyse'!$C$47 -> MWh/a | F98: ='A-Allgemeine Angaben'!$D$22 -> 0 | G98: =IF('B-Bestandsanalyse'!F52="","-",'B-Bestandsanalyse'!F52) -> -
A99: =+'B-Bestandsanalyse'!$B$40 -> B.8 | B99: ='B-Bestandsanalyse'!$C$45 -> Endenergieverbrauch Wärme | C99: ='B-Bestandsanalyse'!X53 -> Wasserstoff | D99: ='B-Bestandsanalyse'!$F$47 -> öffentliche Liegenschaften | E99: ='B-Bestandsanalyse'!$C$47 -> MWh/a | F99: ='A-Allgemeine Angaben'!$D$22 -> 0 | G99: =IF('B-Bestandsanalyse'!F53="","-",'B-Bestandsanalyse'!F53) -> -
A100: =+'B-Bestandsanalyse'!$B$40 -> B.8 | B100: ='B-Bestandsanalyse'!$C$45 -> Endenergieverbrauch Wärme | C100: ='B-Bestandsanalyse'!X54 -> Wasserstoffderivate | D100: ='B-Bestandsanalyse'!$F$47 -> öffentliche Liegenschaften | E100: ='B-Bestandsanalyse'!$C$47 -> MWh/a | F100: ='A-Allgemeine Angaben'!$D$22 -> 0 | G100: =IF('B-Bestandsanalyse'!F54="","-",'B-Bestandsanalyse'!F54) -> -
A101: =+'B-Bestandsanalyse'!$B$40 -> B.8 | B101: ='B-Bestandsanalyse'!$C$45 -> Endenergieverbrauch Wärme | C101: ='B-Bestandsanalyse'!X55 -> Grubengas | D101: ='B-Bestandsanalyse'!$F$47 -> öffentliche Liegenschaften | E101: ='B-Bestandsanalyse'!$C$47 -> MWh/a | F101: ='A-Allgemeine Angaben'!$D$22 -> 0 | G101: =IF('B-Bestandsanalyse'!F55="","-",'B-Bestandsanalyse'!F55) -> -
A102: =+'B-Bestandsanalyse'!$B$40 -> B.8 | B102: ='B-Bestandsanalyse'!$C$45 -> Endenergieverbrauch Wärme | C102: ='B-Bestandsanalyse'!X56 -> Nicht biogener Abfall | D102: ='B-Bestandsanalyse'!$F$47 -> öffentliche Liegenschaften | E102: ='B-Bestandsanalyse'!$C$47 -> MWh/a | F102: ='A-Allgemeine Angaben'!$D$22 -> 0 | G102: =IF('B-Bestandsanalyse'!F56="","-",'B-Bestandsanalyse'!F56) -> -
A103: =+'B-Bestandsanalyse'!$B$40 -> B.8 | B103: ='B-Bestandsanalyse'!$C$45 -> Endenergieverbrauch Wärme | C103: ='B-Bestandsanalyse'!X57 -> Biogener Abfall | D103: ='B-Bestandsanalyse'!$F$47 -> öffentliche Liegenschaften | E103: ='B-Bestandsanalyse'!$C$47 -> MWh/a | F103: ='A-Allgemeine Angaben'!$D$22 -> 0 | G103: =IF('B-Bestandsanalyse'!F57="","-",'B-Bestandsanalyse'!F57) -> -
A104: =+'B-Bestandsanalyse'!$B$40 -> B.8 | B104: ='B-Bestandsanalyse'!$C$45 -> Endenergieverbrauch Wärme | C104: ='B-Bestandsanalyse'!X58 -> Abwärme < 60 °C | D104: ='B-Bestandsanalyse'!$F$47 -> öffentliche Liegenschaften | E104: ='B-Bestandsanalyse'!$C$47 -> MWh/a | F104: ='A-Allgemeine Angaben'!$D$22 -> 0 | G104: =IF('B-Bestandsanalyse'!F58="","-",'B-Bestandsanalyse'!F58) -> -
A105: =+'B-Bestandsanalyse'!$B$40 -> B.8 | B105: ='B-Bestandsanalyse'!$C$45 -> Endenergieverbrauch Wärme | C105: ='B-Bestandsanalyse'!X59 -> Abwärme 60 bis 110 °C | D105: ='B-Bestandsanalyse'!$F$47 -> öffentliche Liegenschaften | E105: ='B-Bestandsanalyse'!$C$47 -> MWh/a | F105: ='A-Allgemeine Angaben'!$D$22 -> 0 | G105: =IF('B-Bestandsanalyse'!F59="","-",'B-Bestandsanalyse'!F59) -> -
A106: =+'B-Bestandsanalyse'!$B$40 -> B.8 | B106: ='B-Bestandsanalyse'!$C$45 -> Endenergieverbrauch Wärme | C106: ='B-Bestandsanalyse'!X60 -> Abwärme >= 110 °C | D106: ='B-Bestandsanalyse'!$F$47 -> öffentliche Liegenschaften | E106: ='B-Bestandsanalyse'!$C$47 -> MWh/a | F106: ='A-Allgemeine Angaben'!$D$22 -> 0 | G106: =IF('B-Bestandsanalyse'!F60="","-",'B-Bestandsanalyse'!F60) -> -
A107: =+'B-Bestandsanalyse'!$B$40 -> B.8 | B107: ='B-Bestandsanalyse'!$C$45 -> Endenergieverbrauch Wärme | C107: ='B-Bestandsanalyse'!X61 -> feste Biomasse (ohne Altholz) | D107: ='B-Bestandsanalyse'!$F$47 -> öffentliche Liegenschaften | E107: ='B-Bestandsanalyse'!$C$47 -> MWh/a | F107: ='A-Allgemeine Angaben'!$D$22 -> 0 | G107: =IF('B-Bestandsanalyse'!F61="","-",'B-Bestandsanalyse'!F61) -> -
A108: =+'B-Bestandsanalyse'!$B$40 -> B.8 | B108: ='B-Bestandsanalyse'!$C$45 -> Endenergieverbrauch Wärme | C108: ='B-Bestandsanalyse'!X62 -> Altholz | D108: ='B-Bestandsanalyse'!$F$47 -> öffentliche Liegenschaften | E108: ='B-Bestandsanalyse'!$C$47 -> MWh/a | F108: ='A-Allgemeine Angaben'!$D$22 -> 0 | G108: =IF('B-Bestandsanalyse'!F62="","-",'B-Bestandsanalyse'!F62) -> -
A109: =+'B-Bestandsanalyse'!$B$40 -> B.8 | B109: ='B-Bestandsanalyse'!$C$45 -> Endenergieverbrauch Wärme | C109: ='B-Bestandsanalyse'!X63 -> Biogas | D109: ='B-Bestandsanalyse'!$F$47 -> öffentliche Liegenschaften | E109: ='B-Bestandsanalyse'!$C$47 -> MWh/a | F109: ='A-Allgemeine Angaben'!$D$22 -> 0 | G109: =IF('B-Bestandsanalyse'!F63="","-",'B-Bestandsanalyse'!F63) -> -
A110: =+'B-Bestandsanalyse'!$B$40 -> B.8 | B110: ='B-Bestandsanalyse'!$C$45 -> Endenergieverbrauch Wärme | C110: ='B-Bestandsanalyse'!X64 -> Biomethan | D110: ='B-Bestandsanalyse'!$F$47 -> öffentliche Liegenschaften | E110: ='B-Bestandsanalyse'!$C$47 -> MWh/a | F110: ='A-Allgemeine Angaben'!$D$22 -> 0 | G110: =IF('B-Bestandsanalyse'!F64="","-",'B-Bestandsanalyse'!F64) -> -
A111: =+'B-Bestandsanalyse'!$B$40 -> B.8 | B111: ='B-Bestandsanalyse'!$C$45 -> Endenergieverbrauch Wärme | C111: ='B-Bestandsanalyse'!X65 -> Deponiegas | D111: ='B-Bestandsanalyse'!$F$47 -> öffentliche Liegenschaften | E111: ='B-Bestandsanalyse'!$C$47 -> MWh/a | F111: ='A-Allgemeine Angaben'!$D$22 -> 0 | G111: =IF('B-Bestandsanalyse'!F65="","-",'B-Bestandsanalyse'!F65) -> -
A112: =+'B-Bestandsanalyse'!$B$40 -> B.8 | B112: ='B-Bestandsanalyse'!$C$45 -> Endenergieverbrauch Wärme | C112: ='B-Bestandsanalyse'!X66 -> Klärgas | D112: ='B-Bestandsanalyse'!$F$47 -> öffentliche Liegenschaften | E112: ='B-Bestandsanalyse'!$C$47 -> MWh/a | F112: ='A-Allgemeine Angaben'!$D$22 -> 0 | G112: =IF('B-Bestandsanalyse'!F66="","-",'B-Bestandsanalyse'!F66) -> -
A113: =+'B-Bestandsanalyse'!$B$40 -> B.8 | B113: ='B-Bestandsanalyse'!$C$45 -> Endenergieverbrauch Wärme | C113: ='B-Bestandsanalyse'!X67 -> Flüssige Biomasse | D113: ='B-Bestandsanalyse'!$F$47 -> öffentliche Liegenschaften | E113: ='B-Bestandsanalyse'!$C$47 -> MWh/a | F113: ='A-Allgemeine Angaben'!$D$22 -> 0 | G113: =IF('B-Bestandsanalyse'!F67="","-",'B-Bestandsanalyse'!F67) -> -
A114: =+'B-Bestandsanalyse'!$B$40 -> B.8 | B114: ='B-Bestandsanalyse'!$C$45 -> Endenergieverbrauch Wärme | C114: ='B-Bestandsanalyse'!X68 -> Strom Wärmepumpe | D114: ='B-Bestandsanalyse'!$F$47 -> öffentliche Liegenschaften | E114: ='B-Bestandsanalyse'!$C$47 -> MWh/a | F114: ='A-Allgemeine Angaben'!$D$22 -> 0 | G114: =IF('B-Bestandsanalyse'!F68="","-",'B-Bestandsanalyse'!F68) -> -
A115: =+'B-Bestandsanalyse'!$B$40 -> B.8 | B115: ='B-Bestandsanalyse'!$C$45 -> Endenergieverbrauch Wärme | C115: ='B-Bestandsanalyse'!X69 -> Strom Direktheizung | D115: ='B-Bestandsanalyse'!$F$47 -> öffentliche Liegenschaften | E115: ='B-Bestandsanalyse'!$C$47 -> MWh/a | F115: ='A-Allgemeine Angaben'!$D$22 -> 0 | G115: =IF('B-Bestandsanalyse'!F69="","-",'B-Bestandsanalyse'!F69) -> -
A116: =+'B-Bestandsanalyse'!$B$40 -> B.8 | B116: ='B-Bestandsanalyse'!$C$45 -> Endenergieverbrauch Wärme | C116: ='B-Bestandsanalyse'!X70 -> Solarthermie Dach-Anlagen | D116: ='B-Bestandsanalyse'!$F$47 -> öffentliche Liegenschaften | E116: ='B-Bestandsanalyse'!$C$47 -> MWh/a | F116: ='A-Allgemeine Angaben'!$D$22 -> 0 | G116: =IF('B-Bestandsanalyse'!F70="","-",'B-Bestandsanalyse'!F70) -> -
A117: =+'B-Bestandsanalyse'!$B$40 -> B.8 | B117: ='B-Bestandsanalyse'!$C$45 -> Endenergieverbrauch Wärme | C117: ='B-Bestandsanalyse'!X71 -> Solarthermie Freiflächenanlagen | D117: ='B-Bestandsanalyse'!$F$47 -> öffentliche Liegenschaften | E117: ='B-Bestandsanalyse'!$C$47 -> MWh/a | F117: ='A-Allgemeine Angaben'!$D$22 -> 0 | G117: =IF('B-Bestandsanalyse'!F71="","-",'B-Bestandsanalyse'!F71) -> -
A118: =+'B-Bestandsanalyse'!$B$40 -> B.8 | B118: ='B-Bestandsanalyse'!$C$45 -> Endenergieverbrauch Wärme | C118: ='B-Bestandsanalyse'!X72 -> Oberflächennahe Geothermie | D118: ='B-Bestandsanalyse'!$F$47 -> öffentliche Liegenschaften | E118: ='B-Bestandsanalyse'!$C$47 -> MWh/a | F118: ='A-Allgemeine Angaben'!$D$22 -> 0 | G118: =IF('B-Bestandsanalyse'!F72="","-",'B-Bestandsanalyse'!F72) -> -
A119: =+'B-Bestandsanalyse'!$B$40 -> B.8 | B119: ='B-Bestandsanalyse'!$C$45 -> Endenergieverbrauch Wärme | C119: ='B-Bestandsanalyse'!X73 -> Tiefe Geothermie | D119: ='B-Bestandsanalyse'!$F$47 -> öffentliche Liegenschaften | E119: ='B-Bestandsanalyse'!$C$47 -> MWh/a | F119: ='A-Allgemeine Angaben'!$D$22 -> 0 | G119: =IF('B-Bestandsanalyse'!F73="","-",'B-Bestandsanalyse'!F73) -> -
A120: =+'B-Bestandsanalyse'!$B$40 -> B.8 | B120: ='B-Bestandsanalyse'!$C$45 -> Endenergieverbrauch Wärme | C120: ='B-Bestandsanalyse'!X74 -> Oberflächengewässern | D120: ='B-Bestandsanalyse'!$F$47 -> öffentliche Liegenschaften | E120: ='B-Bestandsanalyse'!$C$47 -> MWh/a | F120: ='A-Allgemeine Angaben'!$D$22 -> 0 | G120: =IF('B-Bestandsanalyse'!F74="","-",'B-Bestandsanalyse'!F74) -> -
A121: =+'B-Bestandsanalyse'!$B$40 -> B.8 | B121: ='B-Bestandsanalyse'!$C$45 -> Endenergieverbrauch Wärme | C121: ='B-Bestandsanalyse'!X75 -> Grubenwasser | D121: ='B-Bestandsanalyse'!$F$47 -> öffentliche Liegenschaften | E121: ='B-Bestandsanalyse'!$C$47 -> MWh/a | F121: ='A-Allgemeine Angaben'!$D$22 -> 0 | G121: =IF('B-Bestandsanalyse'!F75="","-",'B-Bestandsanalyse'!F75) -> -
A122: =+'B-Bestandsanalyse'!$B$40 -> B.8 | B122: ='B-Bestandsanalyse'!$C$45 -> Endenergieverbrauch Wärme | C122: ='B-Bestandsanalyse'!X76 -> Luft | D122: ='B-Bestandsanalyse'!$F$47 -> öffentliche Liegenschaften | E122: ='B-Bestandsanalyse'!$C$47 -> MWh/a | F122: ='A-Allgemeine Angaben'!$D$22 -> 0 | G122: =IF('B-Bestandsanalyse'!F76="","-",'B-Bestandsanalyse'!F76) -> -
A123: =+'B-Bestandsanalyse'!$B$40 -> B.8 | B123: ='B-Bestandsanalyse'!$C$45 -> Endenergieverbrauch Wärme | C123: ='B-Bestandsanalyse'!X77 -> Abwasser | D123: ='B-Bestandsanalyse'!$F$47 -> öffentliche Liegenschaften | E123: ='B-Bestandsanalyse'!$C$47 -> MWh/a | F123: ='A-Allgemeine Angaben'!$D$22 -> 0 | G123: =IF('B-Bestandsanalyse'!F77="","-",'B-Bestandsanalyse'!F77) -> -
A124: =+'B-Bestandsanalyse'!$B$40 -> B.8 | B124: ='B-Bestandsanalyse'!$C$45 -> Endenergieverbrauch Wärme | C124: ='B-Bestandsanalyse'!X78 -> Sonstige fossile Brennstoffe | D124: ='B-Bestandsanalyse'!$F$47 -> öffentliche Liegenschaften | E124: ='B-Bestandsanalyse'!$C$47 -> MWh/a | F124: ='A-Allgemeine Angaben'!$D$22 -> 0 | G124: =IF('B-Bestandsanalyse'!F78="","-",'B-Bestandsanalyse'!F78) -> -
A125: =+'B-Bestandsanalyse'!$B$40 -> B.8 | B125: ='B-Bestandsanalyse'!$C$45 -> Endenergieverbrauch Wärme | C125: ='B-Bestandsanalyse'!X79 -> Sonstige erneuerbare Energien | D125: ='B-Bestandsanalyse'!$F$47 -> öffentliche Liegenschaften | E125: ='B-Bestandsanalyse'!$C$47 -> MWh/a | F125: ='A-Allgemeine Angaben'!$D$22 -> 0 | G125: =IF('B-Bestandsanalyse'!F79="","-",'B-Bestandsanalyse'!F79) -> -
A126: =+'B-Bestandsanalyse'!$B$40 -> B.8 | B126: ='B-Bestandsanalyse'!$C$45 -> Endenergieverbrauch Wärme | D126: ='B-Bestandsanalyse'!$F$47 -> öffentliche Liegenschaften | E126: ='B-Bestandsanalyse'!$C$47 -> MWh/a | F126: ='A-Allgemeine Angaben'!$D$22 -> 0 | G126: =IF('B-Bestandsanalyse'!F80="","-",'B-Bestandsanalyse'!F80) -> 0
A127: =+'B-Bestandsanalyse'!$B$40 -> B.8 | B127: ='B-Bestandsanalyse'!$C$45 -> Endenergieverbrauch Wärme | C127: =+'B-Bestandsanalyse'!X48 -> Braunkohle | D127: ='B-Bestandsanalyse'!$G$47 -> Industrie | E127: ='B-Bestandsanalyse'!$C$47 -> MWh/a | F127: ='A-Allgemeine Angaben'!$D$22 -> 0 | G127: =IF('B-Bestandsanalyse'!G48="","-",'B-Bestandsanalyse'!G48) -> -
A128: =+'B-Bestandsanalyse'!$B$40 -> B.8 | B128: ='B-Bestandsanalyse'!$C$45 -> Endenergieverbrauch Wärme | C128: =+'B-Bestandsanalyse'!X49 -> Steinkohle | D128: ='B-Bestandsanalyse'!$G$47 -> Industrie | E128: ='B-Bestandsanalyse'!$C$47 -> MWh/a | F128: ='A-Allgemeine Angaben'!$D$22 -> 0 | G128: =IF('B-Bestandsanalyse'!G49="","-",'B-Bestandsanalyse'!G49) -> -
A129: =+'B-Bestandsanalyse'!$B$40 -> B.8 | B129: ='B-Bestandsanalyse'!$C$45 -> Endenergieverbrauch Wärme | C129: =+'B-Bestandsanalyse'!X50 -> Erdgas | D129: ='B-Bestandsanalyse'!$G$47 -> Industrie | E129: ='B-Bestandsanalyse'!$C$47 -> MWh/a | F129: ='A-Allgemeine Angaben'!$D$22 -> 0 | G129: =IF('B-Bestandsanalyse'!G50="","-",'B-Bestandsanalyse'!G50) -> -
A130: =+'B-Bestandsanalyse'!$B$40 -> B.8 | B130: ='B-Bestandsanalyse'!$C$45 -> Endenergieverbrauch Wärme | C130: =+'B-Bestandsanalyse'!X51 -> Flüssiggas | D130: ='B-Bestandsanalyse'!$G$47 -> Industrie | E130: ='B-Bestandsanalyse'!$C$47 -> MWh/a | F130: ='A-Allgemeine Angaben'!$D$22 -> 0 | G130: =IF('B-Bestandsanalyse'!G51="","-",'B-Bestandsanalyse'!G51) -> -
A131: =+'B-Bestandsanalyse'!$B$40 -> B.8 | B131: ='B-Bestandsanalyse'!$C$45 -> Endenergieverbrauch Wärme | C131: =+'B-Bestandsanalyse'!X52 -> Heizöl | D131: ='B-Bestandsanalyse'!$G$47 -> Industrie | E131: ='B-Bestandsanalyse'!$C$47 -> MWh/a | F131: ='A-Allgemeine Angaben'!$D$22 -> 0 | G131: =IF('B-Bestandsanalyse'!G52="","-",'B-Bestandsanalyse'!G52) -> -
A132: =+'B-Bestandsanalyse'!$B$40 -> B.8 | B132: ='B-Bestandsanalyse'!$C$45 -> Endenergieverbrauch Wärme | C132: =+'B-Bestandsanalyse'!X53 -> Wasserstoff | D132: ='B-Bestandsanalyse'!$G$47 -> Industrie | E132: ='B-Bestandsanalyse'!$C$47 -> MWh/a | F132: ='A-Allgemeine Angaben'!$D$22 -> 0 | G132: =IF('B-Bestandsanalyse'!G53="","-",'B-Bestandsanalyse'!G53) -> -
A133: =+'B-Bestandsanalyse'!$B$40 -> B.8 | B133: ='B-Bestandsanalyse'!$C$45 -> Endenergieverbrauch Wärme | C133: =+'B-Bestandsanalyse'!X54 -> Wasserstoffderivate | D133: ='B-Bestandsanalyse'!$G$47 -> Industrie | E133: ='B-Bestandsanalyse'!$C$47 -> MWh/a | F133: ='A-Allgemeine Angaben'!$D$22 -> 0 | G133: =IF('B-Bestandsanalyse'!G54="","-",'B-Bestandsanalyse'!G54) -> -
A134: =+'B-Bestandsanalyse'!$B$40 -> B.8 | B134: ='B-Bestandsanalyse'!$C$45 -> Endenergieverbrauch Wärme | C134: =+'B-Bestandsanalyse'!X55 -> Grubengas | D134: ='B-Bestandsanalyse'!$G$47 -> Industrie | E134: ='B-Bestandsanalyse'!$C$47 -> MWh/a | F134: ='A-Allgemeine Angaben'!$D$22 -> 0 | G134: =IF('B-Bestandsanalyse'!G55="","-",'B-Bestandsanalyse'!G55) -> -
A135: =+'B-Bestandsanalyse'!$B$40 -> B.8 | B135: ='B-Bestandsanalyse'!$C$45 -> Endenergieverbrauch Wärme | C135: =+'B-Bestandsanalyse'!X56 -> Nicht biogener Abfall | D135: ='B-Bestandsanalyse'!$G$47 -> Industrie | E135: ='B-Bestandsanalyse'!$C$47 -> MWh/a | F135: ='A-Allgemeine Angaben'!$D$22 -> 0 | G135: =IF('B-Bestandsanalyse'!G56="","-",'B-Bestandsanalyse'!G56) -> -
A136: =+'B-Bestandsanalyse'!$B$40 -> B.8 | B136: ='B-Bestandsanalyse'!$C$45 -> Endenergieverbrauch Wärme | C136: =+'B-Bestandsanalyse'!X57 -> Biogener Abfall | D136: ='B-Bestandsanalyse'!$G$47 -> Industrie | E136: ='B-Bestandsanalyse'!$C$47 -> MWh/a | F136: ='A-Allgemeine Angaben'!$D$22 -> 0 | G136: =IF('B-Bestandsanalyse'!G57="","-",'B-Bestandsanalyse'!G57) -> -
A137: =+'B-Bestandsanalyse'!$B$40 -> B.8 | B137: ='B-Bestandsanalyse'!$C$45 -> Endenergieverbrauch Wärme | C137: =+'B-Bestandsanalyse'!X58 -> Abwärme < 60 °C | D137: ='B-Bestandsanalyse'!$G$47 -> Industrie | E137: ='B-Bestandsanalyse'!$C$47 -> MWh/a | F137: ='A-Allgemeine Angaben'!$D$22 -> 0 | G137: =IF('B-Bestandsanalyse'!G58="","-",'B-Bestandsanalyse'!G58) -> -
A138: =+'B-Bestandsanalyse'!$B$40 -> B.8 | B138: ='B-Bestandsanalyse'!$C$45 -> Endenergieverbrauch Wärme | C138: =+'B-Bestandsanalyse'!X59 -> Abwärme 60 bis 110 °C | D138: ='B-Bestandsanalyse'!$G$47 -> Industrie | E138: ='B-Bestandsanalyse'!$C$47 -> MWh/a | F138: ='A-Allgemeine Angaben'!$D$22 -> 0 | G138: =IF('B-Bestandsanalyse'!G59="","-",'B-Bestandsanalyse'!G59) -> -
A139: =+'B-Bestandsanalyse'!$B$40 -> B.8 | B139: ='B-Bestandsanalyse'!$C$45 -> Endenergieverbrauch Wärme | C139: =+'B-Bestandsanalyse'!X60 -> Abwärme >= 110 °C | D139: ='B-Bestandsanalyse'!$G$47 -> Industrie | E139: ='B-Bestandsanalyse'!$C$47 -> MWh/a | F139: ='A-Allgemeine Angaben'!$D$22 -> 0 | G139: =IF('B-Bestandsanalyse'!G60="","-",'B-Bestandsanalyse'!G60) -> -
A140: =+'B-Bestandsanalyse'!$B$40 -> B.8 | B140: ='B-Bestandsanalyse'!$C$45 -> Endenergieverbrauch Wärme | C140: =+'B-Bestandsanalyse'!X61 -> feste Biomasse (ohne Altholz) | D140: ='B-Bestandsanalyse'!$G$47 -> Industrie | E140: ='B-Bestandsanalyse'!$C$47 -> MWh/a | F140: ='A-Allgemeine Angaben'!$D$22 -> 0 | G140: =IF('B-Bestandsanalyse'!G61="","-",'B-Bestandsanalyse'!G61) -> -
A141: =+'B-Bestandsanalyse'!$B$40 -> B.8 | B141: ='B-Bestandsanalyse'!$C$45 -> Endenergieverbrauch Wärme | C141: =+'B-Bestandsanalyse'!X62 -> Altholz | D141: ='B-Bestandsanalyse'!$G$47 -> Industrie | E141: ='B-Bestandsanalyse'!$C$47 -> MWh/a | F141: ='A-Allgemeine Angaben'!$D$22 -> 0 | G141: =IF('B-Bestandsanalyse'!G62="","-",'B-Bestandsanalyse'!G62) -> -
A142: =+'B-Bestandsanalyse'!$B$40 -> B.8 | B142: ='B-Bestandsanalyse'!$C$45 -> Endenergieverbrauch Wärme | C142: =+'B-Bestandsanalyse'!X63 -> Biogas | D142: ='B-Bestandsanalyse'!$G$47 -> Industrie | E142: ='B-Bestandsanalyse'!$C$47 -> MWh/a | F142: ='A-Allgemeine Angaben'!$D$22 -> 0 | G142: =IF('B-Bestandsanalyse'!G63="","-",'B-Bestandsanalyse'!G63) -> -
A143: =+'B-Bestandsanalyse'!$B$40 -> B.8 | B143: ='B-Bestandsanalyse'!$C$45 -> Endenergieverbrauch Wärme | C143: =+'B-Bestandsanalyse'!X64 -> Biomethan | D143: ='B-Bestandsanalyse'!$G$47 -> Industrie | E143: ='B-Bestandsanalyse'!$C$47 -> MWh/a | F143: ='A-Allgemeine Angaben'!$D$22 -> 0 | G143: =IF('B-Bestandsanalyse'!G64="","-",'B-Bestandsanalyse'!G64) -> -
A144: =+'B-Bestandsanalyse'!$B$40 -> B.8 | B144: ='B-Bestandsanalyse'!$C$45 -> Endenergieverbrauch Wärme | C144: =+'B-Bestandsanalyse'!X65 -> Deponiegas | D144: ='B-Bestandsanalyse'!$G$47 -> Industrie | E144: ='B-Bestandsanalyse'!$C$47 -> MWh/a | F144: ='A-Allgemeine Angaben'!$D$22 -> 0 | G144: =IF('B-Bestandsanalyse'!G65="","-",'B-Bestandsanalyse'!G65) -> -
A145: =+'B-Bestandsanalyse'!$B$40 -> B.8 | B145: ='B-Bestandsanalyse'!$C$45 -> Endenergieverbrauch Wärme | C145: =+'B-Bestandsanalyse'!X66 -> Klärgas | D145: ='B-Bestandsanalyse'!$G$47 -> Industrie | E145: ='B-Bestandsanalyse'!$C$47 -> MWh/a | F145: ='A-Allgemeine Angaben'!$D$22 -> 0 | G145: =IF('B-Bestandsanalyse'!G66="","-",'B-Bestandsanalyse'!G66) -> -
A146: =+'B-Bestandsanalyse'!$B$40 -> B.8 | B146: ='B-Bestandsanalyse'!$C$45 -> Endenergieverbrauch Wärme | C146: =+'B-Bestandsanalyse'!X67 -> Flüssige Biomasse | D146: ='B-Bestandsanalyse'!$G$47 -> Industrie | E146: ='B-Bestandsanalyse'!$C$47 -> MWh/a | F146: ='A-Allgemeine Angaben'!$D$22 -> 0 | G146: =IF('B-Bestandsanalyse'!G67="","-",'B-Bestandsanalyse'!G67) -> -
A147: =+'B-Bestandsanalyse'!$B$40 -> B.8 | B147: ='B-Bestandsanalyse'!$C$45 -> Endenergieverbrauch Wärme | C147: =+'B-Bestandsanalyse'!X68 -> Strom Wärmepumpe | D147: ='B-Bestandsanalyse'!$G$47 -> Industrie | E147: ='B-Bestandsanalyse'!$C$47 -> MWh/a | F147: ='A-Allgemeine Angaben'!$D$22 -> 0 | G147: =IF('B-Bestandsanalyse'!G68="","-",'B-Bestandsanalyse'!G68) -> -
A148: =+'B-Bestandsanalyse'!$B$40 -> B.8 | B148: ='B-Bestandsanalyse'!$C$45 -> Endenergieverbrauch Wärme | C148: =+'B-Bestandsanalyse'!X69 -> Strom Direktheizung | D148: ='B-Bestandsanalyse'!$G$47 -> Industrie | E148: ='B-Bestandsanalyse'!$C$47 -> MWh/a | F148: ='A-Allgemeine Angaben'!$D$22 -> 0 | G148: =IF('B-Bestandsanalyse'!G69="","-",'B-Bestandsanalyse'!G69) -> -
A149: =+'B-Bestandsanalyse'!$B$40 -> B.8 | B149: ='B-Bestandsanalyse'!$C$45 -> Endenergieverbrauch Wärme | C149: =+'B-Bestandsanalyse'!X70 -> Solarthermie Dach-Anlagen | D149: ='B-Bestandsanalyse'!$G$47 -> Industrie | E149: ='B-Bestandsanalyse'!$C$47 -> MWh/a | F149: ='A-Allgemeine Angaben'!$D$22 -> 0 | G149: =IF('B-Bestandsanalyse'!G70="","-",'B-Bestandsanalyse'!G70) -> -
A150: =+'B-Bestandsanalyse'!$B$40 -> B.8 | B150: ='B-Bestandsanalyse'!$C$45 -> Endenergieverbrauch Wärme | C150: =+'B-Bestandsanalyse'!X71 -> Solarthermie Freiflächenanlagen | D150: ='B-Bestandsanalyse'!$G$47 -> Industrie | E150: ='B-Bestandsanalyse'!$C$47 -> MWh/a | F150: ='A-Allgemeine Angaben'!$D$22 -> 0 | G150: =IF('B-Bestandsanalyse'!G71="","-",'B-Bestandsanalyse'!G71) -> -
A151: =+'B-Bestandsanalyse'!$B$40 -> B.8 | B151: ='B-Bestandsanalyse'!$C$45 -> Endenergieverbrauch Wärme | C151: =+'B-Bestandsanalyse'!X72 -> Oberflächennahe Geothermie | D151: ='B-Bestandsanalyse'!$G$47 -> Industrie | E151: ='B-Bestandsanalyse'!$C$47 -> MWh/a | F151: ='A-Allgemeine Angaben'!$D$22 -> 0 | G151: =IF('B-Bestandsanalyse'!G72="","-",'B-Bestandsanalyse'!G72) -> -
A152: =+'B-Bestandsanalyse'!$B$40 -> B.8 | B152: ='B-Bestandsanalyse'!$C$45 -> Endenergieverbrauch Wärme | C152: =+'B-Bestandsanalyse'!X73 -> Tiefe Geothermie | D152: ='B-Bestandsanalyse'!$G$47 -> Industrie | E152: ='B-Bestandsanalyse'!$C$47 -> MWh/a | F152: ='A-Allgemeine Angaben'!$D$22 -> 0 | G152: =IF('B-Bestandsanalyse'!G73="","-",'B-Bestandsanalyse'!G73) -> -
A153: =+'B-Bestandsanalyse'!$B$40 -> B.8 | B153: ='B-Bestandsanalyse'!$C$45 -> Endenergieverbrauch Wärme | C153: =+'B-Bestandsanalyse'!X74 -> Oberflächengewässern | D153: ='B-Bestandsanalyse'!$G$47 -> Industrie | E153: ='B-Bestandsanalyse'!$C$47 -> MWh/a | F153: ='A-Allgemeine Angaben'!$D$22 -> 0 | G153: =IF('B-Bestandsanalyse'!G74="","-",'B-Bestandsanalyse'!G74) -> -
A154: =+'B-Bestandsanalyse'!$B$40 -> B.8 | B154: ='B-Bestandsanalyse'!$C$45 -> Endenergieverbrauch Wärme | C154: =+'B-Bestandsanalyse'!X75 -> Grubenwasser | D154: ='B-Bestandsanalyse'!$G$47 -> Industrie | E154: ='B-Bestandsanalyse'!$C$47 -> MWh/a | F154: ='A-Allgemeine Angaben'!$D$22 -> 0 | G154: =IF('B-Bestandsanalyse'!G75="","-",'B-Bestandsanalyse'!G75) -> -
A155: =+'B-Bestandsanalyse'!$B$40 -> B.8 | B155: ='B-Bestandsanalyse'!$C$45 -> Endenergieverbrauch Wärme | C155: =+'B-Bestandsanalyse'!X76 -> Luft | D155: ='B-Bestandsanalyse'!$G$47 -> Industrie | E155: ='B-Bestandsanalyse'!$C$47 -> MWh/a | F155: ='A-Allgemeine Angaben'!$D$22 -> 0 | G155: =IF('B-Bestandsanalyse'!G76="","-",'B-Bestandsanalyse'!G76) -> -
A156: =+'B-Bestandsanalyse'!$B$40 -> B.8 | B156: ='B-Bestandsanalyse'!$C$45 -> Endenergieverbrauch Wärme | C156: =+'B-Bestandsanalyse'!X77 -> Abwasser | D156: ='B-Bestandsanalyse'!$G$47 -> Industrie | E156: ='B-Bestandsanalyse'!$C$47 -> MWh/a | F156: ='A-Allgemeine Angaben'!$D$22 -> 0 | G156: =IF('B-Bestandsanalyse'!G77="","-",'B-Bestandsanalyse'!G77) -> -
A157: =+'B-Bestandsanalyse'!$B$40 -> B.8 | B157: ='B-Bestandsanalyse'!$C$45 -> Endenergieverbrauch Wärme | C157: =+'B-Bestandsanalyse'!X78 -> Sonstige fossile Brennstoffe | D157: ='B-Bestandsanalyse'!$G$47 -> Industrie | E157: ='B-Bestandsanalyse'!$C$47 -> MWh/a | F157: ='A-Allgemeine Angaben'!$D$22 -> 0 | G157: =IF('B-Bestandsanalyse'!G78="","-",'B-Bestandsanalyse'!G78) -> -
A158: =+'B-Bestandsanalyse'!$B$40 -> B.8 | B158: ='B-Bestandsanalyse'!$C$45 -> Endenergieverbrauch Wärme | C158: =+'B-Bestandsanalyse'!X79 -> Sonstige erneuerbare Energien | D158: ='B-Bestandsanalyse'!$G$47 -> Industrie | E158: ='B-Bestandsanalyse'!$C$47 -> MWh/a | F158: ='A-Allgemeine Angaben'!$D$22 -> 0 | G158: =IF('B-Bestandsanalyse'!G79="","-",'B-Bestandsanalyse'!G79) -> -
A159: =+'B-Bestandsanalyse'!$B$40 -> B.8 | B159: ='B-Bestandsanalyse'!$C$45 -> Endenergieverbrauch Wärme | D159: ='B-Bestandsanalyse'!$G$47 -> Industrie | E159: ='B-Bestandsanalyse'!$C$47 -> MWh/a | F159: ='A-Allgemeine Angaben'!$D$22 -> 0 | G159: =IF('B-Bestandsanalyse'!G80="","-",'B-Bestandsanalyse'!G80) -> 0
A160: =+'B-Bestandsanalyse'!$B$40 -> B.8 | B160: ='B-Bestandsanalyse'!$C$45 -> Endenergieverbrauch Wärme | C160: ='B-Bestandsanalyse'!X48 -> Braunkohle | D160: ='B-Bestandsanalyse'!$I$45 -> Sektoren insgesamt | E160: ='B-Bestandsanalyse'!$C$47 -> MWh/a | F160: ='A-Allgemeine Angaben'!$D$22 -> 0 | G160: =IF('B-Bestandsanalyse'!I48="","-",'B-Bestandsanalyse'!I48) -> -
A161: =+'B-Bestandsanalyse'!$B$40 -> B.8 | B161: ='B-Bestandsanalyse'!$C$45 -> Endenergieverbrauch Wärme | C161: ='B-Bestandsanalyse'!X49 -> Steinkohle | D161: ='B-Bestandsanalyse'!$I$45 -> Sektoren insgesamt | E161: ='B-Bestandsanalyse'!$C$47 -> MWh/a | F161: ='A-Allgemeine Angaben'!$D$22 -> 0 | G161: =IF('B-Bestandsanalyse'!I49="","-",'B-Bestandsanalyse'!I49) -> -
A162: =+'B-Bestandsanalyse'!$B$40 -> B.8 | B162: ='B-Bestandsanalyse'!$C$45 -> Endenergieverbrauch Wärme | C162: ='B-Bestandsanalyse'!X50 -> Erdgas | D162: ='B-Bestandsanalyse'!$I$45 -> Sektoren insgesamt | E162: ='B-Bestandsanalyse'!$C$47 -> MWh/a | F162: ='A-Allgemeine Angaben'!$D$22 -> 0 | G162: =IF('B-Bestandsanalyse'!I50="","-",'B-Bestandsanalyse'!I50) -> -
A163: =+'B-Bestandsanalyse'!$B$40 -> B.8 | B163: ='B-Bestandsanalyse'!$C$45 -> Endenergieverbrauch Wärme | C163: ='B-Bestandsanalyse'!X51 -> Flüssiggas | D163: ='B-Bestandsanalyse'!$I$45 -> Sektoren insgesamt | E163: ='B-Bestandsanalyse'!$C$47 -> MWh/a | F163: ='A-Allgemeine Angaben'!$D$22 -> 0 | G163: =IF('B-Bestandsanalyse'!I51="","-",'B-Bestandsanalyse'!I51) -> -
A164: =+'B-Bestandsanalyse'!$B$40 -> B.8 | B164: ='B-Bestandsanalyse'!$C$45 -> Endenergieverbrauch Wärme | C164: ='B-Bestandsanalyse'!X52 -> Heizöl | D164: ='B-Bestandsanalyse'!$I$45 -> Sektoren insgesamt | E164: ='B-Bestandsanalyse'!$C$47 -> MWh/a | F164: ='A-Allgemeine Angaben'!$D$22 -> 0 | G164: =IF('B-Bestandsanalyse'!I52="","-",'B-Bestandsanalyse'!I52) -> -
A165: =+'B-Bestandsanalyse'!$B$40 -> B.8 | B165: ='B-Bestandsanalyse'!$C$45 -> Endenergieverbrauch Wärme | C165: ='B-Bestandsanalyse'!X53 -> Wasserstoff | D165: ='B-Bestandsanalyse'!$I$45 -> Sektoren insgesamt | E165: ='B-Bestandsanalyse'!$C$47 -> MWh/a | F165: ='A-Allgemeine Angaben'!$D$22 -> 0 | G165: =IF('B-Bestandsanalyse'!I53="","-",'B-Bestandsanalyse'!I53) -> -
A166: =+'B-Bestandsanalyse'!$B$40 -> B.8 | B166: ='B-Bestandsanalyse'!$C$45 -> Endenergieverbrauch Wärme | C166: ='B-Bestandsanalyse'!X54 -> Wasserstoffderivate | D166: ='B-Bestandsanalyse'!$I$45 -> Sektoren insgesamt | E166: ='B-Bestandsanalyse'!$C$47 -> MWh/a | F166: ='A-Allgemeine Angaben'!$D$22 -> 0 | G166: =IF('B-Bestandsanalyse'!I54="","-",'B-Bestandsanalyse'!I54) -> -
A167: =+'B-Bestandsanalyse'!$B$40 -> B.8 | B167: ='B-Bestandsanalyse'!$C$45 -> Endenergieverbrauch Wärme | C167: ='B-Bestandsanalyse'!X55 -> Grubengas | D167: ='B-Bestandsanalyse'!$I$45 -> Sektoren insgesamt | E167: ='B-Bestandsanalyse'!$C$47 -> MWh/a | F167: ='A-Allgemeine Angaben'!$D$22 -> 0 | G167: =IF('B-Bestandsanalyse'!I55="","-",'B-Bestandsanalyse'!I55) -> -
A168: =+'B-Bestandsanalyse'!$B$40 -> B.8 | B168: ='B-Bestandsanalyse'!$C$45 -> Endenergieverbrauch Wärme | C168: ='B-Bestandsanalyse'!X56 -> Nicht biogener Abfall | D168: ='B-Bestandsanalyse'!$I$45 -> Sektoren insgesamt | E168: ='B-Bestandsanalyse'!$C$47 -> MWh/a | F168: ='A-Allgemeine Angaben'!$D$22 -> 0 | G168: =IF('B-Bestandsanalyse'!I56="","-",'B-Bestandsanalyse'!I56) -> -
A169: =+'B-Bestandsanalyse'!$B$40 -> B.8 | B169: ='B-Bestandsanalyse'!$C$45 -> Endenergieverbrauch Wärme | C169: ='B-Bestandsanalyse'!X57 -> Biogener Abfall | D169: ='B-Bestandsanalyse'!$I$45 -> Sektoren insgesamt | E169: ='B-Bestandsanalyse'!$C$47 -> MWh/a | F169: ='A-Allgemeine Angaben'!$D$22 -> 0 | G169: =IF('B-Bestandsanalyse'!I57="","-",'B-Bestandsanalyse'!I57) -> -
A170: =+'B-Bestandsanalyse'!$B$40 -> B.8 | B170: ='B-Bestandsanalyse'!$C$45 -> Endenergieverbrauch Wärme | C170: ='B-Bestandsanalyse'!X58 -> Abwärme < 60 °C | D170: ='B-Bestandsanalyse'!$I$45 -> Sektoren insgesamt | E170: ='B-Bestandsanalyse'!$C$47 -> MWh/a | F170: ='A-Allgemeine Angaben'!$D$22 -> 0 | G170: =IF('B-Bestandsanalyse'!I58="","-",'B-Bestandsanalyse'!I58) -> -
A171: =+'B-Bestandsanalyse'!$B$40 -> B.8 | B171: ='B-Bestandsanalyse'!$C$45 -> Endenergieverbrauch Wärme | C171: ='B-Bestandsanalyse'!X59 -> Abwärme 60 bis 110 °C | D171: ='B-Bestandsanalyse'!$I$45 -> Sektoren insgesamt | E171: ='B-Bestandsanalyse'!$C$47 -> MWh/a | F171: ='A-Allgemeine Angaben'!$D$22 -> 0 | G171: =IF('B-Bestandsanalyse'!I59="","-",'B-Bestandsanalyse'!I59) -> -
A172: =+'B-Bestandsanalyse'!$B$40 -> B.8 | B172: ='B-Bestandsanalyse'!$C$45 -> Endenergieverbrauch Wärme | C172: ='B-Bestandsanalyse'!X60 -> Abwärme >= 110 °C | D172: ='B-Bestandsanalyse'!$I$45 -> Sektoren insgesamt | E172: ='B-Bestandsanalyse'!$C$47 -> MWh/a | F172: ='A-Allgemeine Angaben'!$D$22 -> 0 | G172: =IF('B-Bestandsanalyse'!I60="","-",'B-Bestandsanalyse'!I60) -> -
A173: =+'B-Bestandsanalyse'!$B$40 -> B.8 | B173: ='B-Bestandsanalyse'!$C$45 -> Endenergieverbrauch Wärme | C173: ='B-Bestandsanalyse'!X61 -> feste Biomasse (ohne Altholz) | D173: ='B-Bestandsanalyse'!$I$45 -> Sektoren insgesamt | E173: ='B-Bestandsanalyse'!$C$47 -> MWh/a | F173: ='A-Allgemeine Angaben'!$D$22 -> 0 | G173: =IF('B-Bestandsanalyse'!I61="","-",'B-Bestandsanalyse'!I61) -> -
A174: =+'B-Bestandsanalyse'!$B$40 -> B.8 | B174: ='B-Bestandsanalyse'!$C$45 -> Endenergieverbrauch Wärme | C174: ='B-Bestandsanalyse'!X62 -> Altholz | D174: ='B-Bestandsanalyse'!$I$45 -> Sektoren insgesamt | E174: ='B-Bestandsanalyse'!$C$47 -> MWh/a | F174: ='A-Allgemeine Angaben'!$D$22 -> 0 | G174: =IF('B-Bestandsanalyse'!I62="","-",'B-Bestandsanalyse'!I62) -> -
A175: =+'B-Bestandsanalyse'!$B$40 -> B.8 | B175: ='B-Bestandsanalyse'!$C$45 -> Endenergieverbrauch Wärme | C175: ='B-Bestandsanalyse'!X63 -> Biogas | D175: ='B-Bestandsanalyse'!$I$45 -> Sektoren insgesamt | E175: ='B-Bestandsanalyse'!$C$47 -> MWh/a | F175: ='A-Allgemeine Angaben'!$D$22 -> 0 | G175: =IF('B-Bestandsanalyse'!I63="","-",'B-Bestandsanalyse'!I63) -> -
A176: =+'B-Bestandsanalyse'!$B$40 -> B.8 | B176: ='B-Bestandsanalyse'!$C$45 -> Endenergieverbrauch Wärme | C176: ='B-Bestandsanalyse'!X64 -> Biomethan | D176: ='B-Bestandsanalyse'!$I$45 -> Sektoren insgesamt | E176: ='B-Bestandsanalyse'!$C$47 -> MWh/a | F176: ='A-Allgemeine Angaben'!$D$22 -> 0 | G176: =IF('B-Bestandsanalyse'!I64="","-",'B-Bestandsanalyse'!I64) -> -
A177: =+'B-Bestandsanalyse'!$B$40 -> B.8 | B177: ='B-Bestandsanalyse'!$C$45 -> Endenergieverbrauch Wärme | C177: ='B-Bestandsanalyse'!X65 -> Deponiegas | D177: ='B-Bestandsanalyse'!$I$45 -> Sektoren insgesamt | E177: ='B-Bestandsanalyse'!$C$47 -> MWh/a | F177: ='A-Allgemeine Angaben'!$D$22 -> 0 | G177: =IF('B-Bestandsanalyse'!I65="","-",'B-Bestandsanalyse'!I65) -> -
A178: =+'B-Bestandsanalyse'!$B$40 -> B.8 | B178: ='B-Bestandsanalyse'!$C$45 -> Endenergieverbrauch Wärme | C178: ='B-Bestandsanalyse'!X66 -> Klärgas | D178: ='B-Bestandsanalyse'!$I$45 -> Sektoren insgesamt | E178: ='B-Bestandsanalyse'!$C$47 -> MWh/a | F178: ='A-Allgemeine Angaben'!$D$22 -> 0 | G178: =IF('B-Bestandsanalyse'!I66="","-",'B-Bestandsanalyse'!I66) -> -
A179: =+'B-Bestandsanalyse'!$B$40 -> B.8 | B179: ='B-Bestandsanalyse'!$C$45 -> Endenergieverbrauch Wärme | C179: ='B-Bestandsanalyse'!X67 -> Flüssige Biomasse | D179: ='B-Bestandsanalyse'!$I$45 -> Sektoren insgesamt | E179: ='B-Bestandsanalyse'!$C$47 -> MWh/a | F179: ='A-Allgemeine Angaben'!$D$22 -> 0 | G179: =IF('B-Bestandsanalyse'!I67="","-",'B-Bestandsanalyse'!I67) -> -
A180: =+'B-Bestandsanalyse'!$B$40 -> B.8 | B180: ='B-Bestandsanalyse'!$C$45 -> Endenergieverbrauch Wärme | C180: ='B-Bestandsanalyse'!X68 -> Strom Wärmepumpe | D180: ='B-Bestandsanalyse'!$I$45 -> Sektoren insgesamt | E180: ='B-Bestandsanalyse'!$C$47 -> MWh/a | F180: ='A-Allgemeine Angaben'!$D$22 -> 0 | G180: =IF('B-Bestandsanalyse'!I68="","-",'B-Bestandsanalyse'!I68) -> -
A181: =+'B-Bestandsanalyse'!$B$40 -> B.8 | B181: ='B-Bestandsanalyse'!$C$45 -> Endenergieverbrauch Wärme | C181: ='B-Bestandsanalyse'!X69 -> Strom Direktheizung | D181: ='B-Bestandsanalyse'!$I$45 -> Sektoren insgesamt | E181: ='B-Bestandsanalyse'!$C$47 -> MWh/a | F181: ='A-Allgemeine Angaben'!$D$22 -> 0 | G181: =IF('B-Bestandsanalyse'!I69="","-",'B-Bestandsanalyse'!I69) -> -
A182: =+'B-Bestandsanalyse'!$B$40 -> B.8 | B182: ='B-Bestandsanalyse'!$C$45 -> Endenergieverbrauch Wärme | C182: ='B-Bestandsanalyse'!X70 -> Solarthermie Dach-Anlagen | D182: ='B-Bestandsanalyse'!$I$45 -> Sektoren insgesamt | E182: ='B-Bestandsanalyse'!$C$47 -> MWh/a | F182: ='A-Allgemeine Angaben'!$D$22 -> 0 | G182: =IF('B-Bestandsanalyse'!I70="","-",'B-Bestandsanalyse'!I70) -> -
A183: =+'B-Bestandsanalyse'!$B$40 -> B.8 | B183: ='B-Bestandsanalyse'!$C$45 -> Endenergieverbrauch Wärme | C183: ='B-Bestandsanalyse'!X71 -> Solarthermie Freiflächenanlagen | D183: ='B-Bestandsanalyse'!$I$45 -> Sektoren insgesamt | E183: ='B-Bestandsanalyse'!$C$47 -> MWh/a | F183: ='A-Allgemeine Angaben'!$D$22 -> 0 | G183: =IF('B-Bestandsanalyse'!I71="","-",'B-Bestandsanalyse'!I71) -> -
A184: =+'B-Bestandsanalyse'!$B$40 -> B.8 | B184: ='B-Bestandsanalyse'!$C$45 -> Endenergieverbrauch Wärme | C184: ='B-Bestandsanalyse'!X72 -> Oberflächennahe Geothermie | D184: ='B-Bestandsanalyse'!$I$45 -> Sektoren insgesamt | E184: ='B-Bestandsanalyse'!$C$47 -> MWh/a | F184: ='A-Allgemeine Angaben'!$D$22 -> 0 | G184: =IF('B-Bestandsanalyse'!I72="","-",'B-Bestandsanalyse'!I72) -> -
A185: =+'B-Bestandsanalyse'!$B$40 -> B.8 | B185: ='B-Bestandsanalyse'!$C$45 -> Endenergieverbrauch Wärme | C185: ='B-Bestandsanalyse'!X73 -> Tiefe Geothermie | D185: ='B-Bestandsanalyse'!$I$45 -> Sektoren insgesamt | E185: ='B-Bestandsanalyse'!$C$47 -> MWh/a | F185: ='A-Allgemeine Angaben'!$D$22 -> 0 | G185: =IF('B-Bestandsanalyse'!I73="","-",'B-Bestandsanalyse'!I73) -> -
A186: =+'B-Bestandsanalyse'!$B$40 -> B.8 | B186: ='B-Bestandsanalyse'!$C$45 -> Endenergieverbrauch Wärme | C186: ='B-Bestandsanalyse'!X74 -> Oberflächengewässern | D186: ='B-Bestandsanalyse'!$I$45 -> Sektoren insgesamt | E186: ='B-Bestandsanalyse'!$C$47 -> MWh/a | F186: ='A-Allgemeine Angaben'!$D$22 -> 0 | G186: =IF('B-Bestandsanalyse'!I74="","-",'B-Bestandsanalyse'!I74) -> -
A187: =+'B-Bestandsanalyse'!$B$40 -> B.8 | B187: ='B-Bestandsanalyse'!$C$45 -> Endenergieverbrauch Wärme | C187: ='B-Bestandsanalyse'!X75 -> Grubenwasser | D187: ='B-Bestandsanalyse'!$I$45 -> Sektoren insgesamt | E187: ='B-Bestandsanalyse'!$C$47 -> MWh/a | F187: ='A-Allgemeine Angaben'!$D$22 -> 0 | G187: =IF('B-Bestandsanalyse'!I75="","-",'B-Bestandsanalyse'!I75) -> -
A188: =+'B-Bestandsanalyse'!$B$40 -> B.8 | B188: ='B-Bestandsanalyse'!$C$45 -> Endenergieverbrauch Wärme | C188: ='B-Bestandsanalyse'!X76 -> Luft | D188: ='B-Bestandsanalyse'!$I$45 -> Sektoren insgesamt | E188: ='B-Bestandsanalyse'!$C$47 -> MWh/a | F188: ='A-Allgemeine Angaben'!$D$22 -> 0 | G188: =IF('B-Bestandsanalyse'!I76="","-",'B-Bestandsanalyse'!I76) -> -
A189: =+'B-Bestandsanalyse'!$B$40 -> B.8 | B189: ='B-Bestandsanalyse'!$C$45 -> Endenergieverbrauch Wärme | C189: ='B-Bestandsanalyse'!X77 -> Abwasser | D189: ='B-Bestandsanalyse'!$I$45 -> Sektoren insgesamt | E189: ='B-Bestandsanalyse'!$C$47 -> MWh/a | F189: ='A-Allgemeine Angaben'!$D$22 -> 0 | G189: =IF('B-Bestandsanalyse'!I77="","-",'B-Bestandsanalyse'!I77) -> -
A190: =+'B-Bestandsanalyse'!$B$40 -> B.8 | B190: ='B-Bestandsanalyse'!$C$45 -> Endenergieverbrauch Wärme | C190: ='B-Bestandsanalyse'!X78 -> Sonstige fossile Brennstoffe | D190: ='B-Bestandsanalyse'!$I$45 -> Sektoren insgesamt | E190: ='B-Bestandsanalyse'!$C$47 -> MWh/a | F190: ='A-Allgemeine Angaben'!$D$22 -> 0 | G190: =IF('B-Bestandsanalyse'!I78="","-",'B-Bestandsanalyse'!I78) -> -
A191: =+'B-Bestandsanalyse'!$B$40 -> B.8 | B191: ='B-Bestandsanalyse'!$C$45 -> Endenergieverbrauch Wärme | C191: ='B-Bestandsanalyse'!X79 -> Sonstige erneuerbare Energien | D191: ='B-Bestandsanalyse'!$I$45 -> Sektoren insgesamt | E191: ='B-Bestandsanalyse'!$C$47 -> MWh/a | F191: ='A-Allgemeine Angaben'!$D$22 -> 0 | G191: =IF('B-Bestandsanalyse'!I79="","-",'B-Bestandsanalyse'!I79) -> -
A192: =+'B-Bestandsanalyse'!$B$40 -> B.8 | B192: ='B-Bestandsanalyse'!$C$45 -> Endenergieverbrauch Wärme | D192: ='B-Bestandsanalyse'!$I$45 -> Sektoren insgesamt | E192: ='B-Bestandsanalyse'!$C$47 -> MWh/a | F192: ='A-Allgemeine Angaben'!$D$22 -> 0 | G192: =IF('B-Bestandsanalyse'!I80="","-",'B-Bestandsanalyse'!I80) -> 0
A193: =+'B-Bestandsanalyse'!$B$83 -> B.9 | B193: ='B-Bestandsanalyse'!X85 -> Endenergieverbrauch Gebäudewärme | E193: ='B-Bestandsanalyse'!E85 -> MWh/a | F193: ='A-Allgemeine Angaben'!$D$22 -> 0 | G193: =IF('B-Bestandsanalyse'!D85="","-",'B-Bestandsanalyse'!D85) -> -
A194: =+'B-Bestandsanalyse'!$B$83 -> B.9 | B194: ='B-Bestandsanalyse'!X86 -> Endenergieverbrauch Prozesswärme | E194: ='B-Bestandsanalyse'!E86 -> MWh/a | F194: ='A-Allgemeine Angaben'!$D$22 -> 0 | G194: =IF('B-Bestandsanalyse'!D86="","-",'B-Bestandsanalyse'!D86) -> -
A195: ='B-Bestandsanalyse'!$B$89 -> B.10 | B195: ='B-Bestandsanalyse'!$C$92 -> Endenergieverbrauch leitungsgebundene Wärme | C195: ='B-Bestandsanalyse'!X48 -> Braunkohle | D195: ='B-Bestandsanalyse'!$I$45 -> Sektoren insgesamt | E195: ='B-Bestandsanalyse'!$C$47 -> MWh/a | F195: ='A-Allgemeine Angaben'!$D$22 -> 0 | G195: =IF('B-Bestandsanalyse'!D95="","-",'B-Bestandsanalyse'!D95) -> -
A196: ='B-Bestandsanalyse'!$B$89 -> B.10 | B196: ='B-Bestandsanalyse'!$C$92 -> Endenergieverbrauch leitungsgebundene Wärme | C196: ='B-Bestandsanalyse'!X49 -> Steinkohle | D196: ='B-Bestandsanalyse'!$I$45 -> Sektoren insgesamt | E196: ='B-Bestandsanalyse'!$C$47 -> MWh/a | F196: ='A-Allgemeine Angaben'!$D$22 -> 0 | G196: =IF('B-Bestandsanalyse'!D96="","-",'B-Bestandsanalyse'!D96) -> -
A197: ='B-Bestandsanalyse'!$B$89 -> B.10 | B197: ='B-Bestandsanalyse'!$C$92 -> Endenergieverbrauch leitungsgebundene Wärme | C197: ='B-Bestandsanalyse'!X50 -> Erdgas | D197: ='B-Bestandsanalyse'!$I$45 -> Sektoren insgesamt | E197: ='B-Bestandsanalyse'!$C$47 -> MWh/a | F197: ='A-Allgemeine Angaben'!$D$22 -> 0 | G197: =IF('B-Bestandsanalyse'!D97="","-",'B-Bestandsanalyse'!D97) -> -
A198: ='B-Bestandsanalyse'!$B$89 -> B.10 | B198: ='B-Bestandsanalyse'!$C$92 -> Endenergieverbrauch leitungsgebundene Wärme | C198: ='B-Bestandsanalyse'!X51 -> Flüssiggas | D198: ='B-Bestandsanalyse'!$I$45 -> Sektoren insgesamt | E198: ='B-Bestandsanalyse'!$C$47 -> MWh/a | F198: ='A-Allgemeine Angaben'!$D$22 -> 0 | G198: =IF('B-Bestandsanalyse'!D98="","-",'B-Bestandsanalyse'!D98) -> -
A199: ='B-Bestandsanalyse'!$B$89 -> B.10 | B199: ='B-Bestandsanalyse'!$C$92 -> Endenergieverbrauch leitungsgebundene Wärme | C199: ='B-Bestandsanalyse'!X52 -> Heizöl | D199: ='B-Bestandsanalyse'!$I$45 -> Sektoren insgesamt | E199: ='B-Bestandsanalyse'!$C$47 -> MWh/a | F199: ='A-Allgemeine Angaben'!$D$22 -> 0 | G199: =IF('B-Bestandsanalyse'!D99="","-",'B-Bestandsanalyse'!D99) -> -
A200: ='B-Bestandsanalyse'!$B$89 -> B.10 | B200: ='B-Bestandsanalyse'!$C$92 -> Endenergieverbrauch leitungsgebundene Wärme | C200: ='B-Bestandsanalyse'!X53 -> Wasserstoff | D200: ='B-Bestandsanalyse'!$I$45 -> Sektoren insgesamt | E200: ='B-Bestandsanalyse'!$C$47 -> MWh/a | F200: ='A-Allgemeine Angaben'!$D$22 -> 0 | G200: =IF('B-Bestandsanalyse'!D100="","-",'B-Bestandsanalyse'!D100) -> -
A201: ='B-Bestandsanalyse'!$B$89 -> B.10 | B201: ='B-Bestandsanalyse'!$C$92 -> Endenergieverbrauch leitungsgebundene Wärme | C201: ='B-Bestandsanalyse'!X54 -> Wasserstoffderivate | D201: ='B-Bestandsanalyse'!$I$45 -> Sektoren insgesamt | E201: ='B-Bestandsanalyse'!$C$47 -> MWh/a | F201: ='A-Allgemeine Angaben'!$D$22 -> 0 | G201: =IF('B-Bestandsanalyse'!D101="","-",'B-Bestandsanalyse'!D101) -> -
... 1047 more rows

Sheet Bevölkerung (hidden)
A1: Amtlicher Gemeindeschlüssel (AGS) | B1: Regionalname | C1: Stichtag | D1: Bevölkerung insgesamt | F1: 2024 | G1: Quelle StaLA
A2: 8111000 | B2: Stuttgart, Landeshauptstadt | C2: 2023-12-31 | D2: 613111 | F2: 612,663
A3: 8115001 | B3: Aidlingen | C3: 2023-12-31 | D3: 9288 | F3: 9,302
A4: 8115002 | B4: Altdorf | C4: 2023-12-31 | D4: 4495 | F4: 4,529
A5: 8115003 | B5: Böblingen, Stadt | C5: 2023-12-31 | D5: 51405 | F5: 51,483
A6: 8115004 | B6: Bondorf | C6: 2023-12-31 | D6: 6236 | F6: 6,230
A7: 8115010 | B7: Deckenpfronn | C7: 2023-12-31 | D7: 3299 | F7: 3,274
A8: 8115013 | B8: Ehningen | C8: 2023-12-31 | D8: 9198 | F8: 9,277
A9: 8115015 | B9: Gärtringen | C9: 2023-12-31 | D9: 13015 | F9: 12,934
A10: 8115016 | B10: Gäufelden | C10: 2023-12-31 | D10: 9020 | F10: 9,181
A11: 8115021 | B11: Herrenberg, Stadt | C11: 2023-12-31 | D11: 34125 | F11: 34,192
A12: 8115022 | B12: Hildrizhausen | C12: 2023-12-31 | D12: 3557 | F12: 3,581
A13: 8115024 | B13: Holzgerlingen, Stadt | C13: 2023-12-31 | D13: 13975 | F13: 14,184
A14: 8115028 | B14: Leonberg, Stadt | C14: 2023-12-31 | D14: 49043 | F14: 49,480
A15: 8115029 | B15: Magstadt | C15: 2023-12-31 | D15: 9574 | F15: 9,513
A16: 8115034 | B16: Mötzingen | C16: 2023-12-31 | D16: 3744 | F16: 3,719
A17: 8115037 | B17: Nufringen | C17: 2023-12-31 | D17: 5802 | F17: 5,806
A18: 8115041 | B18: Renningen, Stadt | C18: 2023-12-31 | D18: 18603 | F18: 18,567
A19: 8115042 | B19: Rutesheim, Stadt | C19: 2023-12-31 | D19: 11285 | F19: 11,258
A20: 8115044 | B20: Schönaich | C20: 2023-12-31 | D20: 10469 | F20: 10,495
A21: 8115045 | B21: Sindelfingen, Stadt | C21: 2023-12-31 | D21: 61296 | F21: 61,422
A22: 8115046 | B22: Steinenbronn | C22: 2023-12-31 | D22: 6411 | F22: 6,332
A23: 8115048 | B23: Waldenbuch, Stadt | C23: 2023-12-31 | D23: 8684 | F23: 8,750
A24: 8115050 | B24: Weil der Stadt, Stadt | C24: 2023-12-31 | D24: 19463 | F24: 19,353
A25: 8115051 | B25: Weil im Schönbuch | C25: 2023-12-31 | D25: 9962 | F25: 9,970
A26: 8115052 | B26: Weissach | C26: 2023-12-31 | D26: 7658 | F26: 7,745
A27: 8115053 | B27: Jettingen | C27: 2023-12-31 | D27: 8095 | F27: 8,012
A28: 8115054 | B28: Grafenau | C28: 2023-12-31 | D28: 6559 | F28: 6,578
A29: 8116004 | B29: Altbach | C29: 2023-12-31 | D29: 6061 | F29: 6,047
A30: 8116005 | B30: Altdorf | C30: 2023-12-31 | D30: 1685 | F30: 1,713
A31: 8116006 | B31: Altenriet | C31: 2023-12-31 | D31: 1955 | F31: 1,942
A32: 8116007 | B32: Baltmannsweiler | C32: 2023-12-31 | D32: 5541 | F32: 5,525
A33: 8116008 | B33: Bempflingen | C33: 2023-12-31 | D33: 3332 | F33: 3,301
A34: 8116011 | B34: Beuren | C34: 2023-12-31 | D34: 3602 | F34: 3,591
A35: 8116012 | B35: Bissingen an der Teck | C35: 2023-12-31 | D35: 3377 | F35: 3,406
A36: 8116014 | B36: Deizisau | C36: 2023-12-31 | D36: 6709 | F36: 6,707
A37: 8116015 | B37: Denkendorf | C37: 2023-12-31 | D37: 11133 | F37: 11,092
A38: 8116016 | B38: Dettingen unter Teck | C38: 2023-12-31 | D38: 6147 | F38: 6,138
A39: 8116018 | B39: Erkenbrechtsweiler | C39: 2023-12-31 | D39: 2049 | F39: 1,992
A40: 8116019 | B40: Esslingen am Neckar, Stadt | C40: 2023-12-31 | D40: 96470 | F40: 96,182
A41: 8116020 | B41: Frickenhausen | C41: 2023-12-31 | D41: 9198 | F41: 9,201
A42: 8116022 | B42: Großbettlingen | C42: 2023-12-31 | D42: 4197 | F42: 4,225
A43: 8116027 | B43: Hochdorf | C43: 2023-12-31 | D43: 4863 | F43: 4,773
A44: 8116029 | B44: Holzmaden | C44: 2023-12-31 | D44: 2291 | F44: 2,284
A45: 8116033 | B45: Kirchheim unter Teck, Stadt | C45: 2023-12-31 | D45: 42412 | F45: 42,299
A46: 8116035 | B46: Köngen | C46: 2023-12-31 | D46: 9556 | F46: 9,716
A47: 8116036 | B47: Kohlberg | C47: 2023-12-31 | D47: 2281 | F47: 2,277
A48: 8116037 | B48: Lichtenwald | C48: 2023-12-31 | D48: 2543 | F48: 2,564
A49: 8116041 | B49: Neckartailfingen | C49: 2023-12-31 | D49: 3814 | F49: 3,841
A50: 8116042 | B50: Neckartenzlingen | C50: 2023-12-31 | D50: 6221 | F50: 6,223
A51: 8116043 | B51: Neidlingen | C51: 2023-12-31 | D51: 1702 | F51: 1,707
A52: 8116046 | B52: Neuffen, Stadt | C52: 2023-12-31 | D52: 6164 | F52: 6,104
A53: 8116047 | B53: Neuhausen auf den Fildern | C53: 2023-12-31 | D53: 12375 | F53: 12,506
A54: 8116048 | B54: Notzingen | C54: 2023-12-31 | D54: 3590 | F54: 3,684
A55: 8116049 | B55: Nürtingen, Stadt | C55: 2023-12-31 | D55: 40765 | F55: 40,773
A56: 8116050 | B56: Oberboihingen | C56: 2023-12-31 | D56: 5616 | F56: 5,644
A57: 8116053 | B57: Ohmden | C57: 2023-12-31 | D57: 1760 | F57: 1,739
A58: 8116054 | B58: Owen, Stadt | C58: 2023-12-31 | D58: 3436 | F58: 3,417
A59: 8116056 | B59: Plochingen, Stadt | C59: 2023-12-31 | D59: 14251 | F59: 14,487
A60: 8116058 | B60: Reichenbach an der Fils | C60: 2023-12-31 | D60: 8263 | F60: 8,362
A61: 8116063 | B61: Schlaitdorf | C61: 2023-12-31 | D61: 1881 | F61: 1,882
A62: 8116068 | B62: Unterensingen | C62: 2023-12-31 | D62: 4924 | F62: 4,933
A63: 8116070 | B63: Weilheim an der Teck, Stadt | C63: 2023-12-31 | D63: 9922 | F63: 9,887
A64: 8116071 | B64: Wendlingen am Neckar, Stadt | C64: 2023-12-31 | D64: 15877 | F64: 15,988
A65: 8116072 | B65: Wernau (Neckar), Stadt | C65: 2023-12-31 | D65: 12259 | F65: 12,200
A66: 8116073 | B66: Wolfschlugen | C66: 2023-12-31 | D66: 6239 | F66: 6,199
A67: 8116076 | B67: Aichwald | C67: 2023-12-31 | D67: 7282 | F67: 7,271
A68: 8116077 | B68: Filderstadt, Stadt | C68: 2023-12-31 | D68: 46010 | F68: 46,243
A69: 8116078 | B69: Leinfelden-Echterdingen, Stadt | C69: 2023-12-31 | D69: 41042 | F69: 41,185
A70: 8116079 | B70: Lenningen | C70: 2023-12-31 | D70: 8003 | F70: 7,974
A71: 8116080 | B71: Ostfildern, Stadt | C71: 2023-12-31 | D71: 39612 | F71: 39,778
A72: 8116081 | B72: Aichtal, Stadt | C72: 2023-12-31 | D72: 9617 | F72: 9,599
A73: 8117001 | B73: Adelberg | C73: 2023-12-31 | D73: 1968 | F73: 1,961
A74: 8117002 | B74: Aichelberg | C74: 2023-12-31 | D74: 1298 | F74: 1,287
A75: 8117003 | B75: Albershausen | C75: 2023-12-31 | D75: 4421 | F75: 4,408
A76: 8117006 | B76: Bad Ditzenbach | C76: 2023-12-31 | D76: 3846 | F76: 3,840
A77: 8117007 | B77: Bad Überkingen | C77: 2023-12-31 | D77: 3812 | F77: 3,788
A78: 8117009 | B78: Birenbach | C78: 2023-12-31 | D78: 1876 | F78: 1,905
A79: 8117010 | B79: Böhmenkirch | C79: 2023-12-31 | D79: 5628 | F79: 5,684
A80: 8117011 | B80: Börtlingen | C80: 2023-12-31 | D80: 1714 | F80: 1,709
A81: 8117012 | B81: Bad Boll | C81: 2023-12-31 | D81: 5162 | F81: 5,116
A82: 8117014 | B82: Deggingen | C82: 2023-12-31 | D82: 5109 | F82: 5,066
A83: 8117015 | B83: Donzdorf, Stadt | C83: 2023-12-31 | D83: 10625 | F83: 10,568
A84: 8117016 | B84: Drackenstein | C84: 2023-12-31 | D84: 450 | F84: 441
A85: 8117017 | B85: Dürnau | C85: 2023-12-31 | D85: 2201 | F85: 2,194
A86: 8117018 | B86: Ebersbach an der Fils, Stadt | C86: 2023-12-31 | D86: 15358 | F86: 15,420
A87: 8117019 | B87: Eislingen/Fils, Stadt | C87: 2023-12-31 | D87: 22401 | F87: 22,325
A88: 8117020 | B88: Eschenbach | C88: 2023-12-31 | D88: 2108 | F88: 2,110
A89: 8117023 | B89: Gammelshausen | C89: 2023-12-31 | D89: 1495 | F89: 1,509
A90: 8117024 | B90: Geislingen an der Steige, Stadt | C90: 2023-12-31 | D90: 27872 | F90: 27,791
A91: 8117025 | B91: Gingen an der Fils | C91: 2023-12-31 | D91: 4462 | F91: 4,441
A92: 8117026 | B92: Göppingen, Stadt | C92: 2023-12-31 | D92: 58802 | F92: 58,937
A93: 8117028 | B93: Gruibingen | C93: 2023-12-31 | D93: 2270 | F93: 2,249
A94: 8117029 | B94: Hattenhofen | C94: 2023-12-31 | D94: 2940 | F94: 2,925
A95: 8117030 | B95: Heiningen | C95: 2023-12-31 | D95: 5077 | F95: 5,077
A96: 8117031 | B96: Hohenstadt | C96: 2023-12-31 | D96: 765 | F96: 733
A97: 8117033 | B97: Kuchen | C97: 2023-12-31 | D97: 5580 | F97: 5,544
A98: 8117035 | B98: Mühlhausen im Täle | C98: 2023-12-31 | D98: 1104 | F98: 1,072
A99: 8117037 | B99: Ottenbach | C99: 2023-12-31 | D99: 2376 | F99: 2,364
A100: 8117038 | B100: Rechberghausen | C100: 2023-12-31 | D100: 5464 | F100: 5,491
A101: 8117042 | B101: Salach | C101: 2023-12-31 | D101: 8055 | F101: 8,042
A102: 8117043 | B102: Schlat | C102: 2023-12-31 | D102: 1655 | F102: 1,668
A103: 8117044 | B103: Schlierbach | C103: 2023-12-31 | D103: 3887 | F103: 3,940
A104: 8117049 | B104: Süßen, Stadt | C104: 2023-12-31 | D104: 10200 | F104: 10,185
A105: 8117051 | B105: Uhingen, Stadt | C105: 2023-12-31 | D105: 14505 | F105: 14,304
A106: 8117053 | B106: Wäschenbeuren | C106: 2023-12-31 | D106: 3924 | F106: 3,895
A107: 8117055 | B107: Wangen | C107: 2023-12-31 | D107: 3193 | F107: 3,183
A108: 8117058 | B108: Wiesensteig, Stadt | C108: 2023-12-31 | D108: 1983 | F108: 2,001
A109: 8117060 | B109: Zell unter Aichelberg | C109: 2023-12-31 | D109: 3132 | F109: 3,078
A110: 8117061 | B110: Lauterstein, Stadt | C110: 2023-12-31 | D110: 2514 | F110: 2,558
A111: 8118001 | B111: Affalterbach | C111: 2023-12-31 | D111: 4354 | F111: 4,364
A112: 8118003 | B112: Asperg, Stadt | C112: 2023-12-31 | D112: 13506 | F112: 13,650
A113: 8118006 | B113: Benningen am Neckar | C113: 2023-12-31 | D113: 6321 | F113: 6,323
A114: 8118007 | B114: Besigheim, Stadt | C114: 2023-12-31 | D114: 12258 | F114: 12,267
A115: 8118010 | B115: Bönnigheim, Stadt | C115: 2023-12-31 | D115: 8106 | F115: 8,123
A116: 8118011 | B116: Ditzingen, Stadt | C116: 2023-12-31 | D116: 22826 | F116: 22,666
A117: 8118012 | B117: Eberdingen | C117: 2023-12-31 | D117: 6803 | F117: 6,800
A118: 8118014 | B118: Erdmannhausen | C118: 2023-12-31 | D118: 5194 | F118: 5,261
A119: 8118015 | B119: Erligheim | C119: 2023-12-31 | D119: 3022 | F119: 3,071
A120: 8118016 | B120: Freudental | C120: 2023-12-31 | D120: 2466 | F120: 2,502
A121: 8118018 | B121: Gemmrigheim | C121: 2023-12-31 | D121: 4610 | F121: 4,620
A122: 8118019 | B122: Gerlingen, Stadt | C122: 2023-12-31 | D122: 18651 | F122: 18,392
A123: 8118021 | B123: Großbottwar, Stadt | C123: 2023-12-31 | D123: 8029 | F123: 8,005
A124: 8118027 | B124: Hemmingen | C124: 2023-12-31 | D124: 7919 | F124: 7,901
A125: 8118028 | B125: Hessigheim | C125: 2023-12-31 | D125: 2506 | F125: 2,502
A126: 8118040 | B126: Kirchheim am Neckar | C126: 2023-12-31 | D126: 5912 | F126: 6,004
A127: 8118046 | B127: Kornwestheim, Stadt | C127: 2023-12-31 | D127: 33891 | F127: 33,980
A128: 8118047 | B128: Löchgau | C128: 2023-12-31 | D128: 5778 | F128: 5,778
A129: 8118048 | B129: Ludwigsburg, Stadt | C129: 2023-12-31 | D129: 92952 | F129: 92,858
A130: 8118049 | B130: Marbach am Neckar, Stadt | C130: 2023-12-31 | D130: 15461 | F130: 15,474
A131: 8118050 | B131: Markgröningen, Stadt | C131: 2023-12-31 | D131: 14206 | F131: 14,138
A132: 8118051 | B132: Möglingen | C132: 2023-12-31 | D132: 10717 | F132: 10,784
A133: 8118053 | B133: Mundelsheim | C133: 2023-12-31 | D133: 3514 | F133: 3,531
A134: 8118054 | B134: Murr | C134: 2023-12-31 | D134: 6598 | F134: 6,578
A135: 8118059 | B135: Oberriexingen, Stadt | C135: 2023-12-31 | D135: 3285 | F135: 3,306
A136: 8118060 | B136: Oberstenfeld | C136: 2023-12-31 | D136: 7542 | F136: 7,537
A137: 8118063 | B137: Pleidelsheim | C137: 2023-12-31 | D137: 6133 | F137: 6,087
A138: 8118067 | B138: Schwieberdingen | C138: 2023-12-31 | D138: 11370 | F138: 11,318
A139: 8118068 | B139: Sersheim | C139: 2023-12-31 | D139: 5420 | F139: 5,448
A140: 8118070 | B140: Steinheim an der Murr, Stadt | C140: 2023-12-31 | D140: 11904 | F140: 11,908
A141: 8118071 | B141: Tamm, Stadt | C141: 2023-12-31 | D141: 12274 | F141: 12,305
A142: 8118073 | B142: Vaihingen an der Enz, Stadt | C142: 2023-12-31 | D142: 28772 | F142: 28,798
A143: 8118074 | B143: Walheim | C143: 2023-12-31 | D143: 3261 | F143: 3,316
A144: 8118076 | B144: Sachsenheim, Stadt | C144: 2023-12-31 | D144: 18539 | F144: 18,638
A145: 8118077 | B145: Ingersheim | C145: 2023-12-31 | D145: 6222 | F145: 6,223
A146: 8118078 | B146: Freiberg am Neckar, Stadt | C146: 2023-12-31 | D146: 15535 | F146: 15,520
A147: 8118079 | B147: Bietigheim-Bissingen, Stadt | C147: 2023-12-31 | D147: 43651 | F147: 43,556
A148: 8118080 | B148: Korntal-Münchingen, Stadt | C148: 2023-12-31 | D148: 19078 | F148: 19,654
A149: 8118081 | B149: Remseck am Neckar, Stadt | C149: 2023-12-31 | D149: 26222 | F149: 26,188
A150: 8119001 | B150: Alfdorf | C150: 2023-12-31 | D150: 7243 | F150: 7,260
A151: 8119003 | B151: Allmersbach im Tal | C151: 2023-12-31 | D151: 5049 | F151: 4,969
A152: 8119004 | B152: Althütte | C152: 2023-12-31 | D152: 4186 | F152: 4,184
A153: 8119006 | B153: Auenwald | C153: 2023-12-31 | D153: 6864 | F153: 6,833
A154: 8119008 | B154: Backnang, Stadt | C154: 2023-12-31 | D154: 38643 | F154: 38,818
A155: 8119018 | B155: Burgstetten | C155: 2023-12-31 | D155: 3730 | F155: 3,681
A156: 8119020 | B156: Fellbach, Stadt | C156: 2023-12-31 | D156: 47123 | F156: 47,120
A157: 8119024 | B157: Großerlach | C157: 2023-12-31 | D157: 2687 | F157: 2,752
A158: 8119037 | B158: Kaisersbach | C158: 2023-12-31 | D158: 2392 | F158: 2,381
A159: 8119038 | B159: Kirchberg an der Murr | C159: 2023-12-31 | D159: 4095 | F159: 4,144
A160: 8119041 | B160: Korb | C160: 2023-12-31 | D160: 11557 | F160: 11,607
A161: 8119042 | B161: Leutenbach | C161: 2023-12-31 | D161: 12171 | F161: 12,093
A162: 8119044 | B162: Murrhardt, Stadt | C162: 2023-12-31 | D162: 14550 | F162: 14,551
A163: 8119053 | B163: Oppenweiler | C163: 2023-12-31 | D163: 4445 | F163: 4,435
A164: 8119055 | B164: Plüderhausen | C164: 2023-12-31 | D164: 9817 | F164: 9,766
A165: 8119061 | B165: Rudersberg | C165: 2023-12-31 | D165: 11674 | F165: 11,555
A166: 8119067 | B166: Schorndorf, Stadt | C166: 2023-12-31 | D166: 41286 | F166: 41,647
A167: 8119068 | B167: Schwaikheim | C167: 2023-12-31 | D167: 9918 | F167: 10,028
A168: 8119069 | B168: Spiegelberg | C168: 2023-12-31 | D168: 2168 | F168: 2,152
A169: 8119075 | B169: Sulzbach an der Murr | C169: 2023-12-31 | D169: 5366 | F169: 5,421
A170: 8119076 | B170: Urbach | C170: 2023-12-31 | D170: 9254 | F170: 9,277
A171: 8119079 | B171: Waiblingen, Stadt | C171: 2023-12-31 | D171: 57268 | F171: 57,313
A172: 8119083 | B172: Weissach im Tal | C172: 2023-12-31 | D172: 7570 | F172: 7,576
A173: 8119084 | B173: Welzheim, Stadt | C173: 2023-12-31 | D173: 11267 | F173: 11,264
A174: 8119085 | B174: Winnenden, Stadt | C174: 2023-12-31 | D174: 29761 | F174: 29,876
A175: 8119086 | B175: Winterbach | C175: 2023-12-31 | D175: 7645 | F175: 7,638
A176: 8119087 | B176: Aspach | C176: 2023-12-31 | D176: 8322 | F176: 8,178
A177: 8119089 | B177: Berglen | C177: 2023-12-31 | D177: 6808 | F177: 6,860
A178: 8119090 | B178: Remshalden | C178: 2023-12-31 | D178: 14395 | F178: 14,337
A179: 8119091 | B179: Weinstadt, Stadt | C179: 2023-12-31 | D179: 27037 | F179: 27,074
A180: 8119093 | B180: Kernen im Remstal | C180: 2023-12-31 | D180: 15812 | F180: 15,906
A181: 8121000 | B181: Heilbronn, Universitätsstadt | C181: 2023-12-31 | D181: 131653 | F181: 131,986
A182: 8125001 | B182: Abstatt | C182: 2023-12-31 | D182: 4959 | F182: 4,975
A183: 8125005 | B183: Bad Friedrichshall, Stadt | C183: 2023-12-31 | D183: 19814 | F183: 19,853
A184: 8125006 | B184: Bad Rappenau, Stadt | C184: 2023-12-31 | D184: 22756 | F184: 22,703
A185: 8125007 | B185: Bad Wimpfen, Stadt | C185: 2023-12-31 | D185: 7578 | F185: 7,686
A186: 8125008 | B186: Beilstein, Stadt | C186: 2023-12-31 | D186: 6391 | F186: 6,412
A187: 8125013 | B187: Brackenheim, Stadt | C187: 2023-12-31 | D187: 16847 | F187: 16,774
A188: 8125017 | B188: Cleebronn | C188: 2023-12-31 | D188: 3186 | F188: 3,118
A189: 8125021 | B189: Eberstadt | C189: 2023-12-31 | D189: 3180 | F189: 3,209
A190: 8125024 | B190: Ellhofen | C190: 2023-12-31 | D190: 3986 | F190: 3,998
A191: 8125026 | B191: Eppingen, Stadt | C191: 2023-12-31 | D191: 22630 | F191: 22,666
A192: 8125027 | B192: Erlenbach | C192: 2023-12-31 | D192: 5143 | F192: 5,155
A193: 8125030 | B193: Flein | C193: 2023-12-31 | D193: 7384 | F193: 7,432
A194: 8125034 | B194: Gemmingen | C194: 2023-12-31 | D194: 5568 | F194: 5,593
A195: 8125038 | B195: Güglingen, Stadt | C195: 2023-12-31 | D195: 6351 | F195: 6,394
A196: 8125039 | B196: Gundelsheim, Stadt | C196: 2023-12-31 | D196: 7556 | F196: 7,449
A197: 8125046 | B197: Ilsfeld | C197: 2023-12-31 | D197: 9774 | F197: 9,826
A198: 8125047 | B198: Ittlingen | C198: 2023-12-31 | D198: 2637 | F198: 2,643
A199: 8125048 | B199: Jagsthausen | C199: 2023-12-31 | D199: 1795 | F199: 1,747
A200: 8125049 | B200: Kirchardt | C200: 2023-12-31 | D200: 5927 | F200: 5,939
... 902 more rows

Sheet EM-Faktoren (hidden)
B1: Emissionsfaktoren THG inkl. Vorketten
A3: Quelle | B3: Energieträger | D3: 2020 | E3: 2021 | F3: 2022 | G3: 2023 | H3: 2024 | I3: 2025 | J3: 2026 | K3: 2027 | L3: 2028 | M3: 2029 | N3: 2030 | O3: 2035 | P3: 2040
A4: IkKA | B4: Strom | C4: t/MWh | D4: 0.438 | E4: 0.472 | F4: 0.505 | G4: 0.453 | H4: =0.138*3.6 -> 0.497 | I4: 0.371 | J4: =I4-($I4-$N4)/5 -> 0.331 | K4: 0.291 | L4: 0.250 | M4: 0.210 | N4: 0.170 | O4: 0.108 | P4: 0.081
A5: IkKA | B5: Erdgas | C5: t/MWh | D5: =+G5 -> 0.257 | E5: =+G5 -> 0.257 | F5: =+G5 -> 0.257 | G5: 0.257 | H5: 0.257 | I5: 0.257 | J5: 0.257 | K5: 0.257 | L5: 0.257 | M5: 0.257 | N5: 0.257 | O5: 0.257 | P5: 0.257
A6: IkKA | B6: Heizöl | C6: t/MWh | D6: 0.318 | E6: =+G6 -> 0.311 | F6: 0.311 | G6: 0.311 | H6: 0.311 | I6: 0.311 | J6: =I6-($I6-$N6)/5 -> 0.311 | K6: 0.311 | L6: 0.311 | M6: 0.311 | N6: 0.311 | O6: 0.311 | P6: 0.311
B7: Flüssiggas | C7: t/MWh | D7: =+D5+0.038 -> 0.295 | E7: 0.295 | F7: 0.295 | G7: 0.295 | H7: 0.295 | I7: 0.295 | J7: =I7-($I7-$N7)/5 -> 0.295 | K7: =J7-($I7-$N7)/5 -> 0.295 | L7: =K7-($I7-$N7)/5 -> 0.295 | M7: =L7-($I7-$N7)/5 -> 0.295 | N7: =+N5+0.038 -> 0.295 | O7: 0.295 | P7: 0.295
A8: IkKA | B8: Holz | C8: t/MWh | D8: =+G8 -> 0.022 | E8: 0.022 | F8: =+G8 -> 0.022 | G8: 0.022 | H8: 0.022 | I8: 0.022 | J8: 0.022 | K8: 0.022 | L8: 0.022 | M8: 0.022 | N8: 0.022 | O8: 0.022 | P8: 0.022
A9: IkKA/BICO2BW | B9: Kohlen (Steinkohle) | C9: t/MWh | D9: 0.429 | E9: 0.433 | F9: 0.433 | G9: 0.433 | H9: 0.433 | I9: 0.433 | J9: 0.433 | K9: 0.433 | L9: 0.433 | M9: 0.433 | N9: 0.433 | O9: 0.433 | P9: 0.433
A10: BICO2BW | B10: Braunkohle | C10: t/MWh | D10: 0.443 | E10: 0.445 | F10: 0.445 | G10: 0.441 | H10: 0.441 | I10: 0.441 | J10: =I10-($I10-$N10)/5 -> 0.441 | K10: =J10-($I10-$N10)/5 -> 0.441 | L10: =K10-($I10-$N10)/5 -> 0.441 | M10: =L10-($I10-$N10)/5 -> 0.441 | N10: 0.441 | O10: 0.441 | P10: 0.441
A11: IkKA | B11: Solarwärme | C11: t/MWh | D11: 0.023 | E11: 0.023 | F11: 0.023 | G11: 0.023 | H11: 0.023 | I11: 0.023 | J11: 0.023 | K11: 0.023 | L11: 0.023 | M11: 0.023 | N11: 0.023 | O11: 0.023 | P11: 0.023
B12: Wasserstoff | C12: t/MWh | D12: 0.050 | E12: 0.050 | F12: 0.050 | G12: 0.050 | H12: 0.050 | I12: 0.050 | J12: 0.050 | K12: 0.050 | L12: 0.050 | M12: 0.050 | N12: 0.050 | O12: 0.050 | P12: 0.050
B13: PtX | C13: t/MWh | D13: 0.041 | E13: 0.041 | F13: 0.041 | G13: 0.041 | H13: 0.041 | I13: 0.041 | J13: 0.041 | K13: 0.041 | L13: 0.041 | M13: 0.041 | N13: =0.041 -> 0.041 | O13: 0.041 | P13: 0.041
A14: BICO2BW | B14: Sonstige | C14: t/MWh | D14: =G14 -> 0.270 | E14: =+G14 -> 0.270 | F14: =+G14 -> 0.270 | G14: 0.270 | H14: 0.270 | I14: 0.270 | J14: 0.256 | K14: 0.242 | L14: 0.228 | M14: 0.214 | N14: 0.200 | O14: 0.150 | P14: 0.150
B16: Erneuerbare
A17: BICO2BW | B17: PV-Anlage | C17: t/MWh | D17: =+G17 -> 0.056 | E17: =+G17 -> 0.056 | F17: =+G17 -> 0.056 | G17: 0.056 | H17: =+G17 -> 0.056 | I17: =+G17 -> 0.056 | J17: =I17-($I17-$N17)/5 -> 0.056 | K17: 0.056 | L17: 0.056 | M17: 0.056 | N17: 0.056 | O17: 0.056 | P17: 0.056
A18: IkKA | B18: Klärgas | C18: t/MWh | D18: 0.110 | E18: 0.110 | F18: 0.110 | G18: 0.110 | H18: =+G18 -> 0.110 | I18: =+G18 -> 0.110 | J18: 0.110 | K18: 0.110 | L18: 0.110 | M18: 0.110 | N18: 0.110 | O18: 0.110 | P18: 0.055
A19: IkKA/BICO2BW | B19: EE-Festbrennstoffe | C19: t/MWh | D19: 0.069 | E19: 0.069 | F19: 0.069 | G19: 0.069 | H19: =+G19 -> 0.069 | I19: =+G19 -> 0.069 | J19: 0.068 | K19: 0.067 | L19: 0.066 | M19: 0.065 | N19: 0.064 | O19: 0.064 | P19: 0.064
A20: IkKA | B20: Flüssige Biomasse | C20: t/MWh | D20: 0.300 | E20: 0.300 | F20: 0.300 | G20: 0.300 | H20: 0.300 | I20: 0.300 | J20: 0.300 | K20: 0.300 | L20: 0.300 | M20: 0.300 | N20: 0.300 | O20: 0.300 | P20: 0.300
A21: BICO2BW | B21: Biogas | C21: t/MWh | D21: 0.124 | E21: 0.124 | F21: 0.124 | G21: 0.124 | H21: 0.124 | I21: 0.124 | J21: =I21-($I21-$N21)/5 -> 0.124 | K21: 0.124 | L21: 0.124 | M21: 0.124 | N21: 0.124 | O21: 0.124 | P21: 0.124
A22: IkKA/BICO2BW | B22: Deponiegas/Grubengas | C22: t/MWh | D22: 0.143 | E22: 0.143 | F22: 0.143 | G22: 0.143 | H22: 0.143 | I22: 0.143 | J22: =I22-($I22-$N22)/5 -> 0.141 | K22: 0.140 | L22: 0.138 | M22: 0.137 | N22: 0.135 | O22: 0.135 | P22: 0.135
A23: BICO2BW | B23: Abfall | C23: t/MWh | D23: 0.121 | E23: 0.121 | F23: 0.121 | G23: 0.121 | H23: 0.121 | I23: 0.121 | J23: 0.121 | K23: 0.121 | L23: 0.121 | M23: 0.121 | N23: 0.121 | O23: 0.121 | P23: 0.121
B24: Wasserstoff (grün) | C24: t/MWh | D24: 0.050 | E24: 0.050 | F24: 0.050 | G24: 0.050 | H24: 0.050 | I24: 0.050 | J24: 0.050 | K24: 0.050 | L24: 0.050 | M24: 0.050 | N24: 0.050 | O24: 0.050 | P24: 0.050
B25: Synth. Brennstoffe | C25: t/MWh | D25: 0.041 | E25: 0.041 | F25: 0.041 | G25: 0.041 | H25: 0.041 | I25: 0.041 | J25: 0.041 | K25: 0.041 | L25: 0.041 | M25: 0.041 | N25: 0.041 | O25: 0.041 | P25: 0.041
A26: BICO2BW | B26: Tiefe Geothermie | C26: t/MWh | D26: 0.149 | E26: 0.149 | F26: 0.149 | G26: 0.149 | H26: 0.149 | I26: 0.149 | J26: =I26-($I26-$N26)/5 -> 0.149 | K26: 0.149 | L26: 0.149 | M26: 0.149 | N26: 0.149 | O26: 0.149 | P26: 0.149
B27: Umweltwärme | C27: t/MWh | D27: 0.010 | E27: 0.010 | F27: 0.010 | G27: 0.010 | H27: 0.010 | I27: 0.010 | J27: 0.010 | K27: 0.010 | L27: 0.010 | M27: 0.010 | N27: 0.010 | O27: 0.010 | P27: 0.010
B28: sonstige Erneuerbare | C28: t/MWh | D28: 0.050 | E28: 0.050 | F28: 0.050 | G28: 0.050 | H28: 0.050 | I28: 0.050 | J28: 0.050 | K28: 0.050 | L28: 0.050 | M28: 0.050 | N28: 0.050 | O28: 0.050 | P28: 0.050
